OrganisationName,OrganisationCode,PublishedDate,LatestData,DurationFrom,DurationTo,EffectiveDate,GeoEntityName,GeoCode,GeoName,GeoURI,ReportingPeriodType,ReportingPeriod,LegalEntity,LCC_Period,OrganisationalUnit,Purpose,CategoryInternalName,TransactionNumber,BeneficiaryOtherID,BeneficiaryName,Amount
Lincolnshire,http://opendatacommunities.org/id/county-council/lincolnshire,2023-04-27T00:00:00,TRUE,2023-02-01T00:00:00,2023-02-28T23:59:59,28/02/2023,County,E10000019,Lincolnshire,http://statistics.data.gov.uk/doc/statistical-geography/E10000019,Month,2023-02,Lincolnshire County Council,202311,Learning Disabilities,Private Contractors,Residential Care Respite,100675255,340084,122 Scorer Street Care Home,2977.71
Lincolnshire,http://opendatacommunities.org/id/county-council/lincolnshire,2023-04-27T00:00:00,TRUE,2023-02-01T00:00:00,2023-02-28T23:59:59,28/02/2023,County,E10000019,Lincolnshire,http://statistics.data.gov.uk/doc/statistical-geography/E10000019,Month,2023-02,Lincolnshire County Council,202311,Learning Disabilities,Private Contractors,Residential Care Respite,100675255,340084,122 Scorer Street Care Home,110.29
Lincolnshire,http://opendatacommunities.org/id/county-council/lincolnshire,2023-04-27T00:00:00,TRUE,2023-02-01T00:00:00,2023-02-28T23:59:59,28/02/2023,County,E10000019,Lincolnshire,http://statistics.data.gov.uk/doc/statistical-geography/E10000019,Month,2023-02,Lincolnshire County Council,202311,Adult Frailty & Long Term Conditions,Holding,PCT Nursing Care Payment,100675567,346133,15 The Sycamores,836.76
Lincolnshire,http://opendatacommunities.org/id/county-council/lincolnshire,2023-04-27T00:00:00,TRUE,2023-02-01T00:00:00,2023-02-28T23:59:59,28/02/2023,County,E10000019,Lincolnshire,http://statistics.data.gov.uk/doc/statistical-geography/E10000019,Month,2023-02,Lincolnshire County Council,202311,Mental Health,Private Contractors,Nursing Care Long Term,100675567,346133,15 The Sycamores,4663.2
Lincolnshire,http://opendatacommunities.org/id/county-council/lincolnshire,2023-04-27T00:00:00,TRUE,2023-02-01T00:00:00,2023-02-28T23:59:59,28/02/2023,County,E10000019,Lincolnshire,http://statistics.data.gov.uk/doc/statistical-geography/E10000019,Month,2023-02,Lincolnshire County Council,202311,Schools Block - Delegated (DSB),Communications and Computing,Computer Software,31418481,341415,1decision Ltd,525
Lincolnshire,http://opendatacommunities.org/id/county-council/lincolnshire,2023-04-27T00:00:00,TRUE,2023-02-01T00:00:00,2023-02-28T23:59:59,28/02/2023,County,E10000019,Lincolnshire,http://statistics.data.gov.uk/doc/statistical-geography/E10000019,Month,2023-02,Lincolnshire County Council,202311,Home to School/College Transport,Contract Hire and Operating Leases,Home to School Transport 8 seats or less,100667595,311154,1st Call County Taxis,690.5
Lincolnshire,http://opendatacommunities.org/id/county-council/lincolnshire,2023-04-27T00:00:00,TRUE,2023-02-01T00:00:00,2023-02-28T23:59:59,28/02/2023,County,E10000019,Lincolnshire,http://statistics.data.gov.uk/doc/statistical-geography/E10000019,Month,2023-02,Lincolnshire County Council,202311,Home to School/College Transport,Contract Hire and Operating Leases,Home to School Transport 8 seats or less,100667595,311154,1st Call County Taxis,207.82
Lincolnshire,http://opendatacommunities.org/id/county-council/lincolnshire,2023-04-27T00:00:00,TRUE,2023-02-01T00:00:00,2023-02-28T23:59:59,28/02/2023,County,E10000019,Lincolnshire,http://statistics.data.gov.uk/doc/statistical-geography/E10000019,Month,2023-02,Lincolnshire County Council,202311,Home to School/College Transport,Contract Hire and Operating Leases,Home to School Transport 8 seats or less,100667595,311154,1st Call County Taxis,177.36
Lincolnshire,http://opendatacommunities.org/id/county-council/lincolnshire,2023-04-27T00:00:00,TRUE,2023-02-01T00:00:00,2023-02-28T23:59:59,28/02/2023,County,E10000019,Lincolnshire,http://statistics.data.gov.uk/doc/statistical-geography/E10000019,Month,2023-02,Lincolnshire County Council,202311,Home to School/College Transport,Contract Hire and Operating Leases,Home to School Transport 8 seats or less,100667595,311154,1st Call County Taxis,228.32
Lincolnshire,http://opendatacommunities.org/id/county-council/lincolnshire,2023-04-27T00:00:00,TRUE,2023-02-01T00:00:00,2023-02-28T23:59:59,28/02/2023,County,E10000019,Lincolnshire,http://statistics.data.gov.uk/doc/statistical-geography/E10000019,Month,2023-02,Lincolnshire County Council,202311,Learning Disabilities,Contract Hire and Operating Leases,Childrens Social Care Transport,100667072,308846,1st Choice Cabs,1200
Lincolnshire,http://opendatacommunities.org/id/county-council/lincolnshire,2023-04-27T00:00:00,TRUE,2023-02-01T00:00:00,2023-02-28T23:59:59,28/02/2023,County,E10000019,Lincolnshire,http://statistics.data.gov.uk/doc/statistical-geography/E10000019,Month,2023-02,Lincolnshire County Council,202311,Family Assessment and Support Teams,Contract Hire and Operating Leases,Home to School Transport 8 seats or less,100667074,308846,1st Choice Cabs,1500
Lincolnshire,http://opendatacommunities.org/id/county-council/lincolnshire,2023-04-27T00:00:00,TRUE,2023-02-01T00:00:00,2023-02-28T23:59:59,28/02/2023,County,E10000019,Lincolnshire,http://statistics.data.gov.uk/doc/statistical-geography/E10000019,Month,2023-02,Lincolnshire County Council,202311,Family Assessment and Support Teams,Contract Hire and Operating Leases,Home to School Transport 8 seats or less,100667426,308846,1st Choice Cabs,217.55
Lincolnshire,http://opendatacommunities.org/id/county-council/lincolnshire,2023-04-27T00:00:00,TRUE,2023-02-01T00:00:00,2023-02-28T23:59:59,28/02/2023,County,E10000019,Lincolnshire,http://statistics.data.gov.uk/doc/statistical-geography/E10000019,Month,2023-02,Lincolnshire County Council,202311,Home to School/College Transport,Contract Hire and Operating Leases,Home to School Transport 8 seats or less,100667427,308846,1st Choice Cabs,1600
Lincolnshire,http://opendatacommunities.org/id/county-council/lincolnshire,2023-04-27T00:00:00,TRUE,2023-02-01T00:00:00,2023-02-28T23:59:59,28/02/2023,County,E10000019,Lincolnshire,http://statistics.data.gov.uk/doc/statistical-geography/E10000019,Month,2023-02,Lincolnshire County Council,202311,Home to School/College Transport,Contract Hire and Operating Leases,Home to School Transport 8 seats or less,100667424,308846,1st Choice Cabs,4800
Lincolnshire,http://opendatacommunities.org/id/county-council/lincolnshire,2023-04-27T00:00:00,TRUE,2023-02-01T00:00:00,2023-02-28T23:59:59,28/02/2023,County,E10000019,Lincolnshire,http://statistics.data.gov.uk/doc/statistical-geography/E10000019,Month,2023-02,Lincolnshire County Council,202311,Home to School/College Transport,Contract Hire and Operating Leases,Home to School Transport 8 seats or less,100667423,308846,1st Choice Cabs,1600
Lincolnshire,http://opendatacommunities.org/id/county-council/lincolnshire,2023-04-27T00:00:00,TRUE,2023-02-01T00:00:00,2023-02-28T23:59:59,28/02/2023,County,E10000019,Lincolnshire,http://statistics.data.gov.uk/doc/statistical-geography/E10000019,Month,2023-02,Lincolnshire County Council,202311,Home to School/College Transport,Contract Hire and Operating Leases,Home to School Transport 8 seats or less,100667426,308846,1st Choice Cabs,560.53
Lincolnshire,http://opendatacommunities.org/id/county-council/lincolnshire,2023-04-27T00:00:00,TRUE,2023-02-01T00:00:00,2023-02-28T23:59:59,28/02/2023,County,E10000019,Lincolnshire,http://statistics.data.gov.uk/doc/statistical-geography/E10000019,Month,2023-02,Lincolnshire County Council,202311,Home to School/College Transport,Contract Hire and Operating Leases,Home to School Transport 8 seats or less,100667425,308846,1st Choice Cabs,2524.32
Lincolnshire,http://opendatacommunities.org/id/county-council/lincolnshire,2023-04-27T00:00:00,TRUE,2023-02-01T00:00:00,2023-02-28T23:59:59,28/02/2023,County,E10000019,Lincolnshire,http://statistics.data.gov.uk/doc/statistical-geography/E10000019,Month,2023-02,Lincolnshire County Council,202311,Home to School/College Transport,Contract Hire and Operating Leases,Home to School Transport 8 seats or less,100667426,308846,1st Choice Cabs,1052.85
Lincolnshire,http://opendatacommunities.org/id/county-council/lincolnshire,2023-04-27T00:00:00,TRUE,2023-02-01T00:00:00,2023-02-28T23:59:59,28/02/2023,County,E10000019,Lincolnshire,http://statistics.data.gov.uk/doc/statistical-geography/E10000019,Month,2023-02,Lincolnshire County Council,202311,Home to School/College Transport,Contract Hire and Operating Leases,Home to School Transport 8 seats or less,100667428,308846,1st Choice Cabs,3200
Lincolnshire,http://opendatacommunities.org/id/county-council/lincolnshire,2023-04-27T00:00:00,TRUE,2023-02-01T00:00:00,2023-02-28T23:59:59,28/02/2023,County,E10000019,Lincolnshire,http://statistics.data.gov.uk/doc/statistical-geography/E10000019,Month,2023-02,Lincolnshire County Council,202311,Home to School/College Transport,Contract Hire and Operating Leases,Home to School Transport 8 seats or less,100678309,304692,1st Choice Royal Taxis,291.12
Lincolnshire,http://opendatacommunities.org/id/county-council/lincolnshire,2023-04-27T00:00:00,TRUE,2023-02-01T00:00:00,2023-02-28T23:59:59,28/02/2023,County,E10000019,Lincolnshire,http://statistics.data.gov.uk/doc/statistical-geography/E10000019,Month,2023-02,Lincolnshire County Council,202311,Home to School/College Transport,Contract Hire and Operating Leases,Home to School Transport 8 seats or less,100678309,304692,1st Choice Royal Taxis,440.98
Lincolnshire,http://opendatacommunities.org/id/county-council/lincolnshire,2023-04-27T00:00:00,TRUE,2023-02-01T00:00:00,2023-02-28T23:59:59,28/02/2023,County,E10000019,Lincolnshire,http://statistics.data.gov.uk/doc/statistical-geography/E10000019,Month,2023-02,Lincolnshire County Council,202311,Home to School/College Transport,Contract Hire and Operating Leases,Home to School Transport 8 seats or less,100678309,304692,1st Choice Royal Taxis,775.01
Lincolnshire,http://opendatacommunities.org/id/county-council/lincolnshire,2023-04-27T00:00:00,TRUE,2023-02-01T00:00:00,2023-02-28T23:59:59,28/02/2023,County,E10000019,Lincolnshire,http://statistics.data.gov.uk/doc/statistical-geography/E10000019,Month,2023-02,Lincolnshire County Council,202311,Home to School/College Transport,Contract Hire and Operating Leases,Home to School Transport 8 seats or less,100678309,304692,1st Choice Royal Taxis,395.55
Lincolnshire,http://opendatacommunities.org/id/county-council/lincolnshire,2023-04-27T00:00:00,TRUE,2023-02-01T00:00:00,2023-02-28T23:59:59,28/02/2023,County,E10000019,Lincolnshire,http://statistics.data.gov.uk/doc/statistical-geography/E10000019,Month,2023-02,Lincolnshire County Council,202311,Special Educational Needs and Disabilities,Contract Hire and Operating Leases,Home to School Transport 8 seats or less,100673874,311836,1st Taxis Grantham Ltd,80
Lincolnshire,http://opendatacommunities.org/id/county-council/lincolnshire,2023-04-27T00:00:00,TRUE,2023-02-01T00:00:00,2023-02-28T23:59:59,28/02/2023,County,E10000019,Lincolnshire,http://statistics.data.gov.uk/doc/statistical-geography/E10000019,Month,2023-02,Lincolnshire County Council,202311,Home to School/College Transport,Contract Hire and Operating Leases,Home to School Transport 8 seats or less,100675619,311836,1st Taxis Grantham Ltd,2538.9
Lincolnshire,http://opendatacommunities.org/id/county-council/lincolnshire,2023-04-27T00:00:00,TRUE,2023-02-01T00:00:00,2023-02-28T23:59:59,28/02/2023,County,E10000019,Lincolnshire,http://statistics.data.gov.uk/doc/statistical-geography/E10000019,Month,2023-02,Lincolnshire County Council,202311,Home to School/College Transport,Contract Hire and Operating Leases,Home to School Transport 8 seats or less,100669086,311836,1st Taxis Grantham Ltd,4280
Lincolnshire,http://opendatacommunities.org/id/county-council/lincolnshire,2023-04-27T00:00:00,TRUE,2023-02-01T00:00:00,2023-02-28T23:59:59,28/02/2023,County,E10000019,Lincolnshire,http://statistics.data.gov.uk/doc/statistical-geography/E10000019,Month,2023-02,Lincolnshire County Council,202311,Home to School/College Transport,Contract Hire and Operating Leases,Home to School Transport 8 seats or less,100669087,311836,1st Taxis Grantham Ltd,1368.28
Lincolnshire,http://opendatacommunities.org/id/county-council/lincolnshire,2023-04-27T00:00:00,TRUE,2023-02-01T00:00:00,2023-02-28T23:59:59,28/02/2023,County,E10000019,Lincolnshire,http://statistics.data.gov.uk/doc/statistical-geography/E10000019,Month,2023-02,Lincolnshire County Council,202311,Home to School/College Transport,Contract Hire and Operating Leases,Home to School Transport 8 seats or less,100669087,311836,1st Taxis Grantham Ltd,1271.72
Lincolnshire,http://opendatacommunities.org/id/county-council/lincolnshire,2023-04-27T00:00:00,TRUE,2023-02-01T00:00:00,2023-02-28T23:59:59,28/02/2023,County,E10000019,Lincolnshire,http://statistics.data.gov.uk/doc/statistical-geography/E10000019,Month,2023-02,Lincolnshire County Council,202311,Home to School/College Transport,Contract Hire and Operating Leases,Home to School Transport 8 seats or less,100673874,311836,1st Taxis Grantham Ltd,5040
Lincolnshire,http://opendatacommunities.org/id/county-council/lincolnshire,2023-04-27T00:00:00,TRUE,2023-02-01T00:00:00,2023-02-28T23:59:59,28/02/2023,County,E10000019,Lincolnshire,http://statistics.data.gov.uk/doc/statistical-geography/E10000019,Month,2023-02,Lincolnshire County Council,202311,Learning Disabilities,Private Contractors,Residential Care Long Term,100675256,340818,20 Towngate East,-2762.44
Lincolnshire,http://opendatacommunities.org/id/county-council/lincolnshire,2023-04-27T00:00:00,TRUE,2023-02-01T00:00:00,2023-02-28T23:59:59,28/02/2023,County,E10000019,Lincolnshire,http://statistics.data.gov.uk/doc/statistical-geography/E10000019,Month,2023-02,Lincolnshire County Council,202311,Learning Disabilities,Private Contractors,Residential Care Long Term,100675256,340818,20 Towngate East,2886.01
Lincolnshire,http://opendatacommunities.org/id/county-council/lincolnshire,2023-04-27T00:00:00,TRUE,2023-02-01T00:00:00,2023-02-28T23:59:59,28/02/2023,County,E10000019,Lincolnshire,http://statistics.data.gov.uk/doc/statistical-geography/E10000019,Month,2023-02,Lincolnshire County Council,202311,Learning Disabilities,Private Contractors,Residential Care Long Term,100675256,340818,20 Towngate East,96970.08
Lincolnshire,http://opendatacommunities.org/id/county-council/lincolnshire,2023-04-27T00:00:00,TRUE,2023-02-01T00:00:00,2023-02-28T23:59:59,28/02/2023,County,E10000019,Lincolnshire,http://statistics.data.gov.uk/doc/statistical-geography/E10000019,Month,2023-02,Lincolnshire County Council,202311,Learning Disabilities,Private Contractors,Residential Care Long Term,100675256,340818,20 Towngate East,-85083.24
Lincolnshire,http://opendatacommunities.org/id/county-council/lincolnshire,2023-04-27T00:00:00,TRUE,2023-02-01T00:00:00,2023-02-28T23:59:59,28/02/2023,County,E10000019,Lincolnshire,http://statistics.data.gov.uk/doc/statistical-geography/E10000019,Month,2023-02,Lincolnshire County Council,202311,Home to School/College Transport,Contract Hire and Operating Leases,Home to School Transport 8 seats or less,100667178,350127,24/7 Taxis Grantham,1785
Lincolnshire,http://opendatacommunities.org/id/county-council/lincolnshire,2023-04-27T00:00:00,TRUE,2023-02-01T00:00:00,2023-02-28T23:59:59,28/02/2023,County,E10000019,Lincolnshire,http://statistics.data.gov.uk/doc/statistical-geography/E10000019,Month,2023-02,Lincolnshire County Council,202311,Home to School/College Transport,Contract Hire and Operating Leases,Home to School Transport 8 seats or less,100667178,350127,24/7 Taxis Grantham,1900
Lincolnshire,http://opendatacommunities.org/id/county-council/lincolnshire,2023-04-27T00:00:00,TRUE,2023-02-01T00:00:00,2023-02-28T23:59:59,28/02/2023,County,E10000019,Lincolnshire,http://statistics.data.gov.uk/doc/statistical-geography/E10000019,Month,2023-02,Lincolnshire County Council,202311,Learning Disabilities,Contract Hire and Operating Leases,Childrens Social Care Transport,100669134,324862,24x7 (Lincs) Ltd,2730
Lincolnshire,http://opendatacommunities.org/id/county-council/lincolnshire,2023-04-27T00:00:00,TRUE,2023-02-01T00:00:00,2023-02-28T23:59:59,28/02/2023,County,E10000019,Lincolnshire,http://statistics.data.gov.uk/doc/statistical-geography/E10000019,Month,2023-02,Lincolnshire County Council,202311,Home to School/College Transport,Contract Hire and Operating Leases,Home to School Transport 8 seats or less,100676939,324862,24x7 (Lincs) Ltd,3271.58
Lincolnshire,http://opendatacommunities.org/id/county-council/lincolnshire,2023-04-27T00:00:00,TRUE,2023-02-01T00:00:00,2023-02-28T23:59:59,28/02/2023,County,E10000019,Lincolnshire,http://statistics.data.gov.uk/doc/statistical-geography/E10000019,Month,2023-02,Lincolnshire County Council,202311,Home to School/College Transport,Contract Hire and Operating Leases,Home to School Transport 8 seats or less,100676940,324862,24x7 (Lincs) Ltd,3486.16
Lincolnshire,http://opendatacommunities.org/id/county-council/lincolnshire,2023-04-27T00:00:00,TRUE,2023-02-01T00:00:00,2023-02-28T23:59:59,28/02/2023,County,E10000019,Lincolnshire,http://statistics.data.gov.uk/doc/statistical-geography/E10000019,Month,2023-02,Lincolnshire County Council,202311,Home to School/College Transport,Contract Hire and Operating Leases,Home to School Transport 8 seats or less,100676941,324862,24x7 (Lincs) Ltd,1993.83
Lincolnshire,http://opendatacommunities.org/id/county-council/lincolnshire,2023-04-27T00:00:00,TRUE,2023-02-01T00:00:00,2023-02-28T23:59:59,28/02/2023,County,E10000019,Lincolnshire,http://statistics.data.gov.uk/doc/statistical-geography/E10000019,Month,2023-02,Lincolnshire County Council,202311,Home to School/College Transport,Contract Hire and Operating Leases,Home to School Transport 8 seats or less,100676941,324862,24x7 (Lincs) Ltd,785.57
Lincolnshire,http://opendatacommunities.org/id/county-council/lincolnshire,2023-04-27T00:00:00,TRUE,2023-02-01T00:00:00,2023-02-28T23:59:59,28/02/2023,County,E10000019,Lincolnshire,http://statistics.data.gov.uk/doc/statistical-geography/E10000019,Month,2023-02,Lincolnshire County Council,202311,Home to School/College Transport,Contract Hire and Operating Leases,Home to School Transport 8 seats or less,100676942,324862,24x7 (Lincs) Ltd,4138.4
Lincolnshire,http://opendatacommunities.org/id/county-council/lincolnshire,2023-04-27T00:00:00,TRUE,2023-02-01T00:00:00,2023-02-28T23:59:59,28/02/2023,County,E10000019,Lincolnshire,http://statistics.data.gov.uk/doc/statistical-geography/E10000019,Month,2023-02,Lincolnshire County Council,202311,Home to School/College Transport,Contract Hire and Operating Leases,Home to School Transport 8 seats or less,100676943,324862,24x7 (Lincs) Ltd,5029.16
Lincolnshire,http://opendatacommunities.org/id/county-council/lincolnshire,2023-04-27T00:00:00,TRUE,2023-02-01T00:00:00,2023-02-28T23:59:59,28/02/2023,County,E10000019,Lincolnshire,http://statistics.data.gov.uk/doc/statistical-geography/E10000019,Month,2023-02,Lincolnshire County Council,202311,Home to School/College Transport,Contract Hire and Operating Leases,Home to School Transport 8 seats or less,100676943,324862,24x7 (Lincs) Ltd,895.98
Lincolnshire,http://opendatacommunities.org/id/county-council/lincolnshire,2023-04-27T00:00:00,TRUE,2023-02-01T00:00:00,2023-02-28T23:59:59,28/02/2023,County,E10000019,Lincolnshire,http://statistics.data.gov.uk/doc/statistical-geography/E10000019,Month,2023-02,Lincolnshire County Council,202311,Home to School/College Transport,Contract Hire and Operating Leases,Home to School Transport 8 seats or less,100675692,324862,24x7 (Lincs) Ltd,3125.65
Lincolnshire,http://opendatacommunities.org/id/county-council/lincolnshire,2023-04-27T00:00:00,TRUE,2023-02-01T00:00:00,2023-02-28T23:59:59,28/02/2023,County,E10000019,Lincolnshire,http://statistics.data.gov.uk/doc/statistical-geography/E10000019,Month,2023-02,Lincolnshire County Council,202311,Home to School/College Transport,Contract Hire and Operating Leases,Home to School Transport 8 seats or less,100675692,324862,24x7 (Lincs) Ltd,685.85
Lincolnshire,http://opendatacommunities.org/id/county-council/lincolnshire,2023-04-27T00:00:00,TRUE,2023-02-01T00:00:00,2023-02-28T23:59:59,28/02/2023,County,E10000019,Lincolnshire,http://statistics.data.gov.uk/doc/statistical-geography/E10000019,Month,2023-02,Lincolnshire County Council,202311,Home to School/College Transport,Contract Hire and Operating Leases,Home to School Transport 8 seats or less,100667566,324862,24x7 (Lincs) Ltd,47829.72
Lincolnshire,http://opendatacommunities.org/id/county-council/lincolnshire,2023-04-27T00:00:00,TRUE,2023-02-01T00:00:00,2023-02-28T23:59:59,28/02/2023,County,E10000019,Lincolnshire,http://statistics.data.gov.uk/doc/statistical-geography/E10000019,Month,2023-02,Lincolnshire County Council,202311,Home to School/College Transport,Contract Hire and Operating Leases,Home to School Transport 8 seats or less,100667566,324862,24x7 (Lincs) Ltd,405.57
Lincolnshire,http://opendatacommunities.org/id/county-council/lincolnshire,2023-04-27T00:00:00,TRUE,2023-02-01T00:00:00,2023-02-28T23:59:59,28/02/2023,County,E10000019,Lincolnshire,http://statistics.data.gov.uk/doc/statistical-geography/E10000019,Month,2023-02,Lincolnshire County Council,202311,Home to School/College Transport,Contract Hire and Operating Leases,Home to School Transport 8 seats or less,100667566,324862,24x7 (Lincs) Ltd,5519.23
Lincolnshire,http://opendatacommunities.org/id/county-council/lincolnshire,2023-04-27T00:00:00,TRUE,2023-02-01T00:00:00,2023-02-28T23:59:59,28/02/2023,County,E10000019,Lincolnshire,http://statistics.data.gov.uk/doc/statistical-geography/E10000019,Month,2023-02,Lincolnshire County Council,202311,Home to School/College Transport,Contract Hire and Operating Leases,Home to School Transport 8 seats or less,100667566,324862,24x7 (Lincs) Ltd,515.82
Lincolnshire,http://opendatacommunities.org/id/county-council/lincolnshire,2023-04-27T00:00:00,TRUE,2023-02-01T00:00:00,2023-02-28T23:59:59,28/02/2023,County,E10000019,Lincolnshire,http://statistics.data.gov.uk/doc/statistical-geography/E10000019,Month,2023-02,Lincolnshire County Council,202311,Home to School/College Transport,Contract Hire and Operating Leases,Home to School Transport 8 seats or less,100667566,324862,24x7 (Lincs) Ltd,679.59
Lincolnshire,http://opendatacommunities.org/id/county-council/lincolnshire,2023-04-27T00:00:00,TRUE,2023-02-01T00:00:00,2023-02-28T23:59:59,28/02/2023,County,E10000019,Lincolnshire,http://statistics.data.gov.uk/doc/statistical-geography/E10000019,Month,2023-02,Lincolnshire County Council,202311,Home to School/College Transport,Contract Hire and Operating Leases,Childrens Social Care Transport,100672300,324862,24x7 (Lincs) Ltd,2290.71
Lincolnshire,http://opendatacommunities.org/id/county-council/lincolnshire,2023-04-27T00:00:00,TRUE,2023-02-01T00:00:00,2023-02-28T23:59:59,28/02/2023,County,E10000019,Lincolnshire,http://statistics.data.gov.uk/doc/statistical-geography/E10000019,Month,2023-02,Lincolnshire County Council,202311,Home to School/College Transport,Contract Hire and Operating Leases,Home to School Transport 8 seats or less,100673699,324862,24x7 (Lincs) Ltd,517.78
Lincolnshire,http://opendatacommunities.org/id/county-council/lincolnshire,2023-04-27T00:00:00,TRUE,2023-02-01T00:00:00,2023-02-28T23:59:59,28/02/2023,County,E10000019,Lincolnshire,http://statistics.data.gov.uk/doc/statistical-geography/E10000019,Month,2023-02,Lincolnshire County Council,202311,Home to School/College Transport,Contract Hire and Operating Leases,Home to School Transport 8 seats or less,100673699,324862,24x7 (Lincs) Ltd,517.71
Lincolnshire,http://opendatacommunities.org/id/county-council/lincolnshire,2023-04-27T00:00:00,TRUE,2023-02-01T00:00:00,2023-02-28T23:59:59,28/02/2023,County,E10000019,Lincolnshire,http://statistics.data.gov.uk/doc/statistical-geography/E10000019,Month,2023-02,Lincolnshire County Council,202311,Home to School/College Transport,Contract Hire and Operating Leases,Home to School Transport 8 seats or less,100673700,324862,24x7 (Lincs) Ltd,538.22
Lincolnshire,http://opendatacommunities.org/id/county-council/lincolnshire,2023-04-27T00:00:00,TRUE,2023-02-01T00:00:00,2023-02-28T23:59:59,28/02/2023,County,E10000019,Lincolnshire,http://statistics.data.gov.uk/doc/statistical-geography/E10000019,Month,2023-02,Lincolnshire County Council,202311,Home to School/College Transport,Contract Hire and Operating Leases,Home to School Transport 8 seats or less,100673700,324862,24x7 (Lincs) Ltd,268.36
Lincolnshire,http://opendatacommunities.org/id/county-council/lincolnshire,2023-04-27T00:00:00,TRUE,2023-02-01T00:00:00,2023-02-28T23:59:59,28/02/2023,County,E10000019,Lincolnshire,http://statistics.data.gov.uk/doc/statistical-geography/E10000019,Month,2023-02,Lincolnshire County Council,202311,Home to School/College Transport,Contract Hire and Operating Leases,Home to School Transport 8 seats or less,100673700,324862,24x7 (Lincs) Ltd,1088.25
Lincolnshire,http://opendatacommunities.org/id/county-council/lincolnshire,2023-04-27T00:00:00,TRUE,2023-02-01T00:00:00,2023-02-28T23:59:59,28/02/2023,County,E10000019,Lincolnshire,http://statistics.data.gov.uk/doc/statistical-geography/E10000019,Month,2023-02,Lincolnshire County Council,202311,Home to School/College Transport,Contract Hire and Operating Leases,Home to School Transport 8 seats or less,100673726,324862,24x7 (Lincs) Ltd,1801.41
Lincolnshire,http://opendatacommunities.org/id/county-council/lincolnshire,2023-04-27T00:00:00,TRUE,2023-02-01T00:00:00,2023-02-28T23:59:59,28/02/2023,County,E10000019,Lincolnshire,http://statistics.data.gov.uk/doc/statistical-geography/E10000019,Month,2023-02,Lincolnshire County Council,202311,Home to School/College Transport,Contract Hire and Operating Leases,Home to School Transport 8 seats or less,100673726,324862,24x7 (Lincs) Ltd,147.26
Lincolnshire,http://opendatacommunities.org/id/county-council/lincolnshire,2023-04-27T00:00:00,TRUE,2023-02-01T00:00:00,2023-02-28T23:59:59,28/02/2023,County,E10000019,Lincolnshire,http://statistics.data.gov.uk/doc/statistical-geography/E10000019,Month,2023-02,Lincolnshire County Council,202311,Home to School/College Transport,Contract Hire and Operating Leases,Home to School Transport 8 seats or less,100673726,324862,24x7 (Lincs) Ltd,36.46
Lincolnshire,http://opendatacommunities.org/id/county-council/lincolnshire,2023-04-27T00:00:00,TRUE,2023-02-01T00:00:00,2023-02-28T23:59:59,28/02/2023,County,E10000019,Lincolnshire,http://statistics.data.gov.uk/doc/statistical-geography/E10000019,Month,2023-02,Lincolnshire County Council,202311,Home to School/College Transport,Contract Hire and Operating Leases,Home to School Transport 8 seats or less,100673728,324862,24x7 (Lincs) Ltd,159.62
Lincolnshire,http://opendatacommunities.org/id/county-council/lincolnshire,2023-04-27T00:00:00,TRUE,2023-02-01T00:00:00,2023-02-28T23:59:59,28/02/2023,County,E10000019,Lincolnshire,http://statistics.data.gov.uk/doc/statistical-geography/E10000019,Month,2023-02,Lincolnshire County Council,202311,Home to School/College Transport,Contract Hire and Operating Leases,Home to School Transport 8 seats or less,100673728,324862,24x7 (Lincs) Ltd,252.99
Lincolnshire,http://opendatacommunities.org/id/county-council/lincolnshire,2023-04-27T00:00:00,TRUE,2023-02-01T00:00:00,2023-02-28T23:59:59,28/02/2023,County,E10000019,Lincolnshire,http://statistics.data.gov.uk/doc/statistical-geography/E10000019,Month,2023-02,Lincolnshire County Council,202311,Home to School/College Transport,Contract Hire and Operating Leases,Home to School Transport 8 seats or less,100673728,324862,24x7 (Lincs) Ltd,252.99
Lincolnshire,http://opendatacommunities.org/id/county-council/lincolnshire,2023-04-27T00:00:00,TRUE,2023-02-01T00:00:00,2023-02-28T23:59:59,28/02/2023,County,E10000019,Lincolnshire,http://statistics.data.gov.uk/doc/statistical-geography/E10000019,Month,2023-02,Lincolnshire County Council,202311,Home to School/College Transport,Contract Hire and Operating Leases,Home to School Transport 8 seats or less,100673729,324862,24x7 (Lincs) Ltd,31.51
Lincolnshire,http://opendatacommunities.org/id/county-council/lincolnshire,2023-04-27T00:00:00,TRUE,2023-02-01T00:00:00,2023-02-28T23:59:59,28/02/2023,County,E10000019,Lincolnshire,http://statistics.data.gov.uk/doc/statistical-geography/E10000019,Month,2023-02,Lincolnshire County Council,202311,Home to School/College Transport,Contract Hire and Operating Leases,Home to School Transport 8 seats or less,100669246,324862,24x7 (Lincs) Ltd,391.97
Lincolnshire,http://opendatacommunities.org/id/county-council/lincolnshire,2023-04-27T00:00:00,TRUE,2023-02-01T00:00:00,2023-02-28T23:59:59,28/02/2023,County,E10000019,Lincolnshire,http://statistics.data.gov.uk/doc/statistical-geography/E10000019,Month,2023-02,Lincolnshire County Council,202311,Home to School/College Transport,Contract Hire and Operating Leases,Home to School Transport 8 seats or less,100669246,324862,24x7 (Lincs) Ltd,569.34
Lincolnshire,http://opendatacommunities.org/id/county-council/lincolnshire,2023-04-27T00:00:00,TRUE,2023-02-01T00:00:00,2023-02-28T23:59:59,28/02/2023,County,E10000019,Lincolnshire,http://statistics.data.gov.uk/doc/statistical-geography/E10000019,Month,2023-02,Lincolnshire County Council,202311,Home to School/College Transport,Contract Hire and Operating Leases,Home to School Transport 8 seats or less,100669263,324862,24x7 (Lincs) Ltd,1001.35
Lincolnshire,http://opendatacommunities.org/id/county-council/lincolnshire,2023-04-27T00:00:00,TRUE,2023-02-01T00:00:00,2023-02-28T23:59:59,28/02/2023,County,E10000019,Lincolnshire,http://statistics.data.gov.uk/doc/statistical-geography/E10000019,Month,2023-02,Lincolnshire County Council,202311,Home to School/College Transport,Contract Hire and Operating Leases,Home to School Transport 8 seats or less,100669263,324862,24x7 (Lincs) Ltd,111.34
Lincolnshire,http://opendatacommunities.org/id/county-council/lincolnshire,2023-04-27T00:00:00,TRUE,2023-02-01T00:00:00,2023-02-28T23:59:59,28/02/2023,County,E10000019,Lincolnshire,http://statistics.data.gov.uk/doc/statistical-geography/E10000019,Month,2023-02,Lincolnshire County Council,202311,Home to School/College Transport,Contract Hire and Operating Leases,Home to School Transport 8 seats or less,100669263,324862,24x7 (Lincs) Ltd,272.31
Lincolnshire,http://opendatacommunities.org/id/county-council/lincolnshire,2023-04-27T00:00:00,TRUE,2023-02-01T00:00:00,2023-02-28T23:59:59,28/02/2023,County,E10000019,Lincolnshire,http://statistics.data.gov.uk/doc/statistical-geography/E10000019,Month,2023-02,Lincolnshire County Council,202311,Home to School/College Transport,Contract Hire and Operating Leases,Home to School Transport 8 seats or less,100669199,324862,24x7 (Lincs) Ltd,2380
Lincolnshire,http://opendatacommunities.org/id/county-council/lincolnshire,2023-04-27T00:00:00,TRUE,2023-02-01T00:00:00,2023-02-28T23:59:59,28/02/2023,County,E10000019,Lincolnshire,http://statistics.data.gov.uk/doc/statistical-geography/E10000019,Month,2023-02,Lincolnshire County Council,202311,Home to School/College Transport,Contract Hire and Operating Leases,Home to School Transport 8 seats or less,100669269,324862,24x7 (Lincs) Ltd,431.76
Lincolnshire,http://opendatacommunities.org/id/county-council/lincolnshire,2023-04-27T00:00:00,TRUE,2023-02-01T00:00:00,2023-02-28T23:59:59,28/02/2023,County,E10000019,Lincolnshire,http://statistics.data.gov.uk/doc/statistical-geography/E10000019,Month,2023-02,Lincolnshire County Council,202311,Home to School/College Transport,Contract Hire and Operating Leases,Home to School Transport 8 seats or less,100669269,324862,24x7 (Lincs) Ltd,608.62
Lincolnshire,http://opendatacommunities.org/id/county-council/lincolnshire,2023-04-27T00:00:00,TRUE,2023-02-01T00:00:00,2023-02-28T23:59:59,28/02/2023,County,E10000019,Lincolnshire,http://statistics.data.gov.uk/doc/statistical-geography/E10000019,Month,2023-02,Lincolnshire County Council,202311,Home to School/College Transport,Contract Hire and Operating Leases,Home to School Transport 8 seats or less,100669269,324862,24x7 (Lincs) Ltd,468.21
Lincolnshire,http://opendatacommunities.org/id/county-council/lincolnshire,2023-04-27T00:00:00,TRUE,2023-02-01T00:00:00,2023-02-28T23:59:59,28/02/2023,County,E10000019,Lincolnshire,http://statistics.data.gov.uk/doc/statistical-geography/E10000019,Month,2023-02,Lincolnshire County Council,202311,Home to School/College Transport,Contract Hire and Operating Leases,Home to School Transport 8 seats or less,100669269,324862,24x7 (Lincs) Ltd,468.21
Lincolnshire,http://opendatacommunities.org/id/county-council/lincolnshire,2023-04-27T00:00:00,TRUE,2023-02-01T00:00:00,2023-02-28T23:59:59,28/02/2023,County,E10000019,Lincolnshire,http://statistics.data.gov.uk/doc/statistical-geography/E10000019,Month,2023-02,Lincolnshire County Council,202311,Home to School/College Transport,Contract Hire and Operating Leases,Home to School Transport 8 seats or less,100669270,324862,24x7 (Lincs) Ltd,3160
Lincolnshire,http://opendatacommunities.org/id/county-council/lincolnshire,2023-04-27T00:00:00,TRUE,2023-02-01T00:00:00,2023-02-28T23:59:59,28/02/2023,County,E10000019,Lincolnshire,http://statistics.data.gov.uk/doc/statistical-geography/E10000019,Month,2023-02,Lincolnshire County Council,202311,Home to School/College Transport,Contract Hire and Operating Leases,Home to School Transport 8 seats or less,100669222,324862,24x7 (Lincs) Ltd,2270.56
Lincolnshire,http://opendatacommunities.org/id/county-council/lincolnshire,2023-04-27T00:00:00,TRUE,2023-02-01T00:00:00,2023-02-28T23:59:59,28/02/2023,County,E10000019,Lincolnshire,http://statistics.data.gov.uk/doc/statistical-geography/E10000019,Month,2023-02,Lincolnshire County Council,202311,Home to School/College Transport,Contract Hire and Operating Leases,Home to School Transport 8 seats or less,100669127,324862,24x7 (Lincs) Ltd,694.74
Lincolnshire,http://opendatacommunities.org/id/county-council/lincolnshire,2023-04-27T00:00:00,TRUE,2023-02-01T00:00:00,2023-02-28T23:59:59,28/02/2023,County,E10000019,Lincolnshire,http://statistics.data.gov.uk/doc/statistical-geography/E10000019,Month,2023-02,Lincolnshire County Council,202311,Home to School/College Transport,Contract Hire and Operating Leases,Home to School Transport 8 seats or less,100669127,324862,24x7 (Lincs) Ltd,123.18
Lincolnshire,http://opendatacommunities.org/id/county-council/lincolnshire,2023-04-27T00:00:00,TRUE,2023-02-01T00:00:00,2023-02-28T23:59:59,28/02/2023,County,E10000019,Lincolnshire,http://statistics.data.gov.uk/doc/statistical-geography/E10000019,Month,2023-02,Lincolnshire County Council,202311,Home to School/College Transport,Contract Hire and Operating Leases,Home to School Transport 8 seats or less,100669130,324862,24x7 (Lincs) Ltd,2320
Lincolnshire,http://opendatacommunities.org/id/county-council/lincolnshire,2023-04-27T00:00:00,TRUE,2023-02-01T00:00:00,2023-02-28T23:59:59,28/02/2023,County,E10000019,Lincolnshire,http://statistics.data.gov.uk/doc/statistical-geography/E10000019,Month,2023-02,Lincolnshire County Council,202311,Home to School/College Transport,Contract Hire and Operating Leases,Home to School Transport 8 seats or less,100669131,324862,24x7 (Lincs) Ltd,3320
Lincolnshire,http://opendatacommunities.org/id/county-council/lincolnshire,2023-04-27T00:00:00,TRUE,2023-02-01T00:00:00,2023-02-28T23:59:59,28/02/2023,County,E10000019,Lincolnshire,http://statistics.data.gov.uk/doc/statistical-geography/E10000019,Month,2023-02,Lincolnshire County Council,202311,Home to School/College Transport,Contract Hire and Operating Leases,Home to School Transport 8 seats or less,100669133,324862,24x7 (Lincs) Ltd,2000
Lincolnshire,http://opendatacommunities.org/id/county-council/lincolnshire,2023-04-27T00:00:00,TRUE,2023-02-01T00:00:00,2023-02-28T23:59:59,28/02/2023,County,E10000019,Lincolnshire,http://statistics.data.gov.uk/doc/statistical-geography/E10000019,Month,2023-02,Lincolnshire County Council,202311,Home to School/College Transport,Contract Hire and Operating Leases,Home to School Transport 8 seats or less,100673699,324862,24x7 (Lincs) Ltd,1148.51
Lincolnshire,http://opendatacommunities.org/id/county-council/lincolnshire,2023-04-27T00:00:00,TRUE,2023-02-01T00:00:00,2023-02-28T23:59:59,28/02/2023,County,E10000019,Lincolnshire,http://statistics.data.gov.uk/doc/statistical-geography/E10000019,Month,2023-02,Lincolnshire County Council,202311,Home to School/College Transport,Contract Hire and Operating Leases,Home to School Transport 8 seats or less,100673701,324862,24x7 (Lincs) Ltd,2746.26
Lincolnshire,http://opendatacommunities.org/id/county-council/lincolnshire,2023-04-27T00:00:00,TRUE,2023-02-01T00:00:00,2023-02-28T23:59:59,28/02/2023,County,E10000019,Lincolnshire,http://statistics.data.gov.uk/doc/statistical-geography/E10000019,Month,2023-02,Lincolnshire County Council,202311,Home to School/College Transport,Contract Hire and Operating Leases,Home to School Transport 8 seats or less,100673701,324862,24x7 (Lincs) Ltd,294.98
Lincolnshire,http://opendatacommunities.org/id/county-council/lincolnshire,2023-04-27T00:00:00,TRUE,2023-02-01T00:00:00,2023-02-28T23:59:59,28/02/2023,County,E10000019,Lincolnshire,http://statistics.data.gov.uk/doc/statistical-geography/E10000019,Month,2023-02,Lincolnshire County Council,202311,Home to School/College Transport,Contract Hire and Operating Leases,Home to School Transport 8 seats or less,100673728,324862,24x7 (Lincs) Ltd,1854.4
Lincolnshire,http://opendatacommunities.org/id/county-council/lincolnshire,2023-04-27T00:00:00,TRUE,2023-02-01T00:00:00,2023-02-28T23:59:59,28/02/2023,County,E10000019,Lincolnshire,http://statistics.data.gov.uk/doc/statistical-geography/E10000019,Month,2023-02,Lincolnshire County Council,202311,Home to School/College Transport,Contract Hire and Operating Leases,Home to School Transport 8 seats or less,100673729,324862,24x7 (Lincs) Ltd,1743.68
Lincolnshire,http://opendatacommunities.org/id/county-council/lincolnshire,2023-04-27T00:00:00,TRUE,2023-02-01T00:00:00,2023-02-28T23:59:59,28/02/2023,County,E10000019,Lincolnshire,http://statistics.data.gov.uk/doc/statistical-geography/E10000019,Month,2023-02,Lincolnshire County Council,202311,Home to School/College Transport,Contract Hire and Operating Leases,Home to School Transport 8 seats or less,100673733,324862,24x7 (Lincs) Ltd,2209.24
Lincolnshire,http://opendatacommunities.org/id/county-council/lincolnshire,2023-04-27T00:00:00,TRUE,2023-02-01T00:00:00,2023-02-28T23:59:59,28/02/2023,County,E10000019,Lincolnshire,http://statistics.data.gov.uk/doc/statistical-geography/E10000019,Month,2023-02,Lincolnshire County Council,202311,Home to School/College Transport,Contract Hire and Operating Leases,Home to School Transport 8 seats or less,100673733,324862,24x7 (Lincs) Ltd,1534.78
Lincolnshire,http://opendatacommunities.org/id/county-council/lincolnshire,2023-04-27T00:00:00,TRUE,2023-02-01T00:00:00,2023-02-28T23:59:59,28/02/2023,County,E10000019,Lincolnshire,http://statistics.data.gov.uk/doc/statistical-geography/E10000019,Month,2023-02,Lincolnshire County Council,202311,Home to School/College Transport,Contract Hire and Operating Leases,Home to School Transport 8 seats or less,100672288,324862,24x7 (Lincs) Ltd,4142.01
Lincolnshire,http://opendatacommunities.org/id/county-council/lincolnshire,2023-04-27T00:00:00,TRUE,2023-02-01T00:00:00,2023-02-28T23:59:59,28/02/2023,County,E10000019,Lincolnshire,http://statistics.data.gov.uk/doc/statistical-geography/E10000019,Month,2023-02,Lincolnshire County Council,202311,Home to School/College Transport,Contract Hire and Operating Leases,Home to School Transport 8 seats or less,100672288,324862,24x7 (Lincs) Ltd,1281.71
Lincolnshire,http://opendatacommunities.org/id/county-council/lincolnshire,2023-04-27T00:00:00,TRUE,2023-02-01T00:00:00,2023-02-28T23:59:59,28/02/2023,County,E10000019,Lincolnshire,http://statistics.data.gov.uk/doc/statistical-geography/E10000019,Month,2023-02,Lincolnshire County Council,202311,Home to School/College Transport,Contract Hire and Operating Leases,Home to School Transport 8 seats or less,100669246,324862,24x7 (Lincs) Ltd,438.29
Lincolnshire,http://opendatacommunities.org/id/county-council/lincolnshire,2023-04-27T00:00:00,TRUE,2023-02-01T00:00:00,2023-02-28T23:59:59,28/02/2023,County,E10000019,Lincolnshire,http://statistics.data.gov.uk/doc/statistical-geography/E10000019,Month,2023-02,Lincolnshire County Council,202311,Home to School/College Transport,Contract Hire and Operating Leases,Home to School Transport 8 seats or less,100669247,324862,24x7 (Lincs) Ltd,1648.19
Lincolnshire,http://opendatacommunities.org/id/county-council/lincolnshire,2023-04-27T00:00:00,TRUE,2023-02-01T00:00:00,2023-02-28T23:59:59,28/02/2023,County,E10000019,Lincolnshire,http://statistics.data.gov.uk/doc/statistical-geography/E10000019,Month,2023-02,Lincolnshire County Council,202311,Home to School/College Transport,Contract Hire and Operating Leases,Home to School Transport 8 seats or less,100669247,324862,24x7 (Lincs) Ltd,245.38
Lincolnshire,http://opendatacommunities.org/id/county-council/lincolnshire,2023-04-27T00:00:00,TRUE,2023-02-01T00:00:00,2023-02-28T23:59:59,28/02/2023,County,E10000019,Lincolnshire,http://statistics.data.gov.uk/doc/statistical-geography/E10000019,Month,2023-02,Lincolnshire County Council,202311,Home to School/College Transport,Contract Hire and Operating Leases,Home to School Transport 8 seats or less,100669247,324862,24x7 (Lincs) Ltd,301.43
Lincolnshire,http://opendatacommunities.org/id/county-council/lincolnshire,2023-04-27T00:00:00,TRUE,2023-02-01T00:00:00,2023-02-28T23:59:59,28/02/2023,County,E10000019,Lincolnshire,http://statistics.data.gov.uk/doc/statistical-geography/E10000019,Month,2023-02,Lincolnshire County Council,202311,Home to School/College Transport,Contract Hire and Operating Leases,Home to School Transport 8 seats or less,100669261,324862,24x7 (Lincs) Ltd,1106.65
Lincolnshire,http://opendatacommunities.org/id/county-council/lincolnshire,2023-04-27T00:00:00,TRUE,2023-02-01T00:00:00,2023-02-28T23:59:59,28/02/2023,County,E10000019,Lincolnshire,http://statistics.data.gov.uk/doc/statistical-geography/E10000019,Month,2023-02,Lincolnshire County Council,202311,Home to School/College Transport,Contract Hire and Operating Leases,Home to School Transport 8 seats or less,100669198,324862,24x7 (Lincs) Ltd,1581.94
Lincolnshire,http://opendatacommunities.org/id/county-council/lincolnshire,2023-04-27T00:00:00,TRUE,2023-02-01T00:00:00,2023-02-28T23:59:59,28/02/2023,County,E10000019,Lincolnshire,http://statistics.data.gov.uk/doc/statistical-geography/E10000019,Month,2023-02,Lincolnshire County Council,202311,Home to School/College Transport,Contract Hire and Operating Leases,Home to School Transport 8 seats or less,100669198,324862,24x7 (Lincs) Ltd,162.82
Lincolnshire,http://opendatacommunities.org/id/county-council/lincolnshire,2023-04-27T00:00:00,TRUE,2023-02-01T00:00:00,2023-02-28T23:59:59,28/02/2023,County,E10000019,Lincolnshire,http://statistics.data.gov.uk/doc/statistical-geography/E10000019,Month,2023-02,Lincolnshire County Council,202311,Home to School/College Transport,Contract Hire and Operating Leases,Home to School Transport 8 seats or less,100669198,324862,24x7 (Lincs) Ltd,298.25
Lincolnshire,http://opendatacommunities.org/id/county-council/lincolnshire,2023-04-27T00:00:00,TRUE,2023-02-01T00:00:00,2023-02-28T23:59:59,28/02/2023,County,E10000019,Lincolnshire,http://statistics.data.gov.uk/doc/statistical-geography/E10000019,Month,2023-02,Lincolnshire County Council,202311,Home to School/College Transport,Contract Hire and Operating Leases,Home to School Transport 8 seats or less,100669198,324862,24x7 (Lincs) Ltd,97.99
Lincolnshire,http://opendatacommunities.org/id/county-council/lincolnshire,2023-04-27T00:00:00,TRUE,2023-02-01T00:00:00,2023-02-28T23:59:59,28/02/2023,County,E10000019,Lincolnshire,http://statistics.data.gov.uk/doc/statistical-geography/E10000019,Month,2023-02,Lincolnshire County Council,202311,Home to School/College Transport,Contract Hire and Operating Leases,Home to School Transport 8 seats or less,100669261,324862,24x7 (Lincs) Ltd,729.28
Lincolnshire,http://opendatacommunities.org/id/county-council/lincolnshire,2023-04-27T00:00:00,TRUE,2023-02-01T00:00:00,2023-02-28T23:59:59,28/02/2023,County,E10000019,Lincolnshire,http://statistics.data.gov.uk/doc/statistical-geography/E10000019,Month,2023-02,Lincolnshire County Council,202311,Home to School/College Transport,Contract Hire and Operating Leases,Home to School Transport 8 seats or less,100669261,324862,24x7 (Lincs) Ltd,480.07
Lincolnshire,http://opendatacommunities.org/id/county-council/lincolnshire,2023-04-27T00:00:00,TRUE,2023-02-01T00:00:00,2023-02-28T23:59:59,28/02/2023,County,E10000019,Lincolnshire,http://statistics.data.gov.uk/doc/statistical-geography/E10000019,Month,2023-02,Lincolnshire County Council,202311,Home to School/College Transport,Contract Hire and Operating Leases,Home to School Transport 8 seats or less,100669262,324862,24x7 (Lincs) Ltd,687.89
Lincolnshire,http://opendatacommunities.org/id/county-council/lincolnshire,2023-04-27T00:00:00,TRUE,2023-02-01T00:00:00,2023-02-28T23:59:59,28/02/2023,County,E10000019,Lincolnshire,http://statistics.data.gov.uk/doc/statistical-geography/E10000019,Month,2023-02,Lincolnshire County Council,202311,Home to School/College Transport,Contract Hire and Operating Leases,Home to School Transport 8 seats or less,100669262,324862,24x7 (Lincs) Ltd,1547.3
Lincolnshire,http://opendatacommunities.org/id/county-council/lincolnshire,2023-04-27T00:00:00,TRUE,2023-02-01T00:00:00,2023-02-28T23:59:59,28/02/2023,County,E10000019,Lincolnshire,http://statistics.data.gov.uk/doc/statistical-geography/E10000019,Month,2023-02,Lincolnshire County Council,202311,Home to School/College Transport,Contract Hire and Operating Leases,Home to School Transport 8 seats or less,100669262,324862,24x7 (Lincs) Ltd,260.33
Lincolnshire,http://opendatacommunities.org/id/county-council/lincolnshire,2023-04-27T00:00:00,TRUE,2023-02-01T00:00:00,2023-02-28T23:59:59,28/02/2023,County,E10000019,Lincolnshire,http://statistics.data.gov.uk/doc/statistical-geography/E10000019,Month,2023-02,Lincolnshire County Council,202311,Home to School/College Transport,Contract Hire and Operating Leases,Home to School Transport 8 seats or less,100669198,324862,24x7 (Lincs) Ltd,326
Lincolnshire,http://opendatacommunities.org/id/county-council/lincolnshire,2023-04-27T00:00:00,TRUE,2023-02-01T00:00:00,2023-02-28T23:59:59,28/02/2023,County,E10000019,Lincolnshire,http://statistics.data.gov.uk/doc/statistical-geography/E10000019,Month,2023-02,Lincolnshire County Council,202311,Home to School/College Transport,Contract Hire and Operating Leases,Home to School Transport 8 seats or less,100669210,324862,24x7 (Lincs) Ltd,1878.15
Lincolnshire,http://opendatacommunities.org/id/county-council/lincolnshire,2023-04-27T00:00:00,TRUE,2023-02-01T00:00:00,2023-02-28T23:59:59,28/02/2023,County,E10000019,Lincolnshire,http://statistics.data.gov.uk/doc/statistical-geography/E10000019,Month,2023-02,Lincolnshire County Council,202311,Home to School/College Transport,Contract Hire and Operating Leases,Home to School Transport 8 seats or less,100669210,324862,24x7 (Lincs) Ltd,550.45
Lincolnshire,http://opendatacommunities.org/id/county-council/lincolnshire,2023-04-27T00:00:00,TRUE,2023-02-01T00:00:00,2023-02-28T23:59:59,28/02/2023,County,E10000019,Lincolnshire,http://statistics.data.gov.uk/doc/statistical-geography/E10000019,Month,2023-02,Lincolnshire County Council,202311,Home to School/College Transport,Contract Hire and Operating Leases,Home to School Transport 8 seats or less,100673876,324862,24x7 (Lincs) Ltd,667.74
Lincolnshire,http://opendatacommunities.org/id/county-council/lincolnshire,2023-04-27T00:00:00,TRUE,2023-02-01T00:00:00,2023-02-28T23:59:59,28/02/2023,County,E10000019,Lincolnshire,http://statistics.data.gov.uk/doc/statistical-geography/E10000019,Month,2023-02,Lincolnshire County Council,202311,Home to School/College Transport,Contract Hire and Operating Leases,Home to School Transport 8 seats or less,100675727,324862,24x7 (Lincs) Ltd,807.29
Lincolnshire,http://opendatacommunities.org/id/county-council/lincolnshire,2023-04-27T00:00:00,TRUE,2023-02-01T00:00:00,2023-02-28T23:59:59,28/02/2023,County,E10000019,Lincolnshire,http://statistics.data.gov.uk/doc/statistical-geography/E10000019,Month,2023-02,Lincolnshire County Council,202311,Home to School/College Transport,Contract Hire and Operating Leases,Home to School Transport 8 seats or less,100675727,324862,24x7 (Lincs) Ltd,1313.66
Lincolnshire,http://opendatacommunities.org/id/county-council/lincolnshire,2023-04-27T00:00:00,TRUE,2023-02-01T00:00:00,2023-02-28T23:59:59,28/02/2023,County,E10000019,Lincolnshire,http://statistics.data.gov.uk/doc/statistical-geography/E10000019,Month,2023-02,Lincolnshire County Council,202311,Home to School/College Transport,Contract Hire and Operating Leases,Home to School Transport 8 seats or less,100667057,324862,24x7 (Lincs) Ltd,1420
Lincolnshire,http://opendatacommunities.org/id/county-council/lincolnshire,2023-04-27T00:00:00,TRUE,2023-02-01T00:00:00,2023-02-28T23:59:59,28/02/2023,County,E10000019,Lincolnshire,http://statistics.data.gov.uk/doc/statistical-geography/E10000019,Month,2023-02,Lincolnshire County Council,202311,Home to School/College Transport,Contract Hire and Operating Leases,Home to School Transport 8 seats or less,100667058,324862,24x7 (Lincs) Ltd,2762.15
Lincolnshire,http://opendatacommunities.org/id/county-council/lincolnshire,2023-04-27T00:00:00,TRUE,2023-02-01T00:00:00,2023-02-28T23:59:59,28/02/2023,County,E10000019,Lincolnshire,http://statistics.data.gov.uk/doc/statistical-geography/E10000019,Month,2023-02,Lincolnshire County Council,202311,Home to School/College Transport,Contract Hire and Operating Leases,Home to School Transport 8 seats or less,100667059,324862,24x7 (Lincs) Ltd,1550
Lincolnshire,http://opendatacommunities.org/id/county-council/lincolnshire,2023-04-27T00:00:00,TRUE,2023-02-01T00:00:00,2023-02-28T23:59:59,28/02/2023,County,E10000019,Lincolnshire,http://statistics.data.gov.uk/doc/statistical-geography/E10000019,Month,2023-02,Lincolnshire County Council,202311,Home to School/College Transport,Contract Hire and Operating Leases,Home to School Transport 8 seats or less,100675719,324862,24x7 (Lincs) Ltd,2417.03
Lincolnshire,http://opendatacommunities.org/id/county-council/lincolnshire,2023-04-27T00:00:00,TRUE,2023-02-01T00:00:00,2023-02-28T23:59:59,28/02/2023,County,E10000019,Lincolnshire,http://statistics.data.gov.uk/doc/statistical-geography/E10000019,Month,2023-02,Lincolnshire County Council,202311,Home to School/College Transport,Contract Hire and Operating Leases,Home to School Transport 8 seats or less,100675719,324862,24x7 (Lincs) Ltd,384.79
Lincolnshire,http://opendatacommunities.org/id/county-council/lincolnshire,2023-04-27T00:00:00,TRUE,2023-02-01T00:00:00,2023-02-28T23:59:59,28/02/2023,County,E10000019,Lincolnshire,http://statistics.data.gov.uk/doc/statistical-geography/E10000019,Month,2023-02,Lincolnshire County Council,202311,Home to School/College Transport,Contract Hire and Operating Leases,Home to School Transport 8 seats or less,100675727,324862,24x7 (Lincs) Ltd,370.28
Lincolnshire,http://opendatacommunities.org/id/county-council/lincolnshire,2023-04-27T00:00:00,TRUE,2023-02-01T00:00:00,2023-02-28T23:59:59,28/02/2023,County,E10000019,Lincolnshire,http://statistics.data.gov.uk/doc/statistical-geography/E10000019,Month,2023-02,Lincolnshire County Council,202311,Home to School/College Transport,Contract Hire and Operating Leases,Home to School Transport 8 seats or less,100669382,324862,24x7 (Lincs) Ltd,3913.8
Lincolnshire,http://opendatacommunities.org/id/county-council/lincolnshire,2023-04-27T00:00:00,TRUE,2023-02-01T00:00:00,2023-02-28T23:59:59,28/02/2023,County,E10000019,Lincolnshire,http://statistics.data.gov.uk/doc/statistical-geography/E10000019,Month,2023-02,Lincolnshire County Council,202311,Home to School/College Transport,Contract Hire and Operating Leases,Home to School Transport 8 seats or less,100669111,324862,24x7 (Lincs) Ltd,1321.6
Lincolnshire,http://opendatacommunities.org/id/county-council/lincolnshire,2023-04-27T00:00:00,TRUE,2023-02-01T00:00:00,2023-02-28T23:59:59,28/02/2023,County,E10000019,Lincolnshire,http://statistics.data.gov.uk/doc/statistical-geography/E10000019,Month,2023-02,Lincolnshire County Council,202311,Home to School/College Transport,Contract Hire and Operating Leases,Home to School Transport 8 seats or less,100669074,324862,24x7 (Lincs) Ltd,1917.36
Lincolnshire,http://opendatacommunities.org/id/county-council/lincolnshire,2023-04-27T00:00:00,TRUE,2023-02-01T00:00:00,2023-02-28T23:59:59,28/02/2023,County,E10000019,Lincolnshire,http://statistics.data.gov.uk/doc/statistical-geography/E10000019,Month,2023-02,Lincolnshire County Council,202311,Home to School/College Transport,Contract Hire and Operating Leases,Home to School Transport 8 seats or less,100669074,324862,24x7 (Lincs) Ltd,585.04
Lincolnshire,http://opendatacommunities.org/id/county-council/lincolnshire,2023-04-27T00:00:00,TRUE,2023-02-01T00:00:00,2023-02-28T23:59:59,28/02/2023,County,E10000019,Lincolnshire,http://statistics.data.gov.uk/doc/statistical-geography/E10000019,Month,2023-02,Lincolnshire County Council,202311,Home to School/College Transport,Contract Hire and Operating Leases,Home to School Transport 8 seats or less,100669072,324862,24x7 (Lincs) Ltd,133
Lincolnshire,http://opendatacommunities.org/id/county-council/lincolnshire,2023-04-27T00:00:00,TRUE,2023-02-01T00:00:00,2023-02-28T23:59:59,28/02/2023,County,E10000019,Lincolnshire,http://statistics.data.gov.uk/doc/statistical-geography/E10000019,Month,2023-02,Lincolnshire County Council,202311,Home to School/College Transport,Contract Hire and Operating Leases,Home to School Transport 8 seats or less,100669142,324862,24x7 (Lincs) Ltd,837.25
Lincolnshire,http://opendatacommunities.org/id/county-council/lincolnshire,2023-04-27T00:00:00,TRUE,2023-02-01T00:00:00,2023-02-28T23:59:59,28/02/2023,County,E10000019,Lincolnshire,http://statistics.data.gov.uk/doc/statistical-geography/E10000019,Month,2023-02,Lincolnshire County Council,202311,Home to School/College Transport,Contract Hire and Operating Leases,Home to School Transport 8 seats or less,100669142,324862,24x7 (Lincs) Ltd,149.53
Lincolnshire,http://opendatacommunities.org/id/county-council/lincolnshire,2023-04-27T00:00:00,TRUE,2023-02-01T00:00:00,2023-02-28T23:59:59,28/02/2023,County,E10000019,Lincolnshire,http://statistics.data.gov.uk/doc/statistical-geography/E10000019,Month,2023-02,Lincolnshire County Council,202311,Home to School/College Transport,Contract Hire and Operating Leases,Home to School Transport 8 seats or less,100669142,324862,24x7 (Lincs) Ltd,497.42
Lincolnshire,http://opendatacommunities.org/id/county-council/lincolnshire,2023-04-27T00:00:00,TRUE,2023-02-01T00:00:00,2023-02-28T23:59:59,28/02/2023,County,E10000019,Lincolnshire,http://statistics.data.gov.uk/doc/statistical-geography/E10000019,Month,2023-02,Lincolnshire County Council,202311,Home to School/College Transport,Contract Hire and Operating Leases,Home to School Transport 8 seats or less,100669132,324862,24x7 (Lincs) Ltd,3495.69
Lincolnshire,http://opendatacommunities.org/id/county-council/lincolnshire,2023-04-27T00:00:00,TRUE,2023-02-01T00:00:00,2023-02-28T23:59:59,28/02/2023,County,E10000019,Lincolnshire,http://statistics.data.gov.uk/doc/statistical-geography/E10000019,Month,2023-02,Lincolnshire County Council,202311,Home to School/College Transport,Contract Hire and Operating Leases,Home to School Transport 8 seats or less,100669132,324862,24x7 (Lincs) Ltd,151.74
Lincolnshire,http://opendatacommunities.org/id/county-council/lincolnshire,2023-04-27T00:00:00,TRUE,2023-02-01T00:00:00,2023-02-28T23:59:59,28/02/2023,County,E10000019,Lincolnshire,http://statistics.data.gov.uk/doc/statistical-geography/E10000019,Month,2023-02,Lincolnshire County Council,202311,Home to School/College Transport,Contract Hire and Operating Leases,Home to School Transport 8 seats or less,100669132,324862,24x7 (Lincs) Ltd,152.57
Lincolnshire,http://opendatacommunities.org/id/county-council/lincolnshire,2023-04-27T00:00:00,TRUE,2023-02-01T00:00:00,2023-02-28T23:59:59,28/02/2023,County,E10000019,Lincolnshire,http://statistics.data.gov.uk/doc/statistical-geography/E10000019,Month,2023-02,Lincolnshire County Council,202311,Home to School/College Transport,Contract Hire and Operating Leases,Home to School Transport 8 seats or less,100669141,324862,24x7 (Lincs) Ltd,4000
Lincolnshire,http://opendatacommunities.org/id/county-council/lincolnshire,2023-04-27T00:00:00,TRUE,2023-02-01T00:00:00,2023-02-28T23:59:59,28/02/2023,County,E10000019,Lincolnshire,http://statistics.data.gov.uk/doc/statistical-geography/E10000019,Month,2023-02,Lincolnshire County Council,202311,Home to School/College Transport,Contract Hire and Operating Leases,Home to School Transport 8 seats or less,100669140,324862,24x7 (Lincs) Ltd,779.27
Lincolnshire,http://opendatacommunities.org/id/county-council/lincolnshire,2023-04-27T00:00:00,TRUE,2023-02-01T00:00:00,2023-02-28T23:59:59,28/02/2023,County,E10000019,Lincolnshire,http://statistics.data.gov.uk/doc/statistical-geography/E10000019,Month,2023-02,Lincolnshire County Council,202311,Home to School/College Transport,Contract Hire and Operating Leases,Home to School Transport 8 seats or less,100669140,324862,24x7 (Lincs) Ltd,500.26
Lincolnshire,http://opendatacommunities.org/id/county-council/lincolnshire,2023-04-27T00:00:00,TRUE,2023-02-01T00:00:00,2023-02-28T23:59:59,28/02/2023,County,E10000019,Lincolnshire,http://statistics.data.gov.uk/doc/statistical-geography/E10000019,Month,2023-02,Lincolnshire County Council,202311,Home to School/College Transport,Contract Hire and Operating Leases,Home to School Transport 8 seats or less,100669140,324862,24x7 (Lincs) Ltd,349.67
Lincolnshire,http://opendatacommunities.org/id/county-council/lincolnshire,2023-04-27T00:00:00,TRUE,2023-02-01T00:00:00,2023-02-28T23:59:59,28/02/2023,County,E10000019,Lincolnshire,http://statistics.data.gov.uk/doc/statistical-geography/E10000019,Month,2023-02,Lincolnshire County Council,202311,Home to School/College Transport,Contract Hire and Operating Leases,Home to School Transport 8 seats or less,100669145,324862,24x7 (Lincs) Ltd,1195.25
Lincolnshire,http://opendatacommunities.org/id/county-council/lincolnshire,2023-04-27T00:00:00,TRUE,2023-02-01T00:00:00,2023-02-28T23:59:59,28/02/2023,County,E10000019,Lincolnshire,http://statistics.data.gov.uk/doc/statistical-geography/E10000019,Month,2023-02,Lincolnshire County Council,202311,Home to School/College Transport,Contract Hire and Operating Leases,Home to School Transport 8 seats or less,100669072,324862,24x7 (Lincs) Ltd,72.05
Lincolnshire,http://opendatacommunities.org/id/county-council/lincolnshire,2023-04-27T00:00:00,TRUE,2023-02-01T00:00:00,2023-02-28T23:59:59,28/02/2023,County,E10000019,Lincolnshire,http://statistics.data.gov.uk/doc/statistical-geography/E10000019,Month,2023-02,Lincolnshire County Council,202311,Home to School/College Transport,Contract Hire and Operating Leases,Home to School Transport 8 seats or less,100669115,324862,24x7 (Lincs) Ltd,4932
Lincolnshire,http://opendatacommunities.org/id/county-council/lincolnshire,2023-04-27T00:00:00,TRUE,2023-02-01T00:00:00,2023-02-28T23:59:59,28/02/2023,County,E10000019,Lincolnshire,http://statistics.data.gov.uk/doc/statistical-geography/E10000019,Month,2023-02,Lincolnshire County Council,202311,Home to School/College Transport,Contract Hire and Operating Leases,Home to School Transport 8 seats or less,100669117,324862,24x7 (Lincs) Ltd,2750
Lincolnshire,http://opendatacommunities.org/id/county-council/lincolnshire,2023-04-27T00:00:00,TRUE,2023-02-01T00:00:00,2023-02-28T23:59:59,28/02/2023,County,E10000019,Lincolnshire,http://statistics.data.gov.uk/doc/statistical-geography/E10000019,Month,2023-02,Lincolnshire County Council,202311,Home to School/College Transport,Contract Hire and Operating Leases,Home to School Transport 8 seats or less,100669120,324862,24x7 (Lincs) Ltd,869.02
Lincolnshire,http://opendatacommunities.org/id/county-council/lincolnshire,2023-04-27T00:00:00,TRUE,2023-02-01T00:00:00,2023-02-28T23:59:59,28/02/2023,County,E10000019,Lincolnshire,http://statistics.data.gov.uk/doc/statistical-geography/E10000019,Month,2023-02,Lincolnshire County Council,202311,Home to School/College Transport,Contract Hire and Operating Leases,Home to School Transport 8 seats or less,100669120,324862,24x7 (Lincs) Ltd,4914.98
Lincolnshire,http://opendatacommunities.org/id/county-council/lincolnshire,2023-04-27T00:00:00,TRUE,2023-02-01T00:00:00,2023-02-28T23:59:59,28/02/2023,County,E10000019,Lincolnshire,http://statistics.data.gov.uk/doc/statistical-geography/E10000019,Month,2023-02,Lincolnshire County Council,202311,Home to School/College Transport,Contract Hire and Operating Leases,Home to School Transport 8 seats or less,100669121,324862,24x7 (Lincs) Ltd,3630
Lincolnshire,http://opendatacommunities.org/id/county-council/lincolnshire,2023-04-27T00:00:00,TRUE,2023-02-01T00:00:00,2023-02-28T23:59:59,28/02/2023,County,E10000019,Lincolnshire,http://statistics.data.gov.uk/doc/statistical-geography/E10000019,Month,2023-02,Lincolnshire County Council,202311,Home to School/College Transport,Contract Hire and Operating Leases,Home to School Transport 8 seats or less,100669118,324862,24x7 (Lincs) Ltd,2920
Lincolnshire,http://opendatacommunities.org/id/county-council/lincolnshire,2023-04-27T00:00:00,TRUE,2023-02-01T00:00:00,2023-02-28T23:59:59,28/02/2023,County,E10000019,Lincolnshire,http://statistics.data.gov.uk/doc/statistical-geography/E10000019,Month,2023-02,Lincolnshire County Council,202311,Home to School/College Transport,Contract Hire and Operating Leases,Home to School Transport 8 seats or less,100669119,324862,24x7 (Lincs) Ltd,4616
Lincolnshire,http://opendatacommunities.org/id/county-council/lincolnshire,2023-04-27T00:00:00,TRUE,2023-02-01T00:00:00,2023-02-28T23:59:59,28/02/2023,County,E10000019,Lincolnshire,http://statistics.data.gov.uk/doc/statistical-geography/E10000019,Month,2023-02,Lincolnshire County Council,202311,Home to School/College Transport,Contract Hire and Operating Leases,Home to School Transport 8 seats or less,100669116,324862,24x7 (Lincs) Ltd,2035.48
Lincolnshire,http://opendatacommunities.org/id/county-council/lincolnshire,2023-04-27T00:00:00,TRUE,2023-02-01T00:00:00,2023-02-28T23:59:59,28/02/2023,County,E10000019,Lincolnshire,http://statistics.data.gov.uk/doc/statistical-geography/E10000019,Month,2023-02,Lincolnshire County Council,202311,Home to School/College Transport,Contract Hire and Operating Leases,Home to School Transport 8 seats or less,100669116,324862,24x7 (Lincs) Ltd,157.45
Lincolnshire,http://opendatacommunities.org/id/county-council/lincolnshire,2023-04-27T00:00:00,TRUE,2023-02-01T00:00:00,2023-02-28T23:59:59,28/02/2023,County,E10000019,Lincolnshire,http://statistics.data.gov.uk/doc/statistical-geography/E10000019,Month,2023-02,Lincolnshire County Council,202311,Home to School/College Transport,Contract Hire and Operating Leases,Home to School Transport 8 seats or less,100669116,324862,24x7 (Lincs) Ltd,287.07
Lincolnshire,http://opendatacommunities.org/id/county-council/lincolnshire,2023-04-27T00:00:00,TRUE,2023-02-01T00:00:00,2023-02-28T23:59:59,28/02/2023,County,E10000019,Lincolnshire,http://statistics.data.gov.uk/doc/statistical-geography/E10000019,Month,2023-02,Lincolnshire County Council,202311,Home to School/College Transport,Contract Hire and Operating Leases,Home to School Transport 8 seats or less,100669123,324862,24x7 (Lincs) Ltd,32.53
Lincolnshire,http://opendatacommunities.org/id/county-council/lincolnshire,2023-04-27T00:00:00,TRUE,2023-02-01T00:00:00,2023-02-28T23:59:59,28/02/2023,County,E10000019,Lincolnshire,http://statistics.data.gov.uk/doc/statistical-geography/E10000019,Month,2023-02,Lincolnshire County Council,202311,Home to School/College Transport,Contract Hire and Operating Leases,Home to School Transport 8 seats or less,100669125,324862,24x7 (Lincs) Ltd,1506.6
Lincolnshire,http://opendatacommunities.org/id/county-council/lincolnshire,2023-04-27T00:00:00,TRUE,2023-02-01T00:00:00,2023-02-28T23:59:59,28/02/2023,County,E10000019,Lincolnshire,http://statistics.data.gov.uk/doc/statistical-geography/E10000019,Month,2023-02,Lincolnshire County Council,202311,Home to School/College Transport,Contract Hire and Operating Leases,Home to School Transport 8 seats or less,100669127,324862,24x7 (Lincs) Ltd,780.88
Lincolnshire,http://opendatacommunities.org/id/county-council/lincolnshire,2023-04-27T00:00:00,TRUE,2023-02-01T00:00:00,2023-02-28T23:59:59,28/02/2023,County,E10000019,Lincolnshire,http://statistics.data.gov.uk/doc/statistical-geography/E10000019,Month,2023-02,Lincolnshire County Council,202311,Home to School/College Transport,Contract Hire and Operating Leases,Home to School Transport 8 seats or less,100675761,324862,24x7 (Lincs) Ltd,1171.66
Lincolnshire,http://opendatacommunities.org/id/county-council/lincolnshire,2023-04-27T00:00:00,TRUE,2023-02-01T00:00:00,2023-02-28T23:59:59,28/02/2023,County,E10000019,Lincolnshire,http://statistics.data.gov.uk/doc/statistical-geography/E10000019,Month,2023-02,Lincolnshire County Council,202311,Home to School/College Transport,Contract Hire and Operating Leases,Home to School Transport 8 seats or less,100675761,324862,24x7 (Lincs) Ltd,2268.34
Lincolnshire,http://opendatacommunities.org/id/county-council/lincolnshire,2023-04-27T00:00:00,TRUE,2023-02-01T00:00:00,2023-02-28T23:59:59,28/02/2023,County,E10000019,Lincolnshire,http://statistics.data.gov.uk/doc/statistical-geography/E10000019,Month,2023-02,Lincolnshire County Council,202311,Home to School/College Transport,Contract Hire and Operating Leases,Home to School Transport 8 seats or less,100673876,324862,24x7 (Lincs) Ltd,814.02
Lincolnshire,http://opendatacommunities.org/id/county-council/lincolnshire,2023-04-27T00:00:00,TRUE,2023-02-01T00:00:00,2023-02-28T23:59:59,28/02/2023,County,E10000019,Lincolnshire,http://statistics.data.gov.uk/doc/statistical-geography/E10000019,Month,2023-02,Lincolnshire County Council,202311,Home to School/College Transport,Contract Hire and Operating Leases,Home to School Transport 8 seats or less,100673877,324862,24x7 (Lincs) Ltd,903
Lincolnshire,http://opendatacommunities.org/id/county-council/lincolnshire,2023-04-27T00:00:00,TRUE,2023-02-01T00:00:00,2023-02-28T23:59:59,28/02/2023,County,E10000019,Lincolnshire,http://statistics.data.gov.uk/doc/statistical-geography/E10000019,Month,2023-02,Lincolnshire County Council,202311,Home to School/College Transport,Contract Hire and Operating Leases,Home to School Transport 8 seats or less,100673877,324862,24x7 (Lincs) Ltd,903
Lincolnshire,http://opendatacommunities.org/id/county-council/lincolnshire,2023-04-27T00:00:00,TRUE,2023-02-01T00:00:00,2023-02-28T23:59:59,28/02/2023,County,E10000019,Lincolnshire,http://statistics.data.gov.uk/doc/statistical-geography/E10000019,Month,2023-02,Lincolnshire County Council,202311,Home to School/College Transport,Contract Hire and Operating Leases,Home to School Transport 8 seats or less,100673886,324862,24x7 (Lincs) Ltd,1578.37
Lincolnshire,http://opendatacommunities.org/id/county-council/lincolnshire,2023-04-27T00:00:00,TRUE,2023-02-01T00:00:00,2023-02-28T23:59:59,28/02/2023,County,E10000019,Lincolnshire,http://statistics.data.gov.uk/doc/statistical-geography/E10000019,Month,2023-02,Lincolnshire County Council,202311,Home to School/College Transport,Contract Hire and Operating Leases,Home to School Transport 8 seats or less,100673886,324862,24x7 (Lincs) Ltd,478.67
Lincolnshire,http://opendatacommunities.org/id/county-council/lincolnshire,2023-04-27T00:00:00,TRUE,2023-02-01T00:00:00,2023-02-28T23:59:59,28/02/2023,County,E10000019,Lincolnshire,http://statistics.data.gov.uk/doc/statistical-geography/E10000019,Month,2023-02,Lincolnshire County Council,202311,Home to School/College Transport,Contract Hire and Operating Leases,Home to School Transport 8 seats or less,100673886,324862,24x7 (Lincs) Ltd,342.96
Lincolnshire,http://opendatacommunities.org/id/county-council/lincolnshire,2023-04-27T00:00:00,TRUE,2023-02-01T00:00:00,2023-02-28T23:59:59,28/02/2023,County,E10000019,Lincolnshire,http://statistics.data.gov.uk/doc/statistical-geography/E10000019,Month,2023-02,Lincolnshire County Council,202311,Home to School/College Transport,Contract Hire and Operating Leases,Home to School Transport 8 seats or less,100669112,324862,24x7 (Lincs) Ltd,1344.79
Lincolnshire,http://opendatacommunities.org/id/county-council/lincolnshire,2023-04-27T00:00:00,TRUE,2023-02-01T00:00:00,2023-02-28T23:59:59,28/02/2023,County,E10000019,Lincolnshire,http://statistics.data.gov.uk/doc/statistical-geography/E10000019,Month,2023-02,Lincolnshire County Council,202311,Home to School/College Transport,Contract Hire and Operating Leases,Home to School Transport 8 seats or less,100669112,324862,24x7 (Lincs) Ltd,260.44
Lincolnshire,http://opendatacommunities.org/id/county-council/lincolnshire,2023-04-27T00:00:00,TRUE,2023-02-01T00:00:00,2023-02-28T23:59:59,28/02/2023,County,E10000019,Lincolnshire,http://statistics.data.gov.uk/doc/statistical-geography/E10000019,Month,2023-02,Lincolnshire County Council,202311,Home to School/College Transport,Contract Hire and Operating Leases,Home to School Transport 8 seats or less,100669112,324862,24x7 (Lincs) Ltd,542.17
Lincolnshire,http://opendatacommunities.org/id/county-council/lincolnshire,2023-04-27T00:00:00,TRUE,2023-02-01T00:00:00,2023-02-28T23:59:59,28/02/2023,County,E10000019,Lincolnshire,http://statistics.data.gov.uk/doc/statistical-geography/E10000019,Month,2023-02,Lincolnshire County Council,202311,Home to School/College Transport,Contract Hire and Operating Leases,Home to School Transport 8 seats or less,100669113,324862,24x7 (Lincs) Ltd,1000.93
Lincolnshire,http://opendatacommunities.org/id/county-council/lincolnshire,2023-04-27T00:00:00,TRUE,2023-02-01T00:00:00,2023-02-28T23:59:59,28/02/2023,County,E10000019,Lincolnshire,http://statistics.data.gov.uk/doc/statistical-geography/E10000019,Month,2023-02,Lincolnshire County Council,202311,Home to School/College Transport,Contract Hire and Operating Leases,Home to School Transport 8 seats or less,100669113,324862,24x7 (Lincs) Ltd,516.47
Lincolnshire,http://opendatacommunities.org/id/county-council/lincolnshire,2023-04-27T00:00:00,TRUE,2023-02-01T00:00:00,2023-02-28T23:59:59,28/02/2023,County,E10000019,Lincolnshire,http://statistics.data.gov.uk/doc/statistical-geography/E10000019,Month,2023-02,Lincolnshire County Council,202311,Home to School/College Transport,Contract Hire and Operating Leases,Home to School Transport 8 seats or less,100669113,324862,24x7 (Lincs) Ltd,114.2
Lincolnshire,http://opendatacommunities.org/id/county-council/lincolnshire,2023-04-27T00:00:00,TRUE,2023-02-01T00:00:00,2023-02-28T23:59:59,28/02/2023,County,E10000019,Lincolnshire,http://statistics.data.gov.uk/doc/statistical-geography/E10000019,Month,2023-02,Lincolnshire County Council,202311,Home to School/College Transport,Contract Hire and Operating Leases,Home to School Transport 8 seats or less,100669071,324862,24x7 (Lincs) Ltd,533.7
Lincolnshire,http://opendatacommunities.org/id/county-council/lincolnshire,2023-04-27T00:00:00,TRUE,2023-02-01T00:00:00,2023-02-28T23:59:59,28/02/2023,County,E10000019,Lincolnshire,http://statistics.data.gov.uk/doc/statistical-geography/E10000019,Month,2023-02,Lincolnshire County Council,202311,Home to School/College Transport,Contract Hire and Operating Leases,Home to School Transport 8 seats or less,100669071,324862,24x7 (Lincs) Ltd,769.41
Lincolnshire,http://opendatacommunities.org/id/county-council/lincolnshire,2023-04-27T00:00:00,TRUE,2023-02-01T00:00:00,2023-02-28T23:59:59,28/02/2023,County,E10000019,Lincolnshire,http://statistics.data.gov.uk/doc/statistical-geography/E10000019,Month,2023-02,Lincolnshire County Council,202311,Home to School/College Transport,Contract Hire and Operating Leases,Home to School Transport 8 seats or less,100669071,324862,24x7 (Lincs) Ltd,338.09
Lincolnshire,http://opendatacommunities.org/id/county-council/lincolnshire,2023-04-27T00:00:00,TRUE,2023-02-01T00:00:00,2023-02-28T23:59:59,28/02/2023,County,E10000019,Lincolnshire,http://statistics.data.gov.uk/doc/statistical-geography/E10000019,Month,2023-02,Lincolnshire County Council,202311,Home to School/College Transport,Contract Hire and Operating Leases,Home to School Transport 8 seats or less,100669075,324862,24x7 (Lincs) Ltd,362.9
Lincolnshire,http://opendatacommunities.org/id/county-council/lincolnshire,2023-04-27T00:00:00,TRUE,2023-02-01T00:00:00,2023-02-28T23:59:59,28/02/2023,County,E10000019,Lincolnshire,http://statistics.data.gov.uk/doc/statistical-geography/E10000019,Month,2023-02,Lincolnshire County Council,202311,Home to School/College Transport,Contract Hire and Operating Leases,Home to School Transport 8 seats or less,100669075,324862,24x7 (Lincs) Ltd,376.18
Lincolnshire,http://opendatacommunities.org/id/county-council/lincolnshire,2023-04-27T00:00:00,TRUE,2023-02-01T00:00:00,2023-02-28T23:59:59,28/02/2023,County,E10000019,Lincolnshire,http://statistics.data.gov.uk/doc/statistical-geography/E10000019,Month,2023-02,Lincolnshire County Council,202311,Home to School/College Transport,Contract Hire and Operating Leases,Home to School Transport 8 seats or less,100669075,324862,24x7 (Lincs) Ltd,402.13
Lincolnshire,http://opendatacommunities.org/id/county-council/lincolnshire,2023-04-27T00:00:00,TRUE,2023-02-01T00:00:00,2023-02-28T23:59:59,28/02/2023,County,E10000019,Lincolnshire,http://statistics.data.gov.uk/doc/statistical-geography/E10000019,Month,2023-02,Lincolnshire County Council,202311,Home to School/College Transport,Contract Hire and Operating Leases,Home to School Transport 8 seats or less,100669075,324862,24x7 (Lincs) Ltd,411
Lincolnshire,http://opendatacommunities.org/id/county-council/lincolnshire,2023-04-27T00:00:00,TRUE,2023-02-01T00:00:00,2023-02-28T23:59:59,28/02/2023,County,E10000019,Lincolnshire,http://statistics.data.gov.uk/doc/statistical-geography/E10000019,Month,2023-02,Lincolnshire County Council,202311,Home to School/College Transport,Contract Hire and Operating Leases,Home to School Transport 8 seats or less,100669072,324862,24x7 (Lincs) Ltd,1192.95
Lincolnshire,http://opendatacommunities.org/id/county-council/lincolnshire,2023-04-27T00:00:00,TRUE,2023-02-01T00:00:00,2023-02-28T23:59:59,28/02/2023,County,E10000019,Lincolnshire,http://statistics.data.gov.uk/doc/statistical-geography/E10000019,Month,2023-02,Lincolnshire County Council,202311,Home to School/College Transport,Contract Hire and Operating Leases,Home to School Transport 8 seats or less,100669135,324862,24x7 (Lincs) Ltd,685.89
Lincolnshire,http://opendatacommunities.org/id/county-council/lincolnshire,2023-04-27T00:00:00,TRUE,2023-02-01T00:00:00,2023-02-28T23:59:59,28/02/2023,County,E10000019,Lincolnshire,http://statistics.data.gov.uk/doc/statistical-geography/E10000019,Month,2023-02,Lincolnshire County Council,202311,Home to School/College Transport,Contract Hire and Operating Leases,Home to School Transport 8 seats or less,100669135,324862,24x7 (Lincs) Ltd,1697.15
Lincolnshire,http://opendatacommunities.org/id/county-council/lincolnshire,2023-04-27T00:00:00,TRUE,2023-02-01T00:00:00,2023-02-28T23:59:59,28/02/2023,County,E10000019,Lincolnshire,http://statistics.data.gov.uk/doc/statistical-geography/E10000019,Month,2023-02,Lincolnshire County Council,202311,Home to School/College Transport,Contract Hire and Operating Leases,Home to School Transport 8 seats or less,100669136,324862,24x7 (Lincs) Ltd,149.41
Lincolnshire,http://opendatacommunities.org/id/county-council/lincolnshire,2023-04-27T00:00:00,TRUE,2023-02-01T00:00:00,2023-02-28T23:59:59,28/02/2023,County,E10000019,Lincolnshire,http://statistics.data.gov.uk/doc/statistical-geography/E10000019,Month,2023-02,Lincolnshire County Council,202311,Home to School/College Transport,Contract Hire and Operating Leases,Home to School Transport 8 seats or less,100669136,324862,24x7 (Lincs) Ltd,561.42
Lincolnshire,http://opendatacommunities.org/id/county-council/lincolnshire,2023-04-27T00:00:00,TRUE,2023-02-01T00:00:00,2023-02-28T23:59:59,28/02/2023,County,E10000019,Lincolnshire,http://statistics.data.gov.uk/doc/statistical-geography/E10000019,Month,2023-02,Lincolnshire County Council,202311,Home to School/College Transport,Contract Hire and Operating Leases,Home to School Transport 8 seats or less,100669136,324862,24x7 (Lincs) Ltd,149.24
Lincolnshire,http://opendatacommunities.org/id/county-council/lincolnshire,2023-04-27T00:00:00,TRUE,2023-02-01T00:00:00,2023-02-28T23:59:59,28/02/2023,County,E10000019,Lincolnshire,http://statistics.data.gov.uk/doc/statistical-geography/E10000019,Month,2023-02,Lincolnshire County Council,202311,Home to School/College Transport,Contract Hire and Operating Leases,Home to School Transport 8 seats or less,100669136,324862,24x7 (Lincs) Ltd,609.53
Lincolnshire,http://opendatacommunities.org/id/county-council/lincolnshire,2023-04-27T00:00:00,TRUE,2023-02-01T00:00:00,2023-02-28T23:59:59,28/02/2023,County,E10000019,Lincolnshire,http://statistics.data.gov.uk/doc/statistical-geography/E10000019,Month,2023-02,Lincolnshire County Council,202311,Home to School/College Transport,Contract Hire and Operating Leases,Home to School Transport 8 seats or less,100669137,324862,24x7 (Lincs) Ltd,1904
Lincolnshire,http://opendatacommunities.org/id/county-council/lincolnshire,2023-04-27T00:00:00,TRUE,2023-02-01T00:00:00,2023-02-28T23:59:59,28/02/2023,County,E10000019,Lincolnshire,http://statistics.data.gov.uk/doc/statistical-geography/E10000019,Month,2023-02,Lincolnshire County Council,202311,Home to School/College Transport,Contract Hire and Operating Leases,Home to School Transport 8 seats or less,100669138,324862,24x7 (Lincs) Ltd,1579.76
Lincolnshire,http://opendatacommunities.org/id/county-council/lincolnshire,2023-04-27T00:00:00,TRUE,2023-02-01T00:00:00,2023-02-28T23:59:59,28/02/2023,County,E10000019,Lincolnshire,http://statistics.data.gov.uk/doc/statistical-geography/E10000019,Month,2023-02,Lincolnshire County Council,202311,Home to School/College Transport,Contract Hire and Operating Leases,Home to School Transport 8 seats or less,100669138,324862,24x7 (Lincs) Ltd,347.88
Lincolnshire,http://opendatacommunities.org/id/county-council/lincolnshire,2023-04-27T00:00:00,TRUE,2023-02-01T00:00:00,2023-02-28T23:59:59,28/02/2023,County,E10000019,Lincolnshire,http://statistics.data.gov.uk/doc/statistical-geography/E10000019,Month,2023-02,Lincolnshire County Council,202311,Home to School/College Transport,Contract Hire and Operating Leases,Home to School Transport 8 seats or less,100669138,324862,24x7 (Lincs) Ltd,383.16
Lincolnshire,http://opendatacommunities.org/id/county-council/lincolnshire,2023-04-27T00:00:00,TRUE,2023-02-01T00:00:00,2023-02-28T23:59:59,28/02/2023,County,E10000019,Lincolnshire,http://statistics.data.gov.uk/doc/statistical-geography/E10000019,Month,2023-02,Lincolnshire County Council,202311,Home to School/College Transport,Contract Hire and Operating Leases,Home to School Transport 8 seats or less,100669139,324862,24x7 (Lincs) Ltd,2240
Lincolnshire,http://opendatacommunities.org/id/county-council/lincolnshire,2023-04-27T00:00:00,TRUE,2023-02-01T00:00:00,2023-02-28T23:59:59,28/02/2023,County,E10000019,Lincolnshire,http://statistics.data.gov.uk/doc/statistical-geography/E10000019,Month,2023-02,Lincolnshire County Council,202311,Home to School/College Transport,Contract Hire and Operating Leases,Home to School Transport 8 seats or less,100669143,324862,24x7 (Lincs) Ltd,1860
Lincolnshire,http://opendatacommunities.org/id/county-council/lincolnshire,2023-04-27T00:00:00,TRUE,2023-02-01T00:00:00,2023-02-28T23:59:59,28/02/2023,County,E10000019,Lincolnshire,http://statistics.data.gov.uk/doc/statistical-geography/E10000019,Month,2023-02,Lincolnshire County Council,202311,Home to School/College Transport,Contract Hire and Operating Leases,Home to School Transport 8 seats or less,100669145,324862,24x7 (Lincs) Ltd,239.05
Lincolnshire,http://opendatacommunities.org/id/county-council/lincolnshire,2023-04-27T00:00:00,TRUE,2023-02-01T00:00:00,2023-02-28T23:59:59,28/02/2023,County,E10000019,Lincolnshire,http://statistics.data.gov.uk/doc/statistical-geography/E10000019,Month,2023-02,Lincolnshire County Council,202311,Home to School/College Transport,Contract Hire and Operating Leases,Home to School Transport 8 seats or less,100669145,324862,24x7 (Lincs) Ltd,239.05
Lincolnshire,http://opendatacommunities.org/id/county-council/lincolnshire,2023-04-27T00:00:00,TRUE,2023-02-01T00:00:00,2023-02-28T23:59:59,28/02/2023,County,E10000019,Lincolnshire,http://statistics.data.gov.uk/doc/statistical-geography/E10000019,Month,2023-02,Lincolnshire County Council,202311,Home to School/College Transport,Contract Hire and Operating Leases,Home to School Transport 8 seats or less,100669145,324862,24x7 (Lincs) Ltd,239.05
Lincolnshire,http://opendatacommunities.org/id/county-council/lincolnshire,2023-04-27T00:00:00,TRUE,2023-02-01T00:00:00,2023-02-28T23:59:59,28/02/2023,County,E10000019,Lincolnshire,http://statistics.data.gov.uk/doc/statistical-geography/E10000019,Month,2023-02,Lincolnshire County Council,202311,Home to School/College Transport,Contract Hire and Operating Leases,Home to School Transport 8 seats or less,100669073,324862,24x7 (Lincs) Ltd,1463.85
Lincolnshire,http://opendatacommunities.org/id/county-council/lincolnshire,2023-04-27T00:00:00,TRUE,2023-02-01T00:00:00,2023-02-28T23:59:59,28/02/2023,County,E10000019,Lincolnshire,http://statistics.data.gov.uk/doc/statistical-geography/E10000019,Month,2023-02,Lincolnshire County Council,202311,Home to School/College Transport,Contract Hire and Operating Leases,Home to School Transport 8 seats or less,100669073,324862,24x7 (Lincs) Ltd,86.75
Lincolnshire,http://opendatacommunities.org/id/county-council/lincolnshire,2023-04-27T00:00:00,TRUE,2023-02-01T00:00:00,2023-02-28T23:59:59,28/02/2023,County,E10000019,Lincolnshire,http://statistics.data.gov.uk/doc/statistical-geography/E10000019,Month,2023-02,Lincolnshire County Council,202311,Home to School/College Transport,Contract Hire and Operating Leases,Home to School Transport 8 seats or less,100669075,324862,24x7 (Lincs) Ltd,352.59
Lincolnshire,http://opendatacommunities.org/id/county-council/lincolnshire,2023-04-27T00:00:00,TRUE,2023-02-01T00:00:00,2023-02-28T23:59:59,28/02/2023,County,E10000019,Lincolnshire,http://statistics.data.gov.uk/doc/statistical-geography/E10000019,Month,2023-02,Lincolnshire County Council,202311,Home to School/College Transport,Contract Hire and Operating Leases,Home to School Transport 8 seats or less,100669076,324862,24x7 (Lincs) Ltd,1125.62
Lincolnshire,http://opendatacommunities.org/id/county-council/lincolnshire,2023-04-27T00:00:00,TRUE,2023-02-01T00:00:00,2023-02-28T23:59:59,28/02/2023,County,E10000019,Lincolnshire,http://statistics.data.gov.uk/doc/statistical-geography/E10000019,Month,2023-02,Lincolnshire County Council,202311,Home to School/College Transport,Contract Hire and Operating Leases,Home to School Transport 8 seats or less,100669076,324862,24x7 (Lincs) Ltd,295.83
Lincolnshire,http://opendatacommunities.org/id/county-council/lincolnshire,2023-04-27T00:00:00,TRUE,2023-02-01T00:00:00,2023-02-28T23:59:59,28/02/2023,County,E10000019,Lincolnshire,http://statistics.data.gov.uk/doc/statistical-geography/E10000019,Month,2023-02,Lincolnshire County Council,202311,Home to School/College Transport,Contract Hire and Operating Leases,Home to School Transport 8 seats or less,100669076,324862,24x7 (Lincs) Ltd,385.31
Lincolnshire,http://opendatacommunities.org/id/county-council/lincolnshire,2023-04-27T00:00:00,TRUE,2023-02-01T00:00:00,2023-02-28T23:59:59,28/02/2023,County,E10000019,Lincolnshire,http://statistics.data.gov.uk/doc/statistical-geography/E10000019,Month,2023-02,Lincolnshire County Council,202311,Home to School/College Transport,Contract Hire and Operating Leases,Home to School Transport 8 seats or less,100669076,324862,24x7 (Lincs) Ltd,329.93
Lincolnshire,http://opendatacommunities.org/id/county-council/lincolnshire,2023-04-27T00:00:00,TRUE,2023-02-01T00:00:00,2023-02-28T23:59:59,28/02/2023,County,E10000019,Lincolnshire,http://statistics.data.gov.uk/doc/statistical-geography/E10000019,Month,2023-02,Lincolnshire County Council,202311,Home to School/College Transport,Contract Hire and Operating Leases,Home to School Transport 8 seats or less,100669076,324862,24x7 (Lincs) Ltd,413.31
Lincolnshire,http://opendatacommunities.org/id/county-council/lincolnshire,2023-04-27T00:00:00,TRUE,2023-02-01T00:00:00,2023-02-28T23:59:59,28/02/2023,County,E10000019,Lincolnshire,http://statistics.data.gov.uk/doc/statistical-geography/E10000019,Month,2023-02,Lincolnshire County Council,202311,Home to School/College Transport,Contract Hire and Operating Leases,Home to School Transport 8 seats or less,100669114,324862,24x7 (Lincs) Ltd,38.54
Lincolnshire,http://opendatacommunities.org/id/county-council/lincolnshire,2023-04-27T00:00:00,TRUE,2023-02-01T00:00:00,2023-02-28T23:59:59,28/02/2023,County,E10000019,Lincolnshire,http://statistics.data.gov.uk/doc/statistical-geography/E10000019,Month,2023-02,Lincolnshire County Council,202311,Home to School/College Transport,Contract Hire and Operating Leases,Home to School Transport 8 seats or less,100669114,324862,24x7 (Lincs) Ltd,1492
Lincolnshire,http://opendatacommunities.org/id/county-council/lincolnshire,2023-04-27T00:00:00,TRUE,2023-02-01T00:00:00,2023-02-28T23:59:59,28/02/2023,County,E10000019,Lincolnshire,http://statistics.data.gov.uk/doc/statistical-geography/E10000019,Month,2023-02,Lincolnshire County Council,202311,Home to School/College Transport,Contract Hire and Operating Leases,Home to School Transport 8 seats or less,100669114,324862,24x7 (Lincs) Ltd,169.94
Lincolnshire,http://opendatacommunities.org/id/county-council/lincolnshire,2023-04-27T00:00:00,TRUE,2023-02-01T00:00:00,2023-02-28T23:59:59,28/02/2023,County,E10000019,Lincolnshire,http://statistics.data.gov.uk/doc/statistical-geography/E10000019,Month,2023-02,Lincolnshire County Council,202311,Home to School/College Transport,Contract Hire and Operating Leases,Home to School Transport 8 seats or less,100669114,324862,24x7 (Lincs) Ltd,499.52
Lincolnshire,http://opendatacommunities.org/id/county-council/lincolnshire,2023-04-27T00:00:00,TRUE,2023-02-01T00:00:00,2023-02-28T23:59:59,28/02/2023,County,E10000019,Lincolnshire,http://statistics.data.gov.uk/doc/statistical-geography/E10000019,Month,2023-02,Lincolnshire County Council,202311,Home to School/College Transport,Contract Hire and Operating Leases,Home to School Transport 8 seats or less,100669122,324862,24x7 (Lincs) Ltd,1800
Lincolnshire,http://opendatacommunities.org/id/county-council/lincolnshire,2023-04-27T00:00:00,TRUE,2023-02-01T00:00:00,2023-02-28T23:59:59,28/02/2023,County,E10000019,Lincolnshire,http://statistics.data.gov.uk/doc/statistical-geography/E10000019,Month,2023-02,Lincolnshire County Council,202311,Home to School/College Transport,Contract Hire and Operating Leases,Home to School Transport 8 seats or less,100669123,324862,24x7 (Lincs) Ltd,197.62
Lincolnshire,http://opendatacommunities.org/id/county-council/lincolnshire,2023-04-27T00:00:00,TRUE,2023-02-01T00:00:00,2023-02-28T23:59:59,28/02/2023,County,E10000019,Lincolnshire,http://statistics.data.gov.uk/doc/statistical-geography/E10000019,Month,2023-02,Lincolnshire County Council,202311,Home to School/College Transport,Contract Hire and Operating Leases,Home to School Transport 8 seats or less,100669123,324862,24x7 (Lincs) Ltd,1001.74
Lincolnshire,http://opendatacommunities.org/id/county-council/lincolnshire,2023-04-27T00:00:00,TRUE,2023-02-01T00:00:00,2023-02-28T23:59:59,28/02/2023,County,E10000019,Lincolnshire,http://statistics.data.gov.uk/doc/statistical-geography/E10000019,Month,2023-02,Lincolnshire County Council,202311,Home to School/College Transport,Contract Hire and Operating Leases,Home to School Transport 8 seats or less,100669123,324862,24x7 (Lincs) Ltd,426.85
Lincolnshire,http://opendatacommunities.org/id/county-council/lincolnshire,2023-04-27T00:00:00,TRUE,2023-02-01T00:00:00,2023-02-28T23:59:59,28/02/2023,County,E10000019,Lincolnshire,http://statistics.data.gov.uk/doc/statistical-geography/E10000019,Month,2023-02,Lincolnshire County Council,202311,Home to School/College Transport,Contract Hire and Operating Leases,Home to School Transport 8 seats or less,100669123,324862,24x7 (Lincs) Ltd,274.06
Lincolnshire,http://opendatacommunities.org/id/county-council/lincolnshire,2023-04-27T00:00:00,TRUE,2023-02-01T00:00:00,2023-02-28T23:59:59,28/02/2023,County,E10000019,Lincolnshire,http://statistics.data.gov.uk/doc/statistical-geography/E10000019,Month,2023-02,Lincolnshire County Council,202311,Home to School/College Transport,Contract Hire and Operating Leases,Home to School Transport 8 seats or less,100669124,324862,24x7 (Lincs) Ltd,528.96
Lincolnshire,http://opendatacommunities.org/id/county-council/lincolnshire,2023-04-27T00:00:00,TRUE,2023-02-01T00:00:00,2023-02-28T23:59:59,28/02/2023,County,E10000019,Lincolnshire,http://statistics.data.gov.uk/doc/statistical-geography/E10000019,Month,2023-02,Lincolnshire County Council,202311,Home to School/College Transport,Contract Hire and Operating Leases,Home to School Transport 8 seats or less,100669124,324862,24x7 (Lincs) Ltd,1020.44
Lincolnshire,http://opendatacommunities.org/id/county-council/lincolnshire,2023-04-27T00:00:00,TRUE,2023-02-01T00:00:00,2023-02-28T23:59:59,28/02/2023,County,E10000019,Lincolnshire,http://statistics.data.gov.uk/doc/statistical-geography/E10000019,Month,2023-02,Lincolnshire County Council,202311,Home to School/College Transport,Contract Hire and Operating Leases,Home to School Transport 8 seats or less,100669126,324862,24x7 (Lincs) Ltd,1802.22
Lincolnshire,http://opendatacommunities.org/id/county-council/lincolnshire,2023-04-27T00:00:00,TRUE,2023-02-01T00:00:00,2023-02-28T23:59:59,28/02/2023,County,E10000019,Lincolnshire,http://statistics.data.gov.uk/doc/statistical-geography/E10000019,Month,2023-02,Lincolnshire County Council,202311,Home to School/College Transport,Contract Hire and Operating Leases,Home to School Transport 8 seats or less,100669126,324862,24x7 (Lincs) Ltd,304.78
Lincolnshire,http://opendatacommunities.org/id/county-council/lincolnshire,2023-04-27T00:00:00,TRUE,2023-02-01T00:00:00,2023-02-28T23:59:59,28/02/2023,County,E10000019,Lincolnshire,http://statistics.data.gov.uk/doc/statistical-geography/E10000019,Month,2023-02,Lincolnshire County Council,202311,Home to School/College Transport,Contract Hire and Operating Leases,Home to School Transport 8 seats or less,100669128,324862,24x7 (Lincs) Ltd,1427.05
Lincolnshire,http://opendatacommunities.org/id/county-council/lincolnshire,2023-04-27T00:00:00,TRUE,2023-02-01T00:00:00,2023-02-28T23:59:59,28/02/2023,County,E10000019,Lincolnshire,http://statistics.data.gov.uk/doc/statistical-geography/E10000019,Month,2023-02,Lincolnshire County Council,202311,Home to School/College Transport,Contract Hire and Operating Leases,Home to School Transport 8 seats or less,100669128,324862,24x7 (Lincs) Ltd,486.53
Lincolnshire,http://opendatacommunities.org/id/county-council/lincolnshire,2023-04-27T00:00:00,TRUE,2023-02-01T00:00:00,2023-02-28T23:59:59,28/02/2023,County,E10000019,Lincolnshire,http://statistics.data.gov.uk/doc/statistical-geography/E10000019,Month,2023-02,Lincolnshire County Council,202311,Home to School/College Transport,Contract Hire and Operating Leases,Home to School Transport 8 seats or less,100669128,324862,24x7 (Lincs) Ltd,463.02
Lincolnshire,http://opendatacommunities.org/id/county-council/lincolnshire,2023-04-27T00:00:00,TRUE,2023-02-01T00:00:00,2023-02-28T23:59:59,28/02/2023,County,E10000019,Lincolnshire,http://statistics.data.gov.uk/doc/statistical-geography/E10000019,Month,2023-02,Lincolnshire County Council,202311,Home to School/College Transport,Contract Hire and Operating Leases,Home to School Transport 8 seats or less,100669129,324862,24x7 (Lincs) Ltd,738.06
Lincolnshire,http://opendatacommunities.org/id/county-council/lincolnshire,2023-04-27T00:00:00,TRUE,2023-02-01T00:00:00,2023-02-28T23:59:59,28/02/2023,County,E10000019,Lincolnshire,http://statistics.data.gov.uk/doc/statistical-geography/E10000019,Month,2023-02,Lincolnshire County Council,202311,Home to School/College Transport,Contract Hire and Operating Leases,Home to School Transport 8 seats or less,100669129,324862,24x7 (Lincs) Ltd,636.84
Lincolnshire,http://opendatacommunities.org/id/county-council/lincolnshire,2023-04-27T00:00:00,TRUE,2023-02-01T00:00:00,2023-02-28T23:59:59,28/02/2023,County,E10000019,Lincolnshire,http://statistics.data.gov.uk/doc/statistical-geography/E10000019,Month,2023-02,Lincolnshire County Council,202311,Home to School/College Transport,Contract Hire and Operating Leases,Home to School Transport 8 seats or less,100669129,324862,24x7 (Lincs) Ltd,577.34
Lincolnshire,http://opendatacommunities.org/id/county-council/lincolnshire,2023-04-27T00:00:00,TRUE,2023-02-01T00:00:00,2023-02-28T23:59:59,28/02/2023,County,E10000019,Lincolnshire,http://statistics.data.gov.uk/doc/statistical-geography/E10000019,Month,2023-02,Lincolnshire County Council,202311,Home to School/College Transport,Contract Hire and Operating Leases,Home to School Transport 8 seats or less,100669129,324862,24x7 (Lincs) Ltd,104.76
Lincolnshire,http://opendatacommunities.org/id/county-council/lincolnshire,2023-04-27T00:00:00,TRUE,2023-02-01T00:00:00,2023-02-28T23:59:59,28/02/2023,County,E10000019,Lincolnshire,http://statistics.data.gov.uk/doc/statistical-geography/E10000019,Month,2023-02,Lincolnshire County Council,202311,Schools Block - Delegated (DSB),Services,Bought in Services - Other - Schools,31409351,302444,2Simple Software Ltd,1075
Lincolnshire,http://opendatacommunities.org/id/county-council/lincolnshire,2023-04-27T00:00:00,TRUE,2023-02-01T00:00:00,2023-02-28T23:59:59,28/02/2023,County,E10000019,Lincolnshire,http://statistics.data.gov.uk/doc/statistical-geography/E10000019,Month,2023-02,Lincolnshire County Council,202311,Schools Block - Delegated (DSB),Communications and Computing,Computer Software,31417819,302444,2Simple Software Ltd,600
Lincolnshire,http://opendatacommunities.org/id/county-council/lincolnshire,2023-04-27T00:00:00,TRUE,2023-02-01T00:00:00,2023-02-28T23:59:59,28/02/2023,County,E10000019,Lincolnshire,http://statistics.data.gov.uk/doc/statistical-geography/E10000019,Month,2023-02,Lincolnshire County Council,202311,Schools Block - Delegated (DSB),Grants and Subscriptions,Subscriptions (non staff),31414125,302444,2Simple Software Ltd,600
Lincolnshire,http://opendatacommunities.org/id/county-council/lincolnshire,2023-04-27T00:00:00,TRUE,2023-02-01T00:00:00,2023-02-28T23:59:59,28/02/2023,County,E10000019,Lincolnshire,http://statistics.data.gov.uk/doc/statistical-geography/E10000019,Month,2023-02,Lincolnshire County Council,202311,High Needs Block - Central (DSB),Services,Training/Workshops Non Staff,31406326,344210,4 Strides Equestrian UK Ltd,560
Lincolnshire,http://opendatacommunities.org/id/county-council/lincolnshire,2023-04-27T00:00:00,TRUE,2023-02-01T00:00:00,2023-02-28T23:59:59,28/02/2023,County,E10000019,Lincolnshire,http://statistics.data.gov.uk/doc/statistical-geography/E10000019,Month,2023-02,Lincolnshire County Council,202311,High Needs Block - Central (DSB),Services,Training/Workshops Non Staff,31406680,344210,4 Strides Equestrian UK Ltd,800
Lincolnshire,http://opendatacommunities.org/id/county-council/lincolnshire,2023-04-27T00:00:00,TRUE,2023-02-01T00:00:00,2023-02-28T23:59:59,28/02/2023,County,E10000019,Lincolnshire,http://statistics.data.gov.uk/doc/statistical-geography/E10000019,Month,2023-02,Lincolnshire County Council,202311,Education Support Services,"Tools, Equipment, Furniture & Materials",Equipment & Materials Child Related,31412157,304252,4Imprint Direct Limited,5375
Lincolnshire,http://opendatacommunities.org/id/county-council/lincolnshire,2023-04-27T00:00:00,TRUE,2023-02-01T00:00:00,2023-02-28T23:59:59,28/02/2023,County,E10000019,Lincolnshire,http://statistics.data.gov.uk/doc/statistical-geography/E10000019,Month,2023-02,Lincolnshire County Council,202311,Home to School/College Transport,Contract Hire and Operating Leases,Home to School Transport 8 seats or less,100673854,307894,A 2 B Flight Travel,2279.72
Lincolnshire,http://opendatacommunities.org/id/county-council/lincolnshire,2023-04-27T00:00:00,TRUE,2023-02-01T00:00:00,2023-02-28T23:59:59,28/02/2023,County,E10000019,Lincolnshire,http://statistics.data.gov.uk/doc/statistical-geography/E10000019,Month,2023-02,Lincolnshire County Council,202311,Planning,Services,Consultancy Services - Other,31410681,348428,A A H Planning Consultants Ltd,1020.5
Lincolnshire,http://opendatacommunities.org/id/county-council/lincolnshire,2023-04-27T00:00:00,TRUE,2023-02-01T00:00:00,2023-02-28T23:59:59,28/02/2023,County,E10000019,Lincolnshire,http://statistics.data.gov.uk/doc/statistical-geography/E10000019,Month,2023-02,Lincolnshire County Council,202311,Planning,Services,Consultancy Services - Other,31408383,348428,A A H Planning Consultants Ltd,6110
Lincolnshire,http://opendatacommunities.org/id/county-council/lincolnshire,2023-04-27T00:00:00,TRUE,2023-02-01T00:00:00,2023-02-28T23:59:59,28/02/2023,County,E10000019,Lincolnshire,http://statistics.data.gov.uk/doc/statistical-geography/E10000019,Month,2023-02,Lincolnshire County Council,202311,Home to School/College Transport,Contract Hire and Operating Leases,Home to School Transport 9 seats or more,100667112,310674,A C Williams Coaches,26.59
Lincolnshire,http://opendatacommunities.org/id/county-council/lincolnshire,2023-04-27T00:00:00,TRUE,2023-02-01T00:00:00,2023-02-28T23:59:59,28/02/2023,County,E10000019,Lincolnshire,http://statistics.data.gov.uk/doc/statistical-geography/E10000019,Month,2023-02,Lincolnshire County Council,202311,Home to School/College Transport,Contract Hire and Operating Leases,Home to School Transport 9 seats or more,100667117,310674,A C Williams Coaches,2724.2
Lincolnshire,http://opendatacommunities.org/id/county-council/lincolnshire,2023-04-27T00:00:00,TRUE,2023-02-01T00:00:00,2023-02-28T23:59:59,28/02/2023,County,E10000019,Lincolnshire,http://statistics.data.gov.uk/doc/statistical-geography/E10000019,Month,2023-02,Lincolnshire County Council,202311,Home to School/College Transport,Contract Hire and Operating Leases,Home to School Transport 9 seats or more,100667116,310674,A C Williams Coaches,198.6
Lincolnshire,http://opendatacommunities.org/id/county-council/lincolnshire,2023-04-27T00:00:00,TRUE,2023-02-01T00:00:00,2023-02-28T23:59:59,28/02/2023,County,E10000019,Lincolnshire,http://statistics.data.gov.uk/doc/statistical-geography/E10000019,Month,2023-02,Lincolnshire County Council,202311,Home to School/College Transport,Contract Hire and Operating Leases,Home to School Transport 9 seats or more,100667118,310674,A C Williams Coaches,2673.62
Lincolnshire,http://opendatacommunities.org/id/county-council/lincolnshire,2023-04-27T00:00:00,TRUE,2023-02-01T00:00:00,2023-02-28T23:59:59,28/02/2023,County,E10000019,Lincolnshire,http://statistics.data.gov.uk/doc/statistical-geography/E10000019,Month,2023-02,Lincolnshire County Council,202311,Home to School/College Transport,Contract Hire and Operating Leases,Home to School Transport 9 seats or more,100667118,310674,A C Williams Coaches,479.66
Lincolnshire,http://opendatacommunities.org/id/county-council/lincolnshire,2023-04-27T00:00:00,TRUE,2023-02-01T00:00:00,2023-02-28T23:59:59,28/02/2023,County,E10000019,Lincolnshire,http://statistics.data.gov.uk/doc/statistical-geography/E10000019,Month,2023-02,Lincolnshire County Council,202311,Home to School/College Transport,Contract Hire and Operating Leases,Home to School Transport 9 seats or more,100667118,310674,A C Williams Coaches,96.52
Lincolnshire,http://opendatacommunities.org/id/county-council/lincolnshire,2023-04-27T00:00:00,TRUE,2023-02-01T00:00:00,2023-02-28T23:59:59,28/02/2023,County,E10000019,Lincolnshire,http://statistics.data.gov.uk/doc/statistical-geography/E10000019,Month,2023-02,Lincolnshire County Council,202311,Home to School/College Transport,Contract Hire and Operating Leases,Home to School Transport 9 seats or more,100667119,310674,A C Williams Coaches,715.68
Lincolnshire,http://opendatacommunities.org/id/county-council/lincolnshire,2023-04-27T00:00:00,TRUE,2023-02-01T00:00:00,2023-02-28T23:59:59,28/02/2023,County,E10000019,Lincolnshire,http://statistics.data.gov.uk/doc/statistical-geography/E10000019,Month,2023-02,Lincolnshire County Council,202311,Home to School/College Transport,Contract Hire and Operating Leases,Home to School Transport 9 seats or more,100667119,310674,A C Williams Coaches,4454.54
Lincolnshire,http://opendatacommunities.org/id/county-council/lincolnshire,2023-04-27T00:00:00,TRUE,2023-02-01T00:00:00,2023-02-28T23:59:59,28/02/2023,County,E10000019,Lincolnshire,http://statistics.data.gov.uk/doc/statistical-geography/E10000019,Month,2023-02,Lincolnshire County Council,202311,Home to School/College Transport,Contract Hire and Operating Leases,Home to School Transport 9 seats or more,100667119,310674,A C Williams Coaches,29.78
Lincolnshire,http://opendatacommunities.org/id/county-council/lincolnshire,2023-04-27T00:00:00,TRUE,2023-02-01T00:00:00,2023-02-28T23:59:59,28/02/2023,County,E10000019,Lincolnshire,http://statistics.data.gov.uk/doc/statistical-geography/E10000019,Month,2023-02,Lincolnshire County Council,202311,Home to School/College Transport,Contract Hire and Operating Leases,Home to School Transport 8 seats or less,100667120,310674,A C Williams Coaches,4800
Lincolnshire,http://opendatacommunities.org/id/county-council/lincolnshire,2023-04-27T00:00:00,TRUE,2023-02-01T00:00:00,2023-02-28T23:59:59,28/02/2023,County,E10000019,Lincolnshire,http://statistics.data.gov.uk/doc/statistical-geography/E10000019,Month,2023-02,Lincolnshire County Council,202311,Home to School/College Transport,Contract Hire and Operating Leases,Home to School Transport 9 seats or more,100667605,310674,A C Williams Coaches,7464.18
Lincolnshire,http://opendatacommunities.org/id/county-council/lincolnshire,2023-04-27T00:00:00,TRUE,2023-02-01T00:00:00,2023-02-28T23:59:59,28/02/2023,County,E10000019,Lincolnshire,http://statistics.data.gov.uk/doc/statistical-geography/E10000019,Month,2023-02,Lincolnshire County Council,202311,Home to School/College Transport,Contract Hire and Operating Leases,Home to School Transport 9 seats or more,100667605,310674,A C Williams Coaches,35.82
Lincolnshire,http://opendatacommunities.org/id/county-council/lincolnshire,2023-04-27T00:00:00,TRUE,2023-02-01T00:00:00,2023-02-28T23:59:59,28/02/2023,County,E10000019,Lincolnshire,http://statistics.data.gov.uk/doc/statistical-geography/E10000019,Month,2023-02,Lincolnshire County Council,202311,Home to School/College Transport,Contract Hire and Operating Leases,Home to School Transport 9 seats or more,100667112,310674,A C Williams Coaches,4418.56
Lincolnshire,http://opendatacommunities.org/id/county-council/lincolnshire,2023-04-27T00:00:00,TRUE,2023-02-01T00:00:00,2023-02-28T23:59:59,28/02/2023,County,E10000019,Lincolnshire,http://statistics.data.gov.uk/doc/statistical-geography/E10000019,Month,2023-02,Lincolnshire County Council,202311,Home to School/College Transport,Contract Hire and Operating Leases,Home to School Transport 9 seats or more,100667112,310674,A C Williams Coaches,274.21
Lincolnshire,http://opendatacommunities.org/id/county-council/lincolnshire,2023-04-27T00:00:00,TRUE,2023-02-01T00:00:00,2023-02-28T23:59:59,28/02/2023,County,E10000019,Lincolnshire,http://statistics.data.gov.uk/doc/statistical-geography/E10000019,Month,2023-02,Lincolnshire County Council,202311,Home to School/College Transport,Contract Hire and Operating Leases,Home to School Transport 9 seats or more,100667112,310674,A C Williams Coaches,80.64
Lincolnshire,http://opendatacommunities.org/id/county-council/lincolnshire,2023-04-27T00:00:00,TRUE,2023-02-01T00:00:00,2023-02-28T23:59:59,28/02/2023,County,E10000019,Lincolnshire,http://statistics.data.gov.uk/doc/statistical-geography/E10000019,Month,2023-02,Lincolnshire County Council,202311,Home to School/College Transport,Contract Hire and Operating Leases,Home to School Transport 9 seats or more,100667115,310674,A C Williams Coaches,1098.97
Lincolnshire,http://opendatacommunities.org/id/county-council/lincolnshire,2023-04-27T00:00:00,TRUE,2023-02-01T00:00:00,2023-02-28T23:59:59,28/02/2023,County,E10000019,Lincolnshire,http://statistics.data.gov.uk/doc/statistical-geography/E10000019,Month,2023-02,Lincolnshire County Council,202311,Home to School/College Transport,Contract Hire and Operating Leases,Home to School Transport 9 seats or more,100667115,310674,A C Williams Coaches,2803.4
Lincolnshire,http://opendatacommunities.org/id/county-council/lincolnshire,2023-04-27T00:00:00,TRUE,2023-02-01T00:00:00,2023-02-28T23:59:59,28/02/2023,County,E10000019,Lincolnshire,http://statistics.data.gov.uk/doc/statistical-geography/E10000019,Month,2023-02,Lincolnshire County Council,202311,Home to School/College Transport,Contract Hire and Operating Leases,Home to School Transport 9 seats or more,100667115,310674,A C Williams Coaches,130.36
Lincolnshire,http://opendatacommunities.org/id/county-council/lincolnshire,2023-04-27T00:00:00,TRUE,2023-02-01T00:00:00,2023-02-28T23:59:59,28/02/2023,County,E10000019,Lincolnshire,http://statistics.data.gov.uk/doc/statistical-geography/E10000019,Month,2023-02,Lincolnshire County Council,202311,Home to School/College Transport,Contract Hire and Operating Leases,Home to School Transport 9 seats or more,100667115,310674,A C Williams Coaches,190.78
Lincolnshire,http://opendatacommunities.org/id/county-council/lincolnshire,2023-04-27T00:00:00,TRUE,2023-02-01T00:00:00,2023-02-28T23:59:59,28/02/2023,County,E10000019,Lincolnshire,http://statistics.data.gov.uk/doc/statistical-geography/E10000019,Month,2023-02,Lincolnshire County Council,202311,Home to School/College Transport,Contract Hire and Operating Leases,Home to School Transport 9 seats or more,100667115,310674,A C Williams Coaches,335.77
Lincolnshire,http://opendatacommunities.org/id/county-council/lincolnshire,2023-04-27T00:00:00,TRUE,2023-02-01T00:00:00,2023-02-28T23:59:59,28/02/2023,County,E10000019,Lincolnshire,http://statistics.data.gov.uk/doc/statistical-geography/E10000019,Month,2023-02,Lincolnshire County Council,202311,Home to School/College Transport,Contract Hire and Operating Leases,Home to School Transport 9 seats or more,100667115,310674,A C Williams Coaches,58.31
Lincolnshire,http://opendatacommunities.org/id/county-council/lincolnshire,2023-04-27T00:00:00,TRUE,2023-02-01T00:00:00,2023-02-28T23:59:59,28/02/2023,County,E10000019,Lincolnshire,http://statistics.data.gov.uk/doc/statistical-geography/E10000019,Month,2023-02,Lincolnshire County Council,202311,Home to School/College Transport,Contract Hire and Operating Leases,Home to School Transport 9 seats or more,100667115,310674,A C Williams Coaches,182.41
Lincolnshire,http://opendatacommunities.org/id/county-council/lincolnshire,2023-04-27T00:00:00,TRUE,2023-02-01T00:00:00,2023-02-28T23:59:59,28/02/2023,County,E10000019,Lincolnshire,http://statistics.data.gov.uk/doc/statistical-geography/E10000019,Month,2023-02,Lincolnshire County Council,202311,Home to School/College Transport,Contract Hire and Operating Leases,Home to School Transport 9 seats or more,100667116,310674,A C Williams Coaches,158.25
Lincolnshire,http://opendatacommunities.org/id/county-council/lincolnshire,2023-04-27T00:00:00,TRUE,2023-02-01T00:00:00,2023-02-28T23:59:59,28/02/2023,County,E10000019,Lincolnshire,http://statistics.data.gov.uk/doc/statistical-geography/E10000019,Month,2023-02,Lincolnshire County Council,202311,Home to School/College Transport,Contract Hire and Operating Leases,Home to School Transport 9 seats or more,100667116,310674,A C Williams Coaches,4151.72
Lincolnshire,http://opendatacommunities.org/id/county-council/lincolnshire,2023-04-27T00:00:00,TRUE,2023-02-01T00:00:00,2023-02-28T23:59:59,28/02/2023,County,E10000019,Lincolnshire,http://statistics.data.gov.uk/doc/statistical-geography/E10000019,Month,2023-02,Lincolnshire County Council,202311,Home to School/College Transport,Contract Hire and Operating Leases,Home to School Transport 9 seats or more,100667116,310674,A C Williams Coaches,1097.86
Lincolnshire,http://opendatacommunities.org/id/county-council/lincolnshire,2023-04-27T00:00:00,TRUE,2023-02-01T00:00:00,2023-02-28T23:59:59,28/02/2023,County,E10000019,Lincolnshire,http://statistics.data.gov.uk/doc/statistical-geography/E10000019,Month,2023-02,Lincolnshire County Council,202311,Home to School/College Transport,Contract Hire and Operating Leases,Home to School Transport 9 seats or more,100667116,310674,A C Williams Coaches,319.32
Lincolnshire,http://opendatacommunities.org/id/county-council/lincolnshire,2023-04-27T00:00:00,TRUE,2023-02-01T00:00:00,2023-02-28T23:59:59,28/02/2023,County,E10000019,Lincolnshire,http://statistics.data.gov.uk/doc/statistical-geography/E10000019,Month,2023-02,Lincolnshire County Council,202311,Home to School/College Transport,Contract Hire and Operating Leases,Home to School Transport 9 seats or more,100667116,310674,A C Williams Coaches,48.25
Lincolnshire,http://opendatacommunities.org/id/county-council/lincolnshire,2023-04-27T00:00:00,TRUE,2023-02-01T00:00:00,2023-02-28T23:59:59,28/02/2023,County,E10000019,Lincolnshire,http://statistics.data.gov.uk/doc/statistical-geography/E10000019,Month,2023-02,Lincolnshire County Council,202311,Home to School/College Transport,Contract Hire and Operating Leases,Home to School Transport 9 seats or more,100667114,310674,A C Williams Coaches,4364.38
Lincolnshire,http://opendatacommunities.org/id/county-council/lincolnshire,2023-04-27T00:00:00,TRUE,2023-02-01T00:00:00,2023-02-28T23:59:59,28/02/2023,County,E10000019,Lincolnshire,http://statistics.data.gov.uk/doc/statistical-geography/E10000019,Month,2023-02,Lincolnshire County Council,202311,Home to School/College Transport,Contract Hire and Operating Leases,Home to School Transport 9 seats or more,100667114,310674,A C Williams Coaches,154.89
Lincolnshire,http://opendatacommunities.org/id/county-council/lincolnshire,2023-04-27T00:00:00,TRUE,2023-02-01T00:00:00,2023-02-28T23:59:59,28/02/2023,County,E10000019,Lincolnshire,http://statistics.data.gov.uk/doc/statistical-geography/E10000019,Month,2023-02,Lincolnshire County Council,202311,Home to School/College Transport,Contract Hire and Operating Leases,Home to School Transport 9 seats or more,100667114,310674,A C Williams Coaches,280.73
Lincolnshire,http://opendatacommunities.org/id/county-council/lincolnshire,2023-04-27T00:00:00,TRUE,2023-02-01T00:00:00,2023-02-28T23:59:59,28/02/2023,County,E10000019,Lincolnshire,http://statistics.data.gov.uk/doc/statistical-geography/E10000019,Month,2023-02,Lincolnshire County Council,202311,Home to School/College Transport,Contract Hire and Operating Leases,Home to School Transport Season Tickets,100667113,310674,A C Williams Coaches,825.93
Lincolnshire,http://opendatacommunities.org/id/county-council/lincolnshire,2023-04-27T00:00:00,TRUE,2023-02-01T00:00:00,2023-02-28T23:59:59,28/02/2023,County,E10000019,Lincolnshire,http://statistics.data.gov.uk/doc/statistical-geography/E10000019,Month,2023-02,Lincolnshire County Council,202311,Home to School/College Transport,Contract Hire and Operating Leases,Home to School Transport Season Tickets,100667113,310674,A C Williams Coaches,765.63
Lincolnshire,http://opendatacommunities.org/id/county-council/lincolnshire,2023-04-27T00:00:00,TRUE,2023-02-01T00:00:00,2023-02-28T23:59:59,28/02/2023,County,E10000019,Lincolnshire,http://statistics.data.gov.uk/doc/statistical-geography/E10000019,Month,2023-02,Lincolnshire County Council,202311,Home to School/College Transport,Contract Hire and Operating Leases,Home to School Transport Season Tickets,100667113,310674,A C Williams Coaches,1276.08
Lincolnshire,http://opendatacommunities.org/id/county-council/lincolnshire,2023-04-27T00:00:00,TRUE,2023-02-01T00:00:00,2023-02-28T23:59:59,28/02/2023,County,E10000019,Lincolnshire,http://statistics.data.gov.uk/doc/statistical-geography/E10000019,Month,2023-02,Lincolnshire County Council,202311,Home to School/College Transport,Contract Hire and Operating Leases,Home to School Transport Season Tickets,100667113,310674,A C Williams Coaches,523.29
Lincolnshire,http://opendatacommunities.org/id/county-council/lincolnshire,2023-04-27T00:00:00,TRUE,2023-02-01T00:00:00,2023-02-28T23:59:59,28/02/2023,County,E10000019,Lincolnshire,http://statistics.data.gov.uk/doc/statistical-geography/E10000019,Month,2023-02,Lincolnshire County Council,202311,Home to School/College Transport,Contract Hire and Operating Leases,Home to School Transport Season Tickets,100667113,310674,A C Williams Coaches,329.01
Lincolnshire,http://opendatacommunities.org/id/county-council/lincolnshire,2023-04-27T00:00:00,TRUE,2023-02-01T00:00:00,2023-02-28T23:59:59,28/02/2023,County,E10000019,Lincolnshire,http://statistics.data.gov.uk/doc/statistical-geography/E10000019,Month,2023-02,Lincolnshire County Council,202311,Home to School/College Transport,Contract Hire and Operating Leases,Home to School Transport Season Tickets,100667113,310674,A C Williams Coaches,231.54
Lincolnshire,http://opendatacommunities.org/id/county-council/lincolnshire,2023-04-27T00:00:00,TRUE,2023-02-01T00:00:00,2023-02-28T23:59:59,28/02/2023,County,E10000019,Lincolnshire,http://statistics.data.gov.uk/doc/statistical-geography/E10000019,Month,2023-02,Lincolnshire County Council,202311,Home to School/College Transport,Contract Hire and Operating Leases,Home to School Transport Season Tickets,100667113,310674,A C Williams Coaches,128.52
Lincolnshire,http://opendatacommunities.org/id/county-council/lincolnshire,2023-04-27T00:00:00,TRUE,2023-02-01T00:00:00,2023-02-28T23:59:59,28/02/2023,County,E10000019,Lincolnshire,http://statistics.data.gov.uk/doc/statistical-geography/E10000019,Month,2023-02,Lincolnshire County Council,202311,Pupil Premium (Other),Miscellaneous and Initiative Expenses,Educational Visits & Other Expenditure,31407482,310674,A C Williams Coaches,640
Lincolnshire,http://opendatacommunities.org/id/county-council/lincolnshire,2023-04-27T00:00:00,TRUE,2023-02-01T00:00:00,2023-02-28T23:59:59,28/02/2023,County,E10000019,Lincolnshire,http://statistics.data.gov.uk/doc/statistical-geography/E10000019,Month,2023-02,Lincolnshire County Council,202311,Schools Block - Delegated (DSB),Catering,Free Meals,31410798,305757,A Country Kitchen Limited,799.5
Lincolnshire,http://opendatacommunities.org/id/county-council/lincolnshire,2023-04-27T00:00:00,TRUE,2023-02-01T00:00:00,2023-02-28T23:59:59,28/02/2023,County,E10000019,Lincolnshire,http://statistics.data.gov.uk/doc/statistical-geography/E10000019,Month,2023-02,Lincolnshire County Council,202311,Schools Block - Delegated (DSB),Catering,Free Meals,31410942,305757,A Country Kitchen Limited,1087.5
Lincolnshire,http://opendatacommunities.org/id/county-council/lincolnshire,2023-04-27T00:00:00,TRUE,2023-02-01T00:00:00,2023-02-28T23:59:59,28/02/2023,County,E10000019,Lincolnshire,http://statistics.data.gov.uk/doc/statistical-geography/E10000019,Month,2023-02,Lincolnshire County Council,202311,Schools Block - Delegated (DSB),Catering,Free Meals,31417869,305757,A Country Kitchen Limited,842.5
Lincolnshire,http://opendatacommunities.org/id/county-council/lincolnshire,2023-04-27T00:00:00,TRUE,2023-02-01T00:00:00,2023-02-28T23:59:59,28/02/2023,County,E10000019,Lincolnshire,http://statistics.data.gov.uk/doc/statistical-geography/E10000019,Month,2023-02,Lincolnshire County Council,202311,Schools Block - Delegated (DSB),Catering,Free Meals,31407396,305757,A Country Kitchen Limited,848
Lincolnshire,http://opendatacommunities.org/id/county-council/lincolnshire,2023-04-27T00:00:00,TRUE,2023-02-01T00:00:00,2023-02-28T23:59:59,28/02/2023,County,E10000019,Lincolnshire,http://statistics.data.gov.uk/doc/statistical-geography/E10000019,Month,2023-02,Lincolnshire County Council,202311,Schools Block - Delegated (DSB),Catering,Free Meals,31395596,305757,A Country Kitchen Limited,1027.5
Lincolnshire,http://opendatacommunities.org/id/county-council/lincolnshire,2023-04-27T00:00:00,TRUE,2023-02-01T00:00:00,2023-02-28T23:59:59,28/02/2023,County,E10000019,Lincolnshire,http://statistics.data.gov.uk/doc/statistical-geography/E10000019,Month,2023-02,Lincolnshire County Council,202311,Schools Block - Delegated (DSB),Catering,Free Meals,31396006,305757,A Country Kitchen Limited,779.5
Lincolnshire,http://opendatacommunities.org/id/county-council/lincolnshire,2023-04-27T00:00:00,TRUE,2023-02-01T00:00:00,2023-02-28T23:59:59,28/02/2023,County,E10000019,Lincolnshire,http://statistics.data.gov.uk/doc/statistical-geography/E10000019,Month,2023-02,Lincolnshire County Council,202311,Schools Block - Delegated (DSB),Catering,Free Meals,31399771,305757,A Country Kitchen Limited,775
Lincolnshire,http://opendatacommunities.org/id/county-council/lincolnshire,2023-04-27T00:00:00,TRUE,2023-02-01T00:00:00,2023-02-28T23:59:59,28/02/2023,County,E10000019,Lincolnshire,http://statistics.data.gov.uk/doc/statistical-geography/E10000019,Month,2023-02,Lincolnshire County Council,202311,Schools Block - Delegated (DSB),Catering,Free Meals,31399771,305757,A Country Kitchen Limited,17.5
Lincolnshire,http://opendatacommunities.org/id/county-council/lincolnshire,2023-04-27T00:00:00,TRUE,2023-02-01T00:00:00,2023-02-28T23:59:59,28/02/2023,County,E10000019,Lincolnshire,http://statistics.data.gov.uk/doc/statistical-geography/E10000019,Month,2023-02,Lincolnshire County Council,202311,Schools Block - Delegated (DSB),Catering,Free Meals,31399771,305757,A Country Kitchen Limited,17.5
Lincolnshire,http://opendatacommunities.org/id/county-council/lincolnshire,2023-04-27T00:00:00,TRUE,2023-02-01T00:00:00,2023-02-28T23:59:59,28/02/2023,County,E10000019,Lincolnshire,http://statistics.data.gov.uk/doc/statistical-geography/E10000019,Month,2023-02,Lincolnshire County Council,202311,Schools Block - Delegated (DSB),Catering,Free Meals,31399771,305757,A Country Kitchen Limited,7
Lincolnshire,http://opendatacommunities.org/id/county-council/lincolnshire,2023-04-27T00:00:00,TRUE,2023-02-01T00:00:00,2023-02-28T23:59:59,28/02/2023,County,E10000019,Lincolnshire,http://statistics.data.gov.uk/doc/statistical-geography/E10000019,Month,2023-02,Lincolnshire County Council,202311,Schools Block - Delegated (DSB),Catering,Free Meals,31402925,305757,A Country Kitchen Limited,822
Lincolnshire,http://opendatacommunities.org/id/county-council/lincolnshire,2023-04-27T00:00:00,TRUE,2023-02-01T00:00:00,2023-02-28T23:59:59,28/02/2023,County,E10000019,Lincolnshire,http://statistics.data.gov.uk/doc/statistical-geography/E10000019,Month,2023-02,Lincolnshire County Council,202311,Schools Block - Delegated (DSB),Catering,Free Meals,31407787,305757,A Country Kitchen Limited,1142.5
Lincolnshire,http://opendatacommunities.org/id/county-council/lincolnshire,2023-04-27T00:00:00,TRUE,2023-02-01T00:00:00,2023-02-28T23:59:59,28/02/2023,County,E10000019,Lincolnshire,http://statistics.data.gov.uk/doc/statistical-geography/E10000019,Month,2023-02,Lincolnshire County Council,202311,Universal Infant Free School Meals (Other),Catering,Free Meals,31407558,305757,A Country Kitchen Limited,427.5
Lincolnshire,http://opendatacommunities.org/id/county-council/lincolnshire,2023-04-27T00:00:00,TRUE,2023-02-01T00:00:00,2023-02-28T23:59:59,28/02/2023,County,E10000019,Lincolnshire,http://statistics.data.gov.uk/doc/statistical-geography/E10000019,Month,2023-02,Lincolnshire County Council,202311,Universal Infant Free School Meals (Other),Catering,Free Meals,31410674,305757,A Country Kitchen Limited,427.5
Lincolnshire,http://opendatacommunities.org/id/county-council/lincolnshire,2023-04-27T00:00:00,TRUE,2023-02-01T00:00:00,2023-02-28T23:59:59,28/02/2023,County,E10000019,Lincolnshire,http://statistics.data.gov.uk/doc/statistical-geography/E10000019,Month,2023-02,Lincolnshire County Council,202311,Fostering and Adoption,Miscellaneous and Initiative Expenses,Other Hired & Contracting Services,31409883,340491,A Different Angle Ltd,510
Lincolnshire,http://opendatacommunities.org/id/county-council/lincolnshire,2023-04-27T00:00:00,TRUE,2023-02-01T00:00:00,2023-02-28T23:59:59,28/02/2023,County,E10000019,Lincolnshire,http://statistics.data.gov.uk/doc/statistical-geography/E10000019,Month,2023-02,Lincolnshire County Council,202311,Early Years Block - Central (DSB),Voluntary Associations,Payments to Voluntary Organisations,31413925,300026,A for E Ltd t/a Grantham Preparatory Sch,1270.08
Lincolnshire,http://opendatacommunities.org/id/county-council/lincolnshire,2023-04-27T00:00:00,TRUE,2023-02-01T00:00:00,2023-02-28T23:59:59,28/02/2023,County,E10000019,Lincolnshire,http://statistics.data.gov.uk/doc/statistical-geography/E10000019,Month,2023-02,Lincolnshire County Council,202311,Schools Block - Delegated (DSB),"Tools, Equipment, Furniture & Materials",Equipment & Materials Child Related,31406656,347231,A Little Bit Wilder Ltd,880
Lincolnshire,http://opendatacommunities.org/id/county-council/lincolnshire,2023-04-27T00:00:00,TRUE,2023-02-01T00:00:00,2023-02-28T23:59:59,28/02/2023,County,E10000019,Lincolnshire,http://statistics.data.gov.uk/doc/statistical-geography/E10000019,Month,2023-02,Lincolnshire County Council,202311,Fostering and Adoption,Contract Hire and Operating Leases,Home to School Transport 8 seats or less,100673707,303207,A P Private Hire,237
Lincolnshire,http://opendatacommunities.org/id/county-council/lincolnshire,2023-04-27T00:00:00,TRUE,2023-02-01T00:00:00,2023-02-28T23:59:59,28/02/2023,County,E10000019,Lincolnshire,http://statistics.data.gov.uk/doc/statistical-geography/E10000019,Month,2023-02,Lincolnshire County Council,202311,Home to School/College Transport,Contract Hire and Operating Leases,Home to School Transport 8 seats or less,100673707,303207,A P Private Hire,1359.41
Lincolnshire,http://opendatacommunities.org/id/county-council/lincolnshire,2023-04-27T00:00:00,TRUE,2023-02-01T00:00:00,2023-02-28T23:59:59,28/02/2023,County,E10000019,Lincolnshire,http://statistics.data.gov.uk/doc/statistical-geography/E10000019,Month,2023-02,Lincolnshire County Council,202311,Home to School/College Transport,Contract Hire and Operating Leases,Home to School Transport 8 seats or less,100673707,303207,A P Private Hire,736.25
Lincolnshire,http://opendatacommunities.org/id/county-council/lincolnshire,2023-04-27T00:00:00,TRUE,2023-02-01T00:00:00,2023-02-28T23:59:59,28/02/2023,County,E10000019,Lincolnshire,http://statistics.data.gov.uk/doc/statistical-geography/E10000019,Month,2023-02,Lincolnshire County Council,202311,Home to School/College Transport,Contract Hire and Operating Leases,Home to School Transport 8 seats or less,100673707,303207,A P Private Hire,522.17
Lincolnshire,http://opendatacommunities.org/id/county-council/lincolnshire,2023-04-27T00:00:00,TRUE,2023-02-01T00:00:00,2023-02-28T23:59:59,28/02/2023,County,E10000019,Lincolnshire,http://statistics.data.gov.uk/doc/statistical-geography/E10000019,Month,2023-02,Lincolnshire County Council,202311,Home to School/College Transport,Contract Hire and Operating Leases,Home to School Transport 8 seats or less,100669430,303207,A P Private Hire,746.34
Lincolnshire,http://opendatacommunities.org/id/county-council/lincolnshire,2023-04-27T00:00:00,TRUE,2023-02-01T00:00:00,2023-02-28T23:59:59,28/02/2023,County,E10000019,Lincolnshire,http://statistics.data.gov.uk/doc/statistical-geography/E10000019,Month,2023-02,Lincolnshire County Council,202311,Home to School/College Transport,Contract Hire and Operating Leases,Home to School Transport 8 seats or less,100673707,303207,A P Private Hire,188.49
Lincolnshire,http://opendatacommunities.org/id/county-council/lincolnshire,2023-04-27T00:00:00,TRUE,2023-02-01T00:00:00,2023-02-28T23:59:59,28/02/2023,County,E10000019,Lincolnshire,http://statistics.data.gov.uk/doc/statistical-geography/E10000019,Month,2023-02,Lincolnshire County Council,202311,GL LEP,Services,Consultancy Services - Other,31410794,342498,A R Wallace t/a BreakOut Consultants,1752.39
Lincolnshire,http://opendatacommunities.org/id/county-council/lincolnshire,2023-04-27T00:00:00,TRUE,2023-02-01T00:00:00,2023-02-28T23:59:59,28/02/2023,County,E10000019,Lincolnshire,http://statistics.data.gov.uk/doc/statistical-geography/E10000019,Month,2023-02,Lincolnshire County Council,202311,Head of Waste,Private Contractors,Waste Contractors Dry Recycling,31409668,301195,A Riddel & Sons Scrap Metal & Skip Hire Ltd,1500.6
Lincolnshire,http://opendatacommunities.org/id/county-council/lincolnshire,2023-04-27T00:00:00,TRUE,2023-02-01T00:00:00,2023-02-28T23:59:59,28/02/2023,County,E10000019,Lincolnshire,http://statistics.data.gov.uk/doc/statistical-geography/E10000019,Month,2023-02,Lincolnshire County Council,202311,Schools Block - Delegated (DSB),Communications and Computing,Computer Software,31419556,318518,A S E Computer Services Ltd,1796.75
Lincolnshire,http://opendatacommunities.org/id/county-council/lincolnshire,2023-04-27T00:00:00,TRUE,2023-02-01T00:00:00,2023-02-28T23:59:59,28/02/2023,County,E10000019,Lincolnshire,http://statistics.data.gov.uk/doc/statistical-geography/E10000019,Month,2023-02,Lincolnshire County Council,202311,Other Grant Funding (Other),Services,Aids & Equipment,31407665,300147,A T Little & Sons Ltd t/a Browns Books,9.78
Lincolnshire,http://opendatacommunities.org/id/county-council/lincolnshire,2023-04-27T00:00:00,TRUE,2023-02-01T00:00:00,2023-02-28T23:59:59,28/02/2023,County,E10000019,Lincolnshire,http://statistics.data.gov.uk/doc/statistical-geography/E10000019,Month,2023-02,Lincolnshire County Council,202311,Other Grant Funding (Other),Services,Aids & Equipment,31407665,300147,A T Little & Sons Ltd t/a Browns Books,13.98
Lincolnshire,http://opendatacommunities.org/id/county-council/lincolnshire,2023-04-27T00:00:00,TRUE,2023-02-01T00:00:00,2023-02-28T23:59:59,28/02/2023,County,E10000019,Lincolnshire,http://statistics.data.gov.uk/doc/statistical-geography/E10000019,Month,2023-02,Lincolnshire County Council,202311,Other Grant Funding (Other),Services,Aids & Equipment,31407665,300147,A T Little & Sons Ltd t/a Browns Books,11.18
Lincolnshire,http://opendatacommunities.org/id/county-council/lincolnshire,2023-04-27T00:00:00,TRUE,2023-02-01T00:00:00,2023-02-28T23:59:59,28/02/2023,County,E10000019,Lincolnshire,http://statistics.data.gov.uk/doc/statistical-geography/E10000019,Month,2023-02,Lincolnshire County Council,202311,Other Grant Funding (Other),Services,Aids & Equipment,31407665,300147,A T Little & Sons Ltd t/a Browns Books,33.56
Lincolnshire,http://opendatacommunities.org/id/county-council/lincolnshire,2023-04-27T00:00:00,TRUE,2023-02-01T00:00:00,2023-02-28T23:59:59,28/02/2023,County,E10000019,Lincolnshire,http://statistics.data.gov.uk/doc/statistical-geography/E10000019,Month,2023-02,Lincolnshire County Council,202311,Other Grant Funding (Other),Services,Aids & Equipment,31407665,300147,A T Little & Sons Ltd t/a Browns Books,16.76
Lincolnshire,http://opendatacommunities.org/id/county-council/lincolnshire,2023-04-27T00:00:00,TRUE,2023-02-01T00:00:00,2023-02-28T23:59:59,28/02/2023,County,E10000019,Lincolnshire,http://statistics.data.gov.uk/doc/statistical-geography/E10000019,Month,2023-02,Lincolnshire County Council,202311,Other Grant Funding (Other),Services,Aids & Equipment,31407665,300147,A T Little & Sons Ltd t/a Browns Books,9.78
Lincolnshire,http://opendatacommunities.org/id/county-council/lincolnshire,2023-04-27T00:00:00,TRUE,2023-02-01T00:00:00,2023-02-28T23:59:59,28/02/2023,County,E10000019,Lincolnshire,http://statistics.data.gov.uk/doc/statistical-geography/E10000019,Month,2023-02,Lincolnshire County Council,202311,Other Grant Funding (Other),Services,Aids & Equipment,31407665,300147,A T Little & Sons Ltd t/a Browns Books,19.56
Lincolnshire,http://opendatacommunities.org/id/county-council/lincolnshire,2023-04-27T00:00:00,TRUE,2023-02-01T00:00:00,2023-02-28T23:59:59,28/02/2023,County,E10000019,Lincolnshire,http://statistics.data.gov.uk/doc/statistical-geography/E10000019,Month,2023-02,Lincolnshire County Council,202311,Other Grant Funding (Other),Services,Aids & Equipment,31407665,300147,A T Little & Sons Ltd t/a Browns Books,9.78
Lincolnshire,http://opendatacommunities.org/id/county-council/lincolnshire,2023-04-27T00:00:00,TRUE,2023-02-01T00:00:00,2023-02-28T23:59:59,28/02/2023,County,E10000019,Lincolnshire,http://statistics.data.gov.uk/doc/statistical-geography/E10000019,Month,2023-02,Lincolnshire County Council,202311,Other Grant Funding (Other),Services,Aids & Equipment,31407665,300147,A T Little & Sons Ltd t/a Browns Books,111.7
Lincolnshire,http://opendatacommunities.org/id/county-council/lincolnshire,2023-04-27T00:00:00,TRUE,2023-02-01T00:00:00,2023-02-28T23:59:59,28/02/2023,County,E10000019,Lincolnshire,http://statistics.data.gov.uk/doc/statistical-geography/E10000019,Month,2023-02,Lincolnshire County Council,202311,Other Grant Funding (Other),Services,Aids & Equipment,31407665,300147,A T Little & Sons Ltd t/a Browns Books,62.9
Lincolnshire,http://opendatacommunities.org/id/county-council/lincolnshire,2023-04-27T00:00:00,TRUE,2023-02-01T00:00:00,2023-02-28T23:59:59,28/02/2023,County,E10000019,Lincolnshire,http://statistics.data.gov.uk/doc/statistical-geography/E10000019,Month,2023-02,Lincolnshire County Council,202311,Other Grant Funding (Other),Services,Aids & Equipment,31407665,300147,A T Little & Sons Ltd t/a Browns Books,62.9
Lincolnshire,http://opendatacommunities.org/id/county-council/lincolnshire,2023-04-27T00:00:00,TRUE,2023-02-01T00:00:00,2023-02-28T23:59:59,28/02/2023,County,E10000019,Lincolnshire,http://statistics.data.gov.uk/doc/statistical-geography/E10000019,Month,2023-02,Lincolnshire County Council,202311,Other Grant Funding (Other),Services,Aids & Equipment,31407665,300147,A T Little & Sons Ltd t/a Browns Books,94.35
Lincolnshire,http://opendatacommunities.org/id/county-council/lincolnshire,2023-04-27T00:00:00,TRUE,2023-02-01T00:00:00,2023-02-28T23:59:59,28/02/2023,County,E10000019,Lincolnshire,http://statistics.data.gov.uk/doc/statistical-geography/E10000019,Month,2023-02,Lincolnshire County Council,202311,Other Grant Funding (Other),Services,Aids & Equipment,31407665,300147,A T Little & Sons Ltd t/a Browns Books,22.36
Lincolnshire,http://opendatacommunities.org/id/county-council/lincolnshire,2023-04-27T00:00:00,TRUE,2023-02-01T00:00:00,2023-02-28T23:59:59,28/02/2023,County,E10000019,Lincolnshire,http://statistics.data.gov.uk/doc/statistical-geography/E10000019,Month,2023-02,Lincolnshire County Council,202311,Other Grant Funding (Other),Services,Aids & Equipment,31407665,300147,A T Little & Sons Ltd t/a Browns Books,22.36
Lincolnshire,http://opendatacommunities.org/id/county-council/lincolnshire,2023-04-27T00:00:00,TRUE,2023-02-01T00:00:00,2023-02-28T23:59:59,28/02/2023,County,E10000019,Lincolnshire,http://statistics.data.gov.uk/doc/statistical-geography/E10000019,Month,2023-02,Lincolnshire County Council,202311,Other Grant Funding (Other),Services,Aids & Equipment,31407665,300147,A T Little & Sons Ltd t/a Browns Books,8.38
Lincolnshire,http://opendatacommunities.org/id/county-council/lincolnshire,2023-04-27T00:00:00,TRUE,2023-02-01T00:00:00,2023-02-28T23:59:59,28/02/2023,County,E10000019,Lincolnshire,http://statistics.data.gov.uk/doc/statistical-geography/E10000019,Month,2023-02,Lincolnshire County Council,202311,Other Grant Funding (Other),Services,Aids & Equipment,31407665,300147,A T Little & Sons Ltd t/a Browns Books,13.98
Lincolnshire,http://opendatacommunities.org/id/county-council/lincolnshire,2023-04-27T00:00:00,TRUE,2023-02-01T00:00:00,2023-02-28T23:59:59,28/02/2023,County,E10000019,Lincolnshire,http://statistics.data.gov.uk/doc/statistical-geography/E10000019,Month,2023-02,Lincolnshire County Council,202311,Other Grant Funding (Other),Services,Aids & Equipment,31407665,300147,A T Little & Sons Ltd t/a Browns Books,25.17
Lincolnshire,http://opendatacommunities.org/id/county-council/lincolnshire,2023-04-27T00:00:00,TRUE,2023-02-01T00:00:00,2023-02-28T23:59:59,28/02/2023,County,E10000019,Lincolnshire,http://statistics.data.gov.uk/doc/statistical-geography/E10000019,Month,2023-02,Lincolnshire County Council,202311,Other Grant Funding (Other),Services,Aids & Equipment,31407665,300147,A T Little & Sons Ltd t/a Browns Books,22.36
Lincolnshire,http://opendatacommunities.org/id/county-council/lincolnshire,2023-04-27T00:00:00,TRUE,2023-02-01T00:00:00,2023-02-28T23:59:59,28/02/2023,County,E10000019,Lincolnshire,http://statistics.data.gov.uk/doc/statistical-geography/E10000019,Month,2023-02,Lincolnshire County Council,202311,Other Grant Funding (Other),Services,Aids & Equipment,31407665,300147,A T Little & Sons Ltd t/a Browns Books,11.18
Lincolnshire,http://opendatacommunities.org/id/county-council/lincolnshire,2023-04-27T00:00:00,TRUE,2023-02-01T00:00:00,2023-02-28T23:59:59,28/02/2023,County,E10000019,Lincolnshire,http://statistics.data.gov.uk/doc/statistical-geography/E10000019,Month,2023-02,Lincolnshire County Council,202311,Other Grant Funding (Other),Services,Aids & Equipment,31407665,300147,A T Little & Sons Ltd t/a Browns Books,9.78
Lincolnshire,http://opendatacommunities.org/id/county-council/lincolnshire,2023-04-27T00:00:00,TRUE,2023-02-01T00:00:00,2023-02-28T23:59:59,28/02/2023,County,E10000019,Lincolnshire,http://statistics.data.gov.uk/doc/statistical-geography/E10000019,Month,2023-02,Lincolnshire County Council,202311,Other Grant Funding (Other),Services,Aids & Equipment,31407665,300147,A T Little & Sons Ltd t/a Browns Books,27.27
Lincolnshire,http://opendatacommunities.org/id/county-council/lincolnshire,2023-04-27T00:00:00,TRUE,2023-02-01T00:00:00,2023-02-28T23:59:59,28/02/2023,County,E10000019,Lincolnshire,http://statistics.data.gov.uk/doc/statistical-geography/E10000019,Month,2023-02,Lincolnshire County Council,202311,Other Grant Funding (Other),Services,Aids & Equipment,31407665,300147,A T Little & Sons Ltd t/a Browns Books,20.97
Lincolnshire,http://opendatacommunities.org/id/county-council/lincolnshire,2023-04-27T00:00:00,TRUE,2023-02-01T00:00:00,2023-02-28T23:59:59,28/02/2023,County,E10000019,Lincolnshire,http://statistics.data.gov.uk/doc/statistical-geography/E10000019,Month,2023-02,Lincolnshire County Council,202311,Other Grant Funding (Other),Services,Aids & Equipment,31407665,300147,A T Little & Sons Ltd t/a Browns Books,15.38
Lincolnshire,http://opendatacommunities.org/id/county-council/lincolnshire,2023-04-27T00:00:00,TRUE,2023-02-01T00:00:00,2023-02-28T23:59:59,28/02/2023,County,E10000019,Lincolnshire,http://statistics.data.gov.uk/doc/statistical-geography/E10000019,Month,2023-02,Lincolnshire County Council,202311,Other Grant Funding (Other),Services,Aids & Equipment,31407665,300147,A T Little & Sons Ltd t/a Browns Books,10.49
Lincolnshire,http://opendatacommunities.org/id/county-council/lincolnshire,2023-04-27T00:00:00,TRUE,2023-02-01T00:00:00,2023-02-28T23:59:59,28/02/2023,County,E10000019,Lincolnshire,http://statistics.data.gov.uk/doc/statistical-geography/E10000019,Month,2023-02,Lincolnshire County Council,202311,Other Grant Funding (Other),Services,Aids & Equipment,31407665,300147,A T Little & Sons Ltd t/a Browns Books,18.18
Lincolnshire,http://opendatacommunities.org/id/county-council/lincolnshire,2023-04-27T00:00:00,TRUE,2023-02-01T00:00:00,2023-02-28T23:59:59,28/02/2023,County,E10000019,Lincolnshire,http://statistics.data.gov.uk/doc/statistical-geography/E10000019,Month,2023-02,Lincolnshire County Council,202311,Legal Lincolnshire,Services,Legal & Arbitration Expenses,31402499,338796,A&N Care Solicitors,3212.5
Lincolnshire,http://opendatacommunities.org/id/county-council/lincolnshire,2023-04-27T00:00:00,TRUE,2023-02-01T00:00:00,2023-02-28T23:59:59,28/02/2023,County,E10000019,Lincolnshire,http://statistics.data.gov.uk/doc/statistical-geography/E10000019,Month,2023-02,Lincolnshire County Council,202311,Schools Block - Delegated (DSB),Services,Consultancy Services - Other,31406265,335106,A Plus Support and Tutoring,900
Lincolnshire,http://opendatacommunities.org/id/county-council/lincolnshire,2023-04-27T00:00:00,TRUE,2023-02-01T00:00:00,2023-02-28T23:59:59,28/02/2023,County,E10000019,Lincolnshire,http://statistics.data.gov.uk/doc/statistical-geography/E10000019,Month,2023-02,Lincolnshire County Council,202311,Home to School/College Transport,Contract Hire and Operating Leases,Home to School Transport 8 seats or less,100667397,350757,A12 Taxis,2880
Lincolnshire,http://opendatacommunities.org/id/county-council/lincolnshire,2023-04-27T00:00:00,TRUE,2023-02-01T00:00:00,2023-02-28T23:59:59,28/02/2023,County,E10000019,Lincolnshire,http://statistics.data.gov.uk/doc/statistical-geography/E10000019,Month,2023-02,Lincolnshire County Council,202311,Home to School/College Transport,Contract Hire and Operating Leases,Home to School Transport 8 seats or less,100673801,335606,A2B Euro Cars Ltd,561.51
Lincolnshire,http://opendatacommunities.org/id/county-council/lincolnshire,2023-04-27T00:00:00,TRUE,2023-02-01T00:00:00,2023-02-28T23:59:59,28/02/2023,County,E10000019,Lincolnshire,http://statistics.data.gov.uk/doc/statistical-geography/E10000019,Month,2023-02,Lincolnshire County Council,202311,Home to School/College Transport,Contract Hire and Operating Leases,Home to School Transport 8 seats or less,100673801,335606,A2B Euro Cars Ltd,540.49
Lincolnshire,http://opendatacommunities.org/id/county-council/lincolnshire,2023-04-27T00:00:00,TRUE,2023-02-01T00:00:00,2023-02-28T23:59:59,28/02/2023,County,E10000019,Lincolnshire,http://statistics.data.gov.uk/doc/statistical-geography/E10000019,Month,2023-02,Lincolnshire County Council,202311,Home to School/College Transport,Contract Hire and Operating Leases,Home to School Transport 8 seats or less,100678297,335606,A2B Euro Cars Ltd,1524.6
Lincolnshire,http://opendatacommunities.org/id/county-council/lincolnshire,2023-04-27T00:00:00,TRUE,2023-02-01T00:00:00,2023-02-28T23:59:59,28/02/2023,County,E10000019,Lincolnshire,http://statistics.data.gov.uk/doc/statistical-geography/E10000019,Month,2023-02,Lincolnshire County Council,202311,Schools Block - Delegated (DSB),Cleaning & Domestic Supplies,Window Cleaning,31415339,338668,AA Window Cleaning Services,630
Lincolnshire,http://opendatacommunities.org/id/county-council/lincolnshire,2023-04-27T00:00:00,TRUE,2023-02-01T00:00:00,2023-02-28T23:59:59,28/02/2023,County,E10000019,Lincolnshire,http://statistics.data.gov.uk/doc/statistical-geography/E10000019,Month,2023-02,Lincolnshire County Council,202311,Home to School/College Transport,Contract Hire and Operating Leases,Home to School Transport 9 seats or more,100673692,303774,Abacus Coaches,4904.76
Lincolnshire,http://opendatacommunities.org/id/county-council/lincolnshire,2023-04-27T00:00:00,TRUE,2023-02-01T00:00:00,2023-02-28T23:59:59,28/02/2023,County,E10000019,Lincolnshire,http://statistics.data.gov.uk/doc/statistical-geography/E10000019,Month,2023-02,Lincolnshire County Council,202311,Home to School/College Transport,Contract Hire and Operating Leases,Home to School Transport 9 seats or more,100673692,303774,Abacus Coaches,95.24
Lincolnshire,http://opendatacommunities.org/id/county-council/lincolnshire,2023-04-27T00:00:00,TRUE,2023-02-01T00:00:00,2023-02-28T23:59:59,28/02/2023,County,E10000019,Lincolnshire,http://statistics.data.gov.uk/doc/statistical-geography/E10000019,Month,2023-02,Lincolnshire County Council,202311,Early Years Block - Central (DSB),Voluntary Associations,Payments to Voluntary Organisations,31413925,310151,Abbey 345 Pre-School,11273.22
Lincolnshire,http://opendatacommunities.org/id/county-council/lincolnshire,2023-04-27T00:00:00,TRUE,2023-02-01T00:00:00,2023-02-28T23:59:59,28/02/2023,County,E10000019,Lincolnshire,http://statistics.data.gov.uk/doc/statistical-geography/E10000019,Month,2023-02,Lincolnshire County Council,202311,High Needs Block - Central (DSB),Grants and Subscriptions,"Grants, Contributions & Donations",31409103,310151,Abbey 345 Pre-School,252.82
Lincolnshire,http://opendatacommunities.org/id/county-council/lincolnshire,2023-04-27T00:00:00,TRUE,2023-02-01T00:00:00,2023-02-28T23:59:59,28/02/2023,County,E10000019,Lincolnshire,http://statistics.data.gov.uk/doc/statistical-geography/E10000019,Month,2023-02,Lincolnshire County Council,202311,High Needs Block - Central (DSB),Grants and Subscriptions,"Grants, Contributions & Donations",31409103,310151,Abbey 345 Pre-School,389.22
Lincolnshire,http://opendatacommunities.org/id/county-council/lincolnshire,2023-04-27T00:00:00,TRUE,2023-02-01T00:00:00,2023-02-28T23:59:59,28/02/2023,County,E10000019,Lincolnshire,http://statistics.data.gov.uk/doc/statistical-geography/E10000019,Month,2023-02,Lincolnshire County Council,202311,Economic Development,Services,Training/Workshops Non Staff,31388428,324578,Abbey Access Training,1026
Lincolnshire,http://opendatacommunities.org/id/county-council/lincolnshire,2023-04-27T00:00:00,TRUE,2023-02-01T00:00:00,2023-02-28T23:59:59,28/02/2023,County,E10000019,Lincolnshire,http://statistics.data.gov.uk/doc/statistical-geography/E10000019,Month,2023-02,Lincolnshire County Council,202311,Economic Development,Services,Training/Workshops Non Staff,31410735,324578,Abbey Access Training,3420
Lincolnshire,http://opendatacommunities.org/id/county-council/lincolnshire,2023-04-27T00:00:00,TRUE,2023-02-01T00:00:00,2023-02-28T23:59:59,28/02/2023,County,E10000019,Lincolnshire,http://statistics.data.gov.uk/doc/statistical-geography/E10000019,Month,2023-02,Lincolnshire County Council,202311,Economic Development,Services,Training/Workshops Non Staff,31411092,324578,Abbey Access Training,6195.31
Lincolnshire,http://opendatacommunities.org/id/county-council/lincolnshire,2023-04-27T00:00:00,TRUE,2023-02-01T00:00:00,2023-02-28T23:59:59,28/02/2023,County,E10000019,Lincolnshire,http://statistics.data.gov.uk/doc/statistical-geography/E10000019,Month,2023-02,Lincolnshire County Council,202311,Economic Development,Services,Training/Workshops Non Staff,31410706,324578,Abbey Access Training,997.5
Lincolnshire,http://opendatacommunities.org/id/county-council/lincolnshire,2023-04-27T00:00:00,TRUE,2023-02-01T00:00:00,2023-02-28T23:59:59,28/02/2023,County,E10000019,Lincolnshire,http://statistics.data.gov.uk/doc/statistical-geography/E10000019,Month,2023-02,Lincolnshire County Council,202311,Economic Development,Services,Training/Workshops Non Staff,31417680,324578,Abbey Access Training,617.5
Lincolnshire,http://opendatacommunities.org/id/county-council/lincolnshire,2023-04-27T00:00:00,TRUE,2023-02-01T00:00:00,2023-02-28T23:59:59,28/02/2023,County,E10000019,Lincolnshire,http://statistics.data.gov.uk/doc/statistical-geography/E10000019,Month,2023-02,Lincolnshire County Council,202311,Commissioning Manager AF & LTC,Private Contractors,Nursing Care Long Term,100675257,320160,Abbey Court Care Home,2508
Lincolnshire,http://opendatacommunities.org/id/county-council/lincolnshire,2023-04-27T00:00:00,TRUE,2023-02-01T00:00:00,2023-02-28T23:59:59,28/02/2023,County,E10000019,Lincolnshire,http://statistics.data.gov.uk/doc/statistical-geography/E10000019,Month,2023-02,Lincolnshire County Council,202311,Commissioning Manager AF & LTC,Private Contractors,Nursing Care Long Term,100675257,320160,Abbey Court Care Home,2508
Lincolnshire,http://opendatacommunities.org/id/county-council/lincolnshire,2023-04-27T00:00:00,TRUE,2023-02-01T00:00:00,2023-02-28T23:59:59,28/02/2023,County,E10000019,Lincolnshire,http://statistics.data.gov.uk/doc/statistical-geography/E10000019,Month,2023-02,Lincolnshire County Council,202311,Commissioning Manager AF & LTC,Private Contractors,Nursing Care Long Term,100675257,320160,Abbey Court Care Home,2508
Lincolnshire,http://opendatacommunities.org/id/county-council/lincolnshire,2023-04-27T00:00:00,TRUE,2023-02-01T00:00:00,2023-02-28T23:59:59,28/02/2023,County,E10000019,Lincolnshire,http://statistics.data.gov.uk/doc/statistical-geography/E10000019,Month,2023-02,Lincolnshire County Council,202311,Commissioning Manager AF & LTC,Private Contractors,Nursing Care Long Term,100675257,320160,Abbey Court Care Home,2876.32
Lincolnshire,http://opendatacommunities.org/id/county-council/lincolnshire,2023-04-27T00:00:00,TRUE,2023-02-01T00:00:00,2023-02-28T23:59:59,28/02/2023,County,E10000019,Lincolnshire,http://statistics.data.gov.uk/doc/statistical-geography/E10000019,Month,2023-02,Lincolnshire County Council,202311,Commissioning Manager AF & LTC,Private Contractors,Nursing Care Long Term,100675257,320160,Abbey Court Care Home,2924
Lincolnshire,http://opendatacommunities.org/id/county-council/lincolnshire,2023-04-27T00:00:00,TRUE,2023-02-01T00:00:00,2023-02-28T23:59:59,28/02/2023,County,E10000019,Lincolnshire,http://statistics.data.gov.uk/doc/statistical-geography/E10000019,Month,2023-02,Lincolnshire County Council,202311,Commissioning Manager AF & LTC,Private Contractors,Nursing Care Long Term,100675257,320160,Abbey Court Care Home,2508
Lincolnshire,http://opendatacommunities.org/id/county-council/lincolnshire,2023-04-27T00:00:00,TRUE,2023-02-01T00:00:00,2023-02-28T23:59:59,28/02/2023,County,E10000019,Lincolnshire,http://statistics.data.gov.uk/doc/statistical-geography/E10000019,Month,2023-02,Lincolnshire County Council,202311,Commissioning Manager AF & LTC,Private Contractors,Residential Care Long Term,100675257,320160,Abbey Court Care Home,2904
Lincolnshire,http://opendatacommunities.org/id/county-council/lincolnshire,2023-04-27T00:00:00,TRUE,2023-02-01T00:00:00,2023-02-28T23:59:59,28/02/2023,County,E10000019,Lincolnshire,http://statistics.data.gov.uk/doc/statistical-geography/E10000019,Month,2023-02,Lincolnshire County Council,202311,Commissioning Manager AF & LTC,Private Contractors,Residential Care Long Term,100675257,320160,Abbey Court Care Home,2504
Lincolnshire,http://opendatacommunities.org/id/county-council/lincolnshire,2023-04-27T00:00:00,TRUE,2023-02-01T00:00:00,2023-02-28T23:59:59,28/02/2023,County,E10000019,Lincolnshire,http://statistics.data.gov.uk/doc/statistical-geography/E10000019,Month,2023-02,Lincolnshire County Council,202311,Commissioning Manager AF & LTC,Private Contractors,Residential Care Long Term,100675257,320160,Abbey Court Care Home,2504
Lincolnshire,http://opendatacommunities.org/id/county-council/lincolnshire,2023-04-27T00:00:00,TRUE,2023-02-01T00:00:00,2023-02-28T23:59:59,28/02/2023,County,E10000019,Lincolnshire,http://statistics.data.gov.uk/doc/statistical-geography/E10000019,Month,2023-02,Lincolnshire County Council,202311,Commissioning Manager AF & LTC,Private Contractors,Residential Care Long Term,100675257,320160,Abbey Court Care Home,2504
Lincolnshire,http://opendatacommunities.org/id/county-council/lincolnshire,2023-04-27T00:00:00,TRUE,2023-02-01T00:00:00,2023-02-28T23:59:59,28/02/2023,County,E10000019,Lincolnshire,http://statistics.data.gov.uk/doc/statistical-geography/E10000019,Month,2023-02,Lincolnshire County Council,202311,Commissioning Manager AF & LTC,Private Contractors,Nursing Care Long Term,100675257,320160,Abbey Court Care Home,2508
Lincolnshire,http://opendatacommunities.org/id/county-council/lincolnshire,2023-04-27T00:00:00,TRUE,2023-02-01T00:00:00,2023-02-28T23:59:59,28/02/2023,County,E10000019,Lincolnshire,http://statistics.data.gov.uk/doc/statistical-geography/E10000019,Month,2023-02,Lincolnshire County Council,202311,Commissioning Manager AF & LTC,Private Contractors,Nursing Care Long Term,100675257,320160,Abbey Court Care Home,1955.48
Lincolnshire,http://opendatacommunities.org/id/county-council/lincolnshire,2023-04-27T00:00:00,TRUE,2023-02-01T00:00:00,2023-02-28T23:59:59,28/02/2023,County,E10000019,Lincolnshire,http://statistics.data.gov.uk/doc/statistical-geography/E10000019,Month,2023-02,Lincolnshire County Council,202311,Commissioning Manager AF & LTC,Private Contractors,Residential Care Long Term,100675257,320160,Abbey Court Care Home,2904
Lincolnshire,http://opendatacommunities.org/id/county-council/lincolnshire,2023-04-27T00:00:00,TRUE,2023-02-01T00:00:00,2023-02-28T23:59:59,28/02/2023,County,E10000019,Lincolnshire,http://statistics.data.gov.uk/doc/statistical-geography/E10000019,Month,2023-02,Lincolnshire County Council,202311,Commissioning Manager AF & LTC,Private Contractors,Residential Care Long Term,100675257,320160,Abbey Court Care Home,2268
Lincolnshire,http://opendatacommunities.org/id/county-council/lincolnshire,2023-04-27T00:00:00,TRUE,2023-02-01T00:00:00,2023-02-28T23:59:59,28/02/2023,County,E10000019,Lincolnshire,http://statistics.data.gov.uk/doc/statistical-geography/E10000019,Month,2023-02,Lincolnshire County Council,202311,Commissioning Manager AF & LTC,Private Contractors,Residential Care Long Term,100675257,320160,Abbey Court Care Home,2178.92
Lincolnshire,http://opendatacommunities.org/id/county-council/lincolnshire,2023-04-27T00:00:00,TRUE,2023-02-01T00:00:00,2023-02-28T23:59:59,28/02/2023,County,E10000019,Lincolnshire,http://statistics.data.gov.uk/doc/statistical-geography/E10000019,Month,2023-02,Lincolnshire County Council,202311,Commissioning Manager AF & LTC,Private Contractors,Nursing Care Long Term,100675257,320160,Abbey Court Care Home,2973.4
Lincolnshire,http://opendatacommunities.org/id/county-council/lincolnshire,2023-04-27T00:00:00,TRUE,2023-02-01T00:00:00,2023-02-28T23:59:59,28/02/2023,County,E10000019,Lincolnshire,http://statistics.data.gov.uk/doc/statistical-geography/E10000019,Month,2023-02,Lincolnshire County Council,202311,Commissioning Manager AF & LTC,Private Contractors,Nursing Care Long Term,100675257,320160,Abbey Court Care Home,2508
Lincolnshire,http://opendatacommunities.org/id/county-council/lincolnshire,2023-04-27T00:00:00,TRUE,2023-02-01T00:00:00,2023-02-28T23:59:59,28/02/2023,County,E10000019,Lincolnshire,http://statistics.data.gov.uk/doc/statistical-geography/E10000019,Month,2023-02,Lincolnshire County Council,202311,Commissioning Manager AF & LTC,Private Contractors,Nursing Care Long Term,100675257,320160,Abbey Court Care Home,2508
Lincolnshire,http://opendatacommunities.org/id/county-council/lincolnshire,2023-04-27T00:00:00,TRUE,2023-02-01T00:00:00,2023-02-28T23:59:59,28/02/2023,County,E10000019,Lincolnshire,http://statistics.data.gov.uk/doc/statistical-geography/E10000019,Month,2023-02,Lincolnshire County Council,202311,Adult Frailty & Long Term Conditions,Holding,PCT Nursing Care Payment,100675257,320160,Abbey Court Care Home,836.76
Lincolnshire,http://opendatacommunities.org/id/county-council/lincolnshire,2023-04-27T00:00:00,TRUE,2023-02-01T00:00:00,2023-02-28T23:59:59,28/02/2023,County,E10000019,Lincolnshire,http://statistics.data.gov.uk/doc/statistical-geography/E10000019,Month,2023-02,Lincolnshire County Council,202311,Adult Frailty & Long Term Conditions,Holding,PCT Nursing Care Payment,100675257,320160,Abbey Court Care Home,836.76
Lincolnshire,http://opendatacommunities.org/id/county-council/lincolnshire,2023-04-27T00:00:00,TRUE,2023-02-01T00:00:00,2023-02-28T23:59:59,28/02/2023,County,E10000019,Lincolnshire,http://statistics.data.gov.uk/doc/statistical-geography/E10000019,Month,2023-02,Lincolnshire County Council,202311,Adult Frailty & Long Term Conditions,Holding,PCT Nursing Care Payment,100675257,320160,Abbey Court Care Home,836.76
Lincolnshire,http://opendatacommunities.org/id/county-council/lincolnshire,2023-04-27T00:00:00,TRUE,2023-02-01T00:00:00,2023-02-28T23:59:59,28/02/2023,County,E10000019,Lincolnshire,http://statistics.data.gov.uk/doc/statistical-geography/E10000019,Month,2023-02,Lincolnshire County Council,202311,Adult Frailty & Long Term Conditions,Holding,PCT Nursing Care Payment,100675257,320160,Abbey Court Care Home,836.76
Lincolnshire,http://opendatacommunities.org/id/county-council/lincolnshire,2023-04-27T00:00:00,TRUE,2023-02-01T00:00:00,2023-02-28T23:59:59,28/02/2023,County,E10000019,Lincolnshire,http://statistics.data.gov.uk/doc/statistical-geography/E10000019,Month,2023-02,Lincolnshire County Council,202311,Adult Frailty & Long Term Conditions,Holding,PCT Nursing Care Payment,100675257,320160,Abbey Court Care Home,836.76
Lincolnshire,http://opendatacommunities.org/id/county-council/lincolnshire,2023-04-27T00:00:00,TRUE,2023-02-01T00:00:00,2023-02-28T23:59:59,28/02/2023,County,E10000019,Lincolnshire,http://statistics.data.gov.uk/doc/statistical-geography/E10000019,Month,2023-02,Lincolnshire County Council,202311,Adult Frailty & Long Term Conditions,Holding,PCT Nursing Care Payment,100675257,320160,Abbey Court Care Home,836.76
Lincolnshire,http://opendatacommunities.org/id/county-council/lincolnshire,2023-04-27T00:00:00,TRUE,2023-02-01T00:00:00,2023-02-28T23:59:59,28/02/2023,County,E10000019,Lincolnshire,http://statistics.data.gov.uk/doc/statistical-geography/E10000019,Month,2023-02,Lincolnshire County Council,202311,Adult Frailty & Long Term Conditions,Holding,PCT Continence Payments,100675257,320160,Abbey Court Care Home,40
Lincolnshire,http://opendatacommunities.org/id/county-council/lincolnshire,2023-04-27T00:00:00,TRUE,2023-02-01T00:00:00,2023-02-28T23:59:59,28/02/2023,County,E10000019,Lincolnshire,http://statistics.data.gov.uk/doc/statistical-geography/E10000019,Month,2023-02,Lincolnshire County Council,202311,Adult Frailty & Long Term Conditions,Holding,PCT Continence Payments,100675257,320160,Abbey Court Care Home,36
Lincolnshire,http://opendatacommunities.org/id/county-council/lincolnshire,2023-04-27T00:00:00,TRUE,2023-02-01T00:00:00,2023-02-28T23:59:59,28/02/2023,County,E10000019,Lincolnshire,http://statistics.data.gov.uk/doc/statistical-geography/E10000019,Month,2023-02,Lincolnshire County Council,202311,Adult Frailty & Long Term Conditions,Holding,PCT Continence Payments,100675257,320160,Abbey Court Care Home,25.2
Lincolnshire,http://opendatacommunities.org/id/county-council/lincolnshire,2023-04-27T00:00:00,TRUE,2023-02-01T00:00:00,2023-02-28T23:59:59,28/02/2023,County,E10000019,Lincolnshire,http://statistics.data.gov.uk/doc/statistical-geography/E10000019,Month,2023-02,Lincolnshire County Council,202311,Adult Frailty & Long Term Conditions,Holding,PCT Continence Payments,100675257,320160,Abbey Court Care Home,22.24
Lincolnshire,http://opendatacommunities.org/id/county-council/lincolnshire,2023-04-27T00:00:00,TRUE,2023-02-01T00:00:00,2023-02-28T23:59:59,28/02/2023,County,E10000019,Lincolnshire,http://statistics.data.gov.uk/doc/statistical-geography/E10000019,Month,2023-02,Lincolnshire County Council,202311,Adult Frailty & Long Term Conditions,Holding,PCT Continence Payments,100675257,320160,Abbey Court Care Home,32.2
Lincolnshire,http://opendatacommunities.org/id/county-council/lincolnshire,2023-04-27T00:00:00,TRUE,2023-02-01T00:00:00,2023-02-28T23:59:59,28/02/2023,County,E10000019,Lincolnshire,http://statistics.data.gov.uk/doc/statistical-geography/E10000019,Month,2023-02,Lincolnshire County Council,202311,Adult Frailty & Long Term Conditions,Holding,PCT Continence Payments,100675257,320160,Abbey Court Care Home,38
Lincolnshire,http://opendatacommunities.org/id/county-council/lincolnshire,2023-04-27T00:00:00,TRUE,2023-02-01T00:00:00,2023-02-28T23:59:59,28/02/2023,County,E10000019,Lincolnshire,http://statistics.data.gov.uk/doc/statistical-geography/E10000019,Month,2023-02,Lincolnshire County Council,202311,Adult Frailty & Long Term Conditions,Holding,PCT Continence Payments,100675257,320160,Abbey Court Care Home,32.2
Lincolnshire,http://opendatacommunities.org/id/county-council/lincolnshire,2023-04-27T00:00:00,TRUE,2023-02-01T00:00:00,2023-02-28T23:59:59,28/02/2023,County,E10000019,Lincolnshire,http://statistics.data.gov.uk/doc/statistical-geography/E10000019,Month,2023-02,Lincolnshire County Council,202311,Adult Frailty & Long Term Conditions,Holding,PCT Nursing Care Payment,100675257,320160,Abbey Court Care Home,836.76
Lincolnshire,http://opendatacommunities.org/id/county-council/lincolnshire,2023-04-27T00:00:00,TRUE,2023-02-01T00:00:00,2023-02-28T23:59:59,28/02/2023,County,E10000019,Lincolnshire,http://statistics.data.gov.uk/doc/statistical-geography/E10000019,Month,2023-02,Lincolnshire County Council,202311,Adult Frailty & Long Term Conditions,Holding,PCT Nursing Care Payment,100675257,320160,Abbey Court Care Home,836.76
Lincolnshire,http://opendatacommunities.org/id/county-council/lincolnshire,2023-04-27T00:00:00,TRUE,2023-02-01T00:00:00,2023-02-28T23:59:59,28/02/2023,County,E10000019,Lincolnshire,http://statistics.data.gov.uk/doc/statistical-geography/E10000019,Month,2023-02,Lincolnshire County Council,202311,Adult Frailty & Long Term Conditions,Holding,PCT Nursing Care Payment,100675257,320160,Abbey Court Care Home,836.76
Lincolnshire,http://opendatacommunities.org/id/county-council/lincolnshire,2023-04-27T00:00:00,TRUE,2023-02-01T00:00:00,2023-02-28T23:59:59,28/02/2023,County,E10000019,Lincolnshire,http://statistics.data.gov.uk/doc/statistical-geography/E10000019,Month,2023-02,Lincolnshire County Council,202311,Adult Frailty & Long Term Conditions,Holding,PCT Nursing Care Payment,100675257,320160,Abbey Court Care Home,836.76
Lincolnshire,http://opendatacommunities.org/id/county-council/lincolnshire,2023-04-27T00:00:00,TRUE,2023-02-01T00:00:00,2023-02-28T23:59:59,28/02/2023,County,E10000019,Lincolnshire,http://statistics.data.gov.uk/doc/statistical-geography/E10000019,Month,2023-02,Lincolnshire County Council,202311,Learning Disabilities,Private Contractors,Residential Care Long Term,100675257,320160,Abbey Court Care Home,3136
Lincolnshire,http://opendatacommunities.org/id/county-council/lincolnshire,2023-04-27T00:00:00,TRUE,2023-02-01T00:00:00,2023-02-28T23:59:59,28/02/2023,County,E10000019,Lincolnshire,http://statistics.data.gov.uk/doc/statistical-geography/E10000019,Month,2023-02,Lincolnshire County Council,202311,Commissioning Manager AF & LTC,Private Contractors,Residential Care Long Term,100675258,300009,Abbeygate Rest Homes Ltd,2504
Lincolnshire,http://opendatacommunities.org/id/county-council/lincolnshire,2023-04-27T00:00:00,TRUE,2023-02-01T00:00:00,2023-02-28T23:59:59,28/02/2023,County,E10000019,Lincolnshire,http://statistics.data.gov.uk/doc/statistical-geography/E10000019,Month,2023-02,Lincolnshire County Council,202311,Commissioning Manager AF & LTC,Private Contractors,Residential Care Long Term,100675258,300009,Abbeygate Rest Homes Ltd,2268
Lincolnshire,http://opendatacommunities.org/id/county-council/lincolnshire,2023-04-27T00:00:00,TRUE,2023-02-01T00:00:00,2023-02-28T23:59:59,28/02/2023,County,E10000019,Lincolnshire,http://statistics.data.gov.uk/doc/statistical-geography/E10000019,Month,2023-02,Lincolnshire County Council,202311,Commissioning Manager AF & LTC,Private Contractors,Residential Care Long Term,100675258,300009,Abbeygate Rest Homes Ltd,2268
Lincolnshire,http://opendatacommunities.org/id/county-council/lincolnshire,2023-04-27T00:00:00,TRUE,2023-02-01T00:00:00,2023-02-28T23:59:59,28/02/2023,County,E10000019,Lincolnshire,http://statistics.data.gov.uk/doc/statistical-geography/E10000019,Month,2023-02,Lincolnshire County Council,202311,Commissioning Manager AF & LTC,Private Contractors,Residential Care Long Term,100675258,300009,Abbeygate Rest Homes Ltd,2268
Lincolnshire,http://opendatacommunities.org/id/county-council/lincolnshire,2023-04-27T00:00:00,TRUE,2023-02-01T00:00:00,2023-02-28T23:59:59,28/02/2023,County,E10000019,Lincolnshire,http://statistics.data.gov.uk/doc/statistical-geography/E10000019,Month,2023-02,Lincolnshire County Council,202311,Commissioning Manager AF & LTC,Private Contractors,Residential Care Long Term,100675258,300009,Abbeygate Rest Homes Ltd,2268
Lincolnshire,http://opendatacommunities.org/id/county-council/lincolnshire,2023-04-27T00:00:00,TRUE,2023-02-01T00:00:00,2023-02-28T23:59:59,28/02/2023,County,E10000019,Lincolnshire,http://statistics.data.gov.uk/doc/statistical-geography/E10000019,Month,2023-02,Lincolnshire County Council,202311,Commissioning Manager AF & LTC,Private Contractors,Residential Care Long Term,100675258,300009,Abbeygate Rest Homes Ltd,2268
Lincolnshire,http://opendatacommunities.org/id/county-council/lincolnshire,2023-04-27T00:00:00,TRUE,2023-02-01T00:00:00,2023-02-28T23:59:59,28/02/2023,County,E10000019,Lincolnshire,http://statistics.data.gov.uk/doc/statistical-geography/E10000019,Month,2023-02,Lincolnshire County Council,202311,Commissioning Manager AF & LTC,Private Contractors,Residential Care Long Term,100675259,300008,Abbeygate Retirement Home,2504
Lincolnshire,http://opendatacommunities.org/id/county-council/lincolnshire,2023-04-27T00:00:00,TRUE,2023-02-01T00:00:00,2023-02-28T23:59:59,28/02/2023,County,E10000019,Lincolnshire,http://statistics.data.gov.uk/doc/statistical-geography/E10000019,Month,2023-02,Lincolnshire County Council,202311,Early Years Block - Central (DSB),Voluntary Associations,Payments to Voluntary Organisations,31413925,304032,ABC Day Nursery (Lincs) Ltd,5214.24
Lincolnshire,http://opendatacommunities.org/id/county-council/lincolnshire,2023-04-27T00:00:00,TRUE,2023-02-01T00:00:00,2023-02-28T23:59:59,28/02/2023,County,E10000019,Lincolnshire,http://statistics.data.gov.uk/doc/statistical-geography/E10000019,Month,2023-02,Lincolnshire County Council,202311,Home to School/College Transport,Contract Hire and Operating Leases,Home to School Transport 8 seats or less,100669081,311973,ABC Taxis Stamford Ltd,356.42
Lincolnshire,http://opendatacommunities.org/id/county-council/lincolnshire,2023-04-27T00:00:00,TRUE,2023-02-01T00:00:00,2023-02-28T23:59:59,28/02/2023,County,E10000019,Lincolnshire,http://statistics.data.gov.uk/doc/statistical-geography/E10000019,Month,2023-02,Lincolnshire County Council,202311,Home to School/College Transport,Contract Hire and Operating Leases,Home to School Transport 8 seats or less,100669081,311973,ABC Taxis Stamford Ltd,612.03
Lincolnshire,http://opendatacommunities.org/id/county-council/lincolnshire,2023-04-27T00:00:00,TRUE,2023-02-01T00:00:00,2023-02-28T23:59:59,28/02/2023,County,E10000019,Lincolnshire,http://statistics.data.gov.uk/doc/statistical-geography/E10000019,Month,2023-02,Lincolnshire County Council,202311,Home to School/College Transport,Contract Hire and Operating Leases,Home to School Transport 8 seats or less,100669081,311973,ABC Taxis Stamford Ltd,185.49
Lincolnshire,http://opendatacommunities.org/id/county-council/lincolnshire,2023-04-27T00:00:00,TRUE,2023-02-01T00:00:00,2023-02-28T23:59:59,28/02/2023,County,E10000019,Lincolnshire,http://statistics.data.gov.uk/doc/statistical-geography/E10000019,Month,2023-02,Lincolnshire County Council,202311,Home to School/College Transport,Contract Hire and Operating Leases,Home to School Transport 8 seats or less,100669082,311973,ABC Taxis Stamford Ltd,664.35
Lincolnshire,http://opendatacommunities.org/id/county-council/lincolnshire,2023-04-27T00:00:00,TRUE,2023-02-01T00:00:00,2023-02-28T23:59:59,28/02/2023,County,E10000019,Lincolnshire,http://statistics.data.gov.uk/doc/statistical-geography/E10000019,Month,2023-02,Lincolnshire County Council,202311,Home to School/College Transport,Contract Hire and Operating Leases,Home to School Transport 8 seats or less,100669082,311973,ABC Taxis Stamford Ltd,555.85
Lincolnshire,http://opendatacommunities.org/id/county-council/lincolnshire,2023-04-27T00:00:00,TRUE,2023-02-01T00:00:00,2023-02-28T23:59:59,28/02/2023,County,E10000019,Lincolnshire,http://statistics.data.gov.uk/doc/statistical-geography/E10000019,Month,2023-02,Lincolnshire County Council,202311,Home to School/College Transport,Contract Hire and Operating Leases,Home to School Transport 8 seats or less,100667436,311973,ABC Taxis Stamford Ltd,560
Lincolnshire,http://opendatacommunities.org/id/county-council/lincolnshire,2023-04-27T00:00:00,TRUE,2023-02-01T00:00:00,2023-02-28T23:59:59,28/02/2023,County,E10000019,Lincolnshire,http://statistics.data.gov.uk/doc/statistical-geography/E10000019,Month,2023-02,Lincolnshire County Council,202311,Home to School/College Transport,Contract Hire and Operating Leases,Home to School Transport 8 seats or less,100673809,311973,ABC Taxis Stamford Ltd,1122.66
Lincolnshire,http://opendatacommunities.org/id/county-council/lincolnshire,2023-04-27T00:00:00,TRUE,2023-02-01T00:00:00,2023-02-28T23:59:59,28/02/2023,County,E10000019,Lincolnshire,http://statistics.data.gov.uk/doc/statistical-geography/E10000019,Month,2023-02,Lincolnshire County Council,202311,Home to School/College Transport,Contract Hire and Operating Leases,Home to School Transport 8 seats or less,100669081,311973,ABC Taxis Stamford Ltd,794.21
Lincolnshire,http://opendatacommunities.org/id/county-council/lincolnshire,2023-04-27T00:00:00,TRUE,2023-02-01T00:00:00,2023-02-28T23:59:59,28/02/2023,County,E10000019,Lincolnshire,http://statistics.data.gov.uk/doc/statistical-geography/E10000019,Month,2023-02,Lincolnshire County Council,202311,Commissioning Manager AF & LTC,"Tools, Equipment, Furniture & Materials",Equipment & Materials Admin,31408133,336170,Ability Smart Limited,733.32
Lincolnshire,http://opendatacommunities.org/id/county-council/lincolnshire,2023-04-27T00:00:00,TRUE,2023-02-01T00:00:00,2023-02-28T23:59:59,28/02/2023,County,E10000019,Lincolnshire,http://statistics.data.gov.uk/doc/statistical-geography/E10000019,Month,2023-02,Lincolnshire County Council,202311,Commissioning Manager AF & LTC,"Tools, Equipment, Furniture & Materials",Equipment & Materials Admin,31408133,336170,Ability Smart Limited,400
Lincolnshire,http://opendatacommunities.org/id/county-council/lincolnshire,2023-04-27T00:00:00,TRUE,2023-02-01T00:00:00,2023-02-28T23:59:59,28/02/2023,County,E10000019,Lincolnshire,http://statistics.data.gov.uk/doc/statistical-geography/E10000019,Month,2023-02,Lincolnshire County Council,202311,GL LEP,Grants and Subscriptions,"Grants, Contributions & Donations",31416929,346602,Able Humber Ports Ltd,17848.03
Lincolnshire,http://opendatacommunities.org/id/county-council/lincolnshire,2023-04-27T00:00:00,TRUE,2023-02-01T00:00:00,2023-02-28T23:59:59,28/02/2023,County,E10000019,Lincolnshire,http://statistics.data.gov.uk/doc/statistical-geography/E10000019,Month,2023-02,Lincolnshire County Council,202311,Schools Block - Delegated (DSB),Grounds Maintenance,Upkeep of Grounds,31413265,350810,Absolute Play Ltd,8845.32
Lincolnshire,http://opendatacommunities.org/id/county-council/lincolnshire,2023-04-27T00:00:00,TRUE,2023-02-01T00:00:00,2023-02-28T23:59:59,28/02/2023,County,E10000019,Lincolnshire,http://statistics.data.gov.uk/doc/statistical-geography/E10000019,Month,2023-02,Lincolnshire County Council,202311,Adult Care Directors Costs,Miscellaneous and Initiative Expenses,Other Hired & Contracting Services,31414134,337150,Access UK Ltd,2375
Lincolnshire,http://opendatacommunities.org/id/county-council/lincolnshire,2023-04-27T00:00:00,TRUE,2023-02-01T00:00:00,2023-02-28T23:59:59,28/02/2023,County,E10000019,Lincolnshire,http://statistics.data.gov.uk/doc/statistical-geography/E10000019,Month,2023-02,Lincolnshire County Council,202311,Adult Care Directors Costs,Miscellaneous and Initiative Expenses,Other Hired & Contracting Services,31414354,337150,Access UK Ltd,12712.5
Lincolnshire,http://opendatacommunities.org/id/county-council/lincolnshire,2023-04-27T00:00:00,TRUE,2023-02-01T00:00:00,2023-02-28T23:59:59,28/02/2023,County,E10000019,Lincolnshire,http://statistics.data.gov.uk/doc/statistical-geography/E10000019,Month,2023-02,Lincolnshire County Council,202311,Adult Care Directors Costs,Miscellaneous and Initiative Expenses,Other Hired & Contracting Services,31414155,337150,Access UK Ltd,12712.5
Lincolnshire,http://opendatacommunities.org/id/county-council/lincolnshire,2023-04-27T00:00:00,TRUE,2023-02-01T00:00:00,2023-02-28T23:59:59,28/02/2023,County,E10000019,Lincolnshire,http://statistics.data.gov.uk/doc/statistical-geography/E10000019,Month,2023-02,Lincolnshire County Council,202311,Quality and Information,Miscellaneous and Initiative Expenses,Other Hired & Contracting Services,31414508,337150,Access UK Ltd,9082.19
Lincolnshire,http://opendatacommunities.org/id/county-council/lincolnshire,2023-04-27T00:00:00,TRUE,2023-02-01T00:00:00,2023-02-28T23:59:59,28/02/2023,County,E10000019,Lincolnshire,http://statistics.data.gov.uk/doc/statistical-geography/E10000019,Month,2023-02,Lincolnshire County Council,202311,Home to School/College Transport,Contract Hire and Operating Leases,Home to School Transport 8 seats or less,100667596,300011,Ace Travel (Long Sutton) Ltd,245.73
Lincolnshire,http://opendatacommunities.org/id/county-council/lincolnshire,2023-04-27T00:00:00,TRUE,2023-02-01T00:00:00,2023-02-28T23:59:59,28/02/2023,County,E10000019,Lincolnshire,http://statistics.data.gov.uk/doc/statistical-geography/E10000019,Month,2023-02,Lincolnshire County Council,202311,Home to School/College Transport,Contract Hire and Operating Leases,Home to School Transport 8 seats or less,100667596,300011,Ace Travel (Long Sutton) Ltd,1474.35
Lincolnshire,http://opendatacommunities.org/id/county-council/lincolnshire,2023-04-27T00:00:00,TRUE,2023-02-01T00:00:00,2023-02-28T23:59:59,28/02/2023,County,E10000019,Lincolnshire,http://statistics.data.gov.uk/doc/statistical-geography/E10000019,Month,2023-02,Lincolnshire County Council,202311,Home to School/College Transport,Contract Hire and Operating Leases,Home to School Transport 8 seats or less,100667596,300011,Ace Travel (Long Sutton) Ltd,245.72
Lincolnshire,http://opendatacommunities.org/id/county-council/lincolnshire,2023-04-27T00:00:00,TRUE,2023-02-01T00:00:00,2023-02-28T23:59:59,28/02/2023,County,E10000019,Lincolnshire,http://statistics.data.gov.uk/doc/statistical-geography/E10000019,Month,2023-02,Lincolnshire County Council,202311,Home to School/College Transport,Contract Hire and Operating Leases,Home to School Transport 8 seats or less,100667598,300011,Ace Travel (Long Sutton) Ltd,1412.65
Lincolnshire,http://opendatacommunities.org/id/county-council/lincolnshire,2023-04-27T00:00:00,TRUE,2023-02-01T00:00:00,2023-02-28T23:59:59,28/02/2023,County,E10000019,Lincolnshire,http://statistics.data.gov.uk/doc/statistical-geography/E10000019,Month,2023-02,Lincolnshire County Council,202311,Home to School/College Transport,Contract Hire and Operating Leases,Home to School Transport 8 seats or less,100667598,300011,Ace Travel (Long Sutton) Ltd,219.5
Lincolnshire,http://opendatacommunities.org/id/county-council/lincolnshire,2023-04-27T00:00:00,TRUE,2023-02-01T00:00:00,2023-02-28T23:59:59,28/02/2023,County,E10000019,Lincolnshire,http://statistics.data.gov.uk/doc/statistical-geography/E10000019,Month,2023-02,Lincolnshire County Council,202311,Home to School/College Transport,Contract Hire and Operating Leases,Home to School Transport 8 seats or less,100667598,300011,Ace Travel (Long Sutton) Ltd,450.44
Lincolnshire,http://opendatacommunities.org/id/county-council/lincolnshire,2023-04-27T00:00:00,TRUE,2023-02-01T00:00:00,2023-02-28T23:59:59,28/02/2023,County,E10000019,Lincolnshire,http://statistics.data.gov.uk/doc/statistical-geography/E10000019,Month,2023-02,Lincolnshire County Council,202311,Home to School/College Transport,Contract Hire and Operating Leases,Home to School Transport 8 seats or less,100667598,300011,Ace Travel (Long Sutton) Ltd,232.01
Lincolnshire,http://opendatacommunities.org/id/county-council/lincolnshire,2023-04-27T00:00:00,TRUE,2023-02-01T00:00:00,2023-02-28T23:59:59,28/02/2023,County,E10000019,Lincolnshire,http://statistics.data.gov.uk/doc/statistical-geography/E10000019,Month,2023-02,Lincolnshire County Council,202311,Home to School/College Transport,Contract Hire and Operating Leases,Home to School Transport 8 seats or less,100667601,300011,Ace Travel (Long Sutton) Ltd,131.41
Lincolnshire,http://opendatacommunities.org/id/county-council/lincolnshire,2023-04-27T00:00:00,TRUE,2023-02-01T00:00:00,2023-02-28T23:59:59,28/02/2023,County,E10000019,Lincolnshire,http://statistics.data.gov.uk/doc/statistical-geography/E10000019,Month,2023-02,Lincolnshire County Council,202311,Home to School/College Transport,Contract Hire and Operating Leases,Home to School Transport 8 seats or less,100667601,300011,Ace Travel (Long Sutton) Ltd,367
Lincolnshire,http://opendatacommunities.org/id/county-council/lincolnshire,2023-04-27T00:00:00,TRUE,2023-02-01T00:00:00,2023-02-28T23:59:59,28/02/2023,County,E10000019,Lincolnshire,http://statistics.data.gov.uk/doc/statistical-geography/E10000019,Month,2023-02,Lincolnshire County Council,202311,Home to School/College Transport,Contract Hire and Operating Leases,Home to School Transport 8 seats or less,100667601,300011,Ace Travel (Long Sutton) Ltd,1222.19
Lincolnshire,http://opendatacommunities.org/id/county-council/lincolnshire,2023-04-27T00:00:00,TRUE,2023-02-01T00:00:00,2023-02-28T23:59:59,28/02/2023,County,E10000019,Lincolnshire,http://statistics.data.gov.uk/doc/statistical-geography/E10000019,Month,2023-02,Lincolnshire County Council,202311,Home to School/College Transport,Contract Hire and Operating Leases,Home to School Transport 8 seats or less,100667602,300011,Ace Travel (Long Sutton) Ltd,1790
Lincolnshire,http://opendatacommunities.org/id/county-council/lincolnshire,2023-04-27T00:00:00,TRUE,2023-02-01T00:00:00,2023-02-28T23:59:59,28/02/2023,County,E10000019,Lincolnshire,http://statistics.data.gov.uk/doc/statistical-geography/E10000019,Month,2023-02,Lincolnshire County Council,202311,Home to School/College Transport,Contract Hire and Operating Leases,Home to School Transport 8 seats or less,100667597,300011,Ace Travel (Long Sutton) Ltd,3402.4
Lincolnshire,http://opendatacommunities.org/id/county-council/lincolnshire,2023-04-27T00:00:00,TRUE,2023-02-01T00:00:00,2023-02-28T23:59:59,28/02/2023,County,E10000019,Lincolnshire,http://statistics.data.gov.uk/doc/statistical-geography/E10000019,Month,2023-02,Lincolnshire County Council,202311,Home to School/College Transport,Contract Hire and Operating Leases,Home to School Transport 8 seats or less,100667599,300011,Ace Travel (Long Sutton) Ltd,1629.25
Lincolnshire,http://opendatacommunities.org/id/county-council/lincolnshire,2023-04-27T00:00:00,TRUE,2023-02-01T00:00:00,2023-02-28T23:59:59,28/02/2023,County,E10000019,Lincolnshire,http://statistics.data.gov.uk/doc/statistical-geography/E10000019,Month,2023-02,Lincolnshire County Council,202311,Home to School/College Transport,Contract Hire and Operating Leases,Home to School Transport 8 seats or less,100667600,300011,Ace Travel (Long Sutton) Ltd,1196.2
Lincolnshire,http://opendatacommunities.org/id/county-council/lincolnshire,2023-04-27T00:00:00,TRUE,2023-02-01T00:00:00,2023-02-28T23:59:59,28/02/2023,County,E10000019,Lincolnshire,http://statistics.data.gov.uk/doc/statistical-geography/E10000019,Month,2023-02,Lincolnshire County Council,202311,Learning Disabilities,Private Contractors,Supported Living,100675933,314537,Achieve Together Limited,1760
Lincolnshire,http://opendatacommunities.org/id/county-council/lincolnshire,2023-04-27T00:00:00,TRUE,2023-02-01T00:00:00,2023-02-28T23:59:59,28/02/2023,County,E10000019,Lincolnshire,http://statistics.data.gov.uk/doc/statistical-geography/E10000019,Month,2023-02,Lincolnshire County Council,202311,Learning Disabilities,Private Contractors,Supported Living,100675934,314537,Achieve Together Limited,1056
Lincolnshire,http://opendatacommunities.org/id/county-council/lincolnshire,2023-04-27T00:00:00,TRUE,2023-02-01T00:00:00,2023-02-28T23:59:59,28/02/2023,County,E10000019,Lincolnshire,http://statistics.data.gov.uk/doc/statistical-geography/E10000019,Month,2023-02,Lincolnshire County Council,202311,Learning Disabilities,Private Contractors,Supported Living,100675943,314537,Achieve Together Limited,3942.4
Lincolnshire,http://opendatacommunities.org/id/county-council/lincolnshire,2023-04-27T00:00:00,TRUE,2023-02-01T00:00:00,2023-02-28T23:59:59,28/02/2023,County,E10000019,Lincolnshire,http://statistics.data.gov.uk/doc/statistical-geography/E10000019,Month,2023-02,Lincolnshire County Council,202311,Learning Disabilities,Private Contractors,Supported Living,100675953,314537,Achieve Together Limited,13235.2
Lincolnshire,http://opendatacommunities.org/id/county-council/lincolnshire,2023-04-27T00:00:00,TRUE,2023-02-01T00:00:00,2023-02-28T23:59:59,28/02/2023,County,E10000019,Lincolnshire,http://statistics.data.gov.uk/doc/statistical-geography/E10000019,Month,2023-02,Lincolnshire County Council,202311,Learning Disabilities,Private Contractors,Supported Living,100675949,314537,Achieve Together Limited,985.6
Lincolnshire,http://opendatacommunities.org/id/county-council/lincolnshire,2023-04-27T00:00:00,TRUE,2023-02-01T00:00:00,2023-02-28T23:59:59,28/02/2023,County,E10000019,Lincolnshire,http://statistics.data.gov.uk/doc/statistical-geography/E10000019,Month,2023-02,Lincolnshire County Council,202311,Learning Disabilities,Private Contractors,Supported Living,100675955,314537,Achieve Together Limited,1971.2
Lincolnshire,http://opendatacommunities.org/id/county-council/lincolnshire,2023-04-27T00:00:00,TRUE,2023-02-01T00:00:00,2023-02-28T23:59:59,28/02/2023,County,E10000019,Lincolnshire,http://statistics.data.gov.uk/doc/statistical-geography/E10000019,Month,2023-02,Lincolnshire County Council,202311,Learning Disabilities,Private Contractors,Supported Living,100675930,314537,Achieve Together Limited,23880.08
Lincolnshire,http://opendatacommunities.org/id/county-council/lincolnshire,2023-04-27T00:00:00,TRUE,2023-02-01T00:00:00,2023-02-28T23:59:59,28/02/2023,County,E10000019,Lincolnshire,http://statistics.data.gov.uk/doc/statistical-geography/E10000019,Month,2023-02,Lincolnshire County Council,202311,Learning Disabilities,Private Contractors,Supported Living,100675962,314537,Achieve Together Limited,3203.2
Lincolnshire,http://opendatacommunities.org/id/county-council/lincolnshire,2023-04-27T00:00:00,TRUE,2023-02-01T00:00:00,2023-02-28T23:59:59,28/02/2023,County,E10000019,Lincolnshire,http://statistics.data.gov.uk/doc/statistical-geography/E10000019,Month,2023-02,Lincolnshire County Council,202311,Learning Disabilities,Private Contractors,Supported Living,100675981,314537,Achieve Together Limited,19219.2
Lincolnshire,http://opendatacommunities.org/id/county-council/lincolnshire,2023-04-27T00:00:00,TRUE,2023-02-01T00:00:00,2023-02-28T23:59:59,28/02/2023,County,E10000019,Lincolnshire,http://statistics.data.gov.uk/doc/statistical-geography/E10000019,Month,2023-02,Lincolnshire County Council,202311,Learning Disabilities,Private Contractors,Supported Living,100675990,314537,Achieve Together Limited,1020.8
Lincolnshire,http://opendatacommunities.org/id/county-council/lincolnshire,2023-04-27T00:00:00,TRUE,2023-02-01T00:00:00,2023-02-28T23:59:59,28/02/2023,County,E10000019,Lincolnshire,http://statistics.data.gov.uk/doc/statistical-geography/E10000019,Month,2023-02,Lincolnshire County Council,202311,Learning Disabilities,Private Contractors,Supported Living,100676006,314537,Achieve Together Limited,5913.6
Lincolnshire,http://opendatacommunities.org/id/county-council/lincolnshire,2023-04-27T00:00:00,TRUE,2023-02-01T00:00:00,2023-02-28T23:59:59,28/02/2023,County,E10000019,Lincolnshire,http://statistics.data.gov.uk/doc/statistical-geography/E10000019,Month,2023-02,Lincolnshire County Council,202311,Learning Disabilities,Private Contractors,Supported Living,100675883,314537,Achieve Together Limited,1126.4
Lincolnshire,http://opendatacommunities.org/id/county-council/lincolnshire,2023-04-27T00:00:00,TRUE,2023-02-01T00:00:00,2023-02-28T23:59:59,28/02/2023,County,E10000019,Lincolnshire,http://statistics.data.gov.uk/doc/statistical-geography/E10000019,Month,2023-02,Lincolnshire County Council,202311,Learning Disabilities,Private Contractors,Supported Living,100675864,314537,Achieve Together Limited,985.6
Lincolnshire,http://opendatacommunities.org/id/county-council/lincolnshire,2023-04-27T00:00:00,TRUE,2023-02-01T00:00:00,2023-02-28T23:59:59,28/02/2023,County,E10000019,Lincolnshire,http://statistics.data.gov.uk/doc/statistical-geography/E10000019,Month,2023-02,Lincolnshire County Council,202311,Learning Disabilities,Private Contractors,Supported Living,100676010,314537,Achieve Together Limited,9461.76
Lincolnshire,http://opendatacommunities.org/id/county-council/lincolnshire,2023-04-27T00:00:00,TRUE,2023-02-01T00:00:00,2023-02-28T23:59:59,28/02/2023,County,E10000019,Lincolnshire,http://statistics.data.gov.uk/doc/statistical-geography/E10000019,Month,2023-02,Lincolnshire County Council,202311,Learning Disabilities,Private Contractors,Supported Living,100676011,314537,Achieve Together Limited,11827.2
Lincolnshire,http://opendatacommunities.org/id/county-council/lincolnshire,2023-04-27T00:00:00,TRUE,2023-02-01T00:00:00,2023-02-28T23:59:59,28/02/2023,County,E10000019,Lincolnshire,http://statistics.data.gov.uk/doc/statistical-geography/E10000019,Month,2023-02,Lincolnshire County Council,202311,Learning Disabilities,Private Contractors,Supported Living,100675852,314537,Achieve Together Limited,985.6
Lincolnshire,http://opendatacommunities.org/id/county-council/lincolnshire,2023-04-27T00:00:00,TRUE,2023-02-01T00:00:00,2023-02-28T23:59:59,28/02/2023,County,E10000019,Lincolnshire,http://statistics.data.gov.uk/doc/statistical-geography/E10000019,Month,2023-02,Lincolnshire County Council,202311,Learning Disabilities,Private Contractors,Supported Living,100675856,314537,Achieve Together Limited,1971.2
Lincolnshire,http://opendatacommunities.org/id/county-council/lincolnshire,2023-04-27T00:00:00,TRUE,2023-02-01T00:00:00,2023-02-28T23:59:59,28/02/2023,County,E10000019,Lincolnshire,http://statistics.data.gov.uk/doc/statistical-geography/E10000019,Month,2023-02,Lincolnshire County Council,202311,Learning Disabilities,Private Contractors,Supported Living,100675853,314537,Achieve Together Limited,1232
Lincolnshire,http://opendatacommunities.org/id/county-council/lincolnshire,2023-04-27T00:00:00,TRUE,2023-02-01T00:00:00,2023-02-28T23:59:59,28/02/2023,County,E10000019,Lincolnshire,http://statistics.data.gov.uk/doc/statistical-geography/E10000019,Month,2023-02,Lincolnshire County Council,202311,Learning Disabilities,Private Contractors,Supported Living,100675857,314537,Achieve Together Limited,9786
Lincolnshire,http://opendatacommunities.org/id/county-council/lincolnshire,2023-04-27T00:00:00,TRUE,2023-02-01T00:00:00,2023-02-28T23:59:59,28/02/2023,County,E10000019,Lincolnshire,http://statistics.data.gov.uk/doc/statistical-geography/E10000019,Month,2023-02,Lincolnshire County Council,202311,Learning Disabilities,Private Contractors,Supported Living,100675802,314537,Achieve Together Limited,2464
Lincolnshire,http://opendatacommunities.org/id/county-council/lincolnshire,2023-04-27T00:00:00,TRUE,2023-02-01T00:00:00,2023-02-28T23:59:59,28/02/2023,County,E10000019,Lincolnshire,http://statistics.data.gov.uk/doc/statistical-geography/E10000019,Month,2023-02,Lincolnshire County Council,202311,Learning Disabilities,Private Contractors,Supported Living,100675810,314537,Achieve Together Limited,985.6
Lincolnshire,http://opendatacommunities.org/id/county-council/lincolnshire,2023-04-27T00:00:00,TRUE,2023-02-01T00:00:00,2023-02-28T23:59:59,28/02/2023,County,E10000019,Lincolnshire,http://statistics.data.gov.uk/doc/statistical-geography/E10000019,Month,2023-02,Lincolnshire County Council,202311,Learning Disabilities,Private Contractors,Supported Living,100675813,314537,Achieve Together Limited,2540.72
Lincolnshire,http://opendatacommunities.org/id/county-council/lincolnshire,2023-04-27T00:00:00,TRUE,2023-02-01T00:00:00,2023-02-28T23:59:59,28/02/2023,County,E10000019,Lincolnshire,http://statistics.data.gov.uk/doc/statistical-geography/E10000019,Month,2023-02,Lincolnshire County Council,202311,Learning Disabilities,Private Contractors,Supported Living,100675819,314537,Achieve Together Limited,1971.2
Lincolnshire,http://opendatacommunities.org/id/county-council/lincolnshire,2023-04-27T00:00:00,TRUE,2023-02-01T00:00:00,2023-02-28T23:59:59,28/02/2023,County,E10000019,Lincolnshire,http://statistics.data.gov.uk/doc/statistical-geography/E10000019,Month,2023-02,Lincolnshire County Council,202311,Learning Disabilities,Private Contractors,Supported Living,100675971,314537,Achieve Together Limited,11827.2
Lincolnshire,http://opendatacommunities.org/id/county-council/lincolnshire,2023-04-27T00:00:00,TRUE,2023-02-01T00:00:00,2023-02-28T23:59:59,28/02/2023,County,E10000019,Lincolnshire,http://statistics.data.gov.uk/doc/statistical-geography/E10000019,Month,2023-02,Lincolnshire County Council,202311,Learning Disabilities,Private Contractors,Supported Living,100675893,314537,Achieve Together Limited,1020.8
Lincolnshire,http://opendatacommunities.org/id/county-council/lincolnshire,2023-04-27T00:00:00,TRUE,2023-02-01T00:00:00,2023-02-28T23:59:59,28/02/2023,County,E10000019,Lincolnshire,http://statistics.data.gov.uk/doc/statistical-geography/E10000019,Month,2023-02,Lincolnshire County Council,202311,Learning Disabilities,Private Contractors,Supported Living,100675914,314537,Achieve Together Limited,4928
Lincolnshire,http://opendatacommunities.org/id/county-council/lincolnshire,2023-04-27T00:00:00,TRUE,2023-02-01T00:00:00,2023-02-28T23:59:59,28/02/2023,County,E10000019,Lincolnshire,http://statistics.data.gov.uk/doc/statistical-geography/E10000019,Month,2023-02,Lincolnshire County Council,202311,Learning Disabilities,Private Contractors,Supported Living,100675912,314537,Achieve Together Limited,2112
Lincolnshire,http://opendatacommunities.org/id/county-council/lincolnshire,2023-04-27T00:00:00,TRUE,2023-02-01T00:00:00,2023-02-28T23:59:59,28/02/2023,County,E10000019,Lincolnshire,http://statistics.data.gov.uk/doc/statistical-geography/E10000019,Month,2023-02,Lincolnshire County Council,202311,Learning Disabilities,Private Contractors,Supported Living,100675907,314537,Achieve Together Limited,844.8
Lincolnshire,http://opendatacommunities.org/id/county-council/lincolnshire,2023-04-27T00:00:00,TRUE,2023-02-01T00:00:00,2023-02-28T23:59:59,28/02/2023,County,E10000019,Lincolnshire,http://statistics.data.gov.uk/doc/statistical-geography/E10000019,Month,2023-02,Lincolnshire County Council,202311,Learning Disabilities,Private Contractors,Supported Living,100675911,314537,Achieve Together Limited,985.6
Lincolnshire,http://opendatacommunities.org/id/county-council/lincolnshire,2023-04-27T00:00:00,TRUE,2023-02-01T00:00:00,2023-02-28T23:59:59,28/02/2023,County,E10000019,Lincolnshire,http://statistics.data.gov.uk/doc/statistical-geography/E10000019,Month,2023-02,Lincolnshire County Council,202311,Learning Disabilities,Private Contractors,Supported Living,100675926,314537,Achieve Together Limited,7145.6
Lincolnshire,http://opendatacommunities.org/id/county-council/lincolnshire,2023-04-27T00:00:00,TRUE,2023-02-01T00:00:00,2023-02-28T23:59:59,28/02/2023,County,E10000019,Lincolnshire,http://statistics.data.gov.uk/doc/statistical-geography/E10000019,Month,2023-02,Lincolnshire County Council,202311,Mental Health,Grants and Subscriptions,"Grants, Contributions & Donations",31419292,301566,Acis Group Limited,5356.69
Lincolnshire,http://opendatacommunities.org/id/county-council/lincolnshire,2023-04-27T00:00:00,TRUE,2023-02-01T00:00:00,2023-02-28T23:59:59,28/02/2023,County,E10000019,Lincolnshire,http://statistics.data.gov.uk/doc/statistical-geography/E10000019,Month,2023-02,Lincolnshire County Council,202311,Early Years Block - Central (DSB),Voluntary Associations,Payments to Voluntary Organisations,31413925,312874,Acorn Childcare Centre Limited,24685.98
Lincolnshire,http://opendatacommunities.org/id/county-council/lincolnshire,2023-04-27T00:00:00,TRUE,2023-02-01T00:00:00,2023-02-28T23:59:59,28/02/2023,County,E10000019,Lincolnshire,http://statistics.data.gov.uk/doc/statistical-geography/E10000019,Month,2023-02,Lincolnshire County Council,202311,Mental Health,Contract Hire and Operating Leases,Hire of Transport - Non Staff,31408838,300014,Acorn Contract & Hire Ltd (Boston),498
Lincolnshire,http://opendatacommunities.org/id/county-council/lincolnshire,2023-04-27T00:00:00,TRUE,2023-02-01T00:00:00,2023-02-28T23:59:59,28/02/2023,County,E10000019,Lincolnshire,http://statistics.data.gov.uk/doc/statistical-geography/E10000019,Month,2023-02,Lincolnshire County Council,202311,Family Assessment and Support Teams,Contract Hire and Operating Leases,Childrens Social Care Transport,100667055,300014,Acorn Contract & Hire Ltd (Boston),438
Lincolnshire,http://opendatacommunities.org/id/county-council/lincolnshire,2023-04-27T00:00:00,TRUE,2023-02-01T00:00:00,2023-02-28T23:59:59,28/02/2023,County,E10000019,Lincolnshire,http://statistics.data.gov.uk/doc/statistical-geography/E10000019,Month,2023-02,Lincolnshire County Council,202311,Home to School/College Transport,Contract Hire and Operating Leases,Home to School Transport 8 seats or less,100667034,300014,Acorn Contract & Hire Ltd (Boston),887.7
Lincolnshire,http://opendatacommunities.org/id/county-council/lincolnshire,2023-04-27T00:00:00,TRUE,2023-02-01T00:00:00,2023-02-28T23:59:59,28/02/2023,County,E10000019,Lincolnshire,http://statistics.data.gov.uk/doc/statistical-geography/E10000019,Month,2023-02,Lincolnshire County Council,202311,Home to School/College Transport,Contract Hire and Operating Leases,Home to School Transport 8 seats or less,100667035,300014,Acorn Contract & Hire Ltd (Boston),1160.28
Lincolnshire,http://opendatacommunities.org/id/county-council/lincolnshire,2023-04-27T00:00:00,TRUE,2023-02-01T00:00:00,2023-02-28T23:59:59,28/02/2023,County,E10000019,Lincolnshire,http://statistics.data.gov.uk/doc/statistical-geography/E10000019,Month,2023-02,Lincolnshire County Council,202311,Home to School/College Transport,Contract Hire and Operating Leases,Home to School Transport 8 seats or less,100667035,300014,Acorn Contract & Hire Ltd (Boston),1619.72
Lincolnshire,http://opendatacommunities.org/id/county-council/lincolnshire,2023-04-27T00:00:00,TRUE,2023-02-01T00:00:00,2023-02-28T23:59:59,28/02/2023,County,E10000019,Lincolnshire,http://statistics.data.gov.uk/doc/statistical-geography/E10000019,Month,2023-02,Lincolnshire County Council,202311,Home to School/College Transport,Contract Hire and Operating Leases,Home to School Transport 8 seats or less,100667036,300014,Acorn Contract & Hire Ltd (Boston),1671.54
Lincolnshire,http://opendatacommunities.org/id/county-council/lincolnshire,2023-04-27T00:00:00,TRUE,2023-02-01T00:00:00,2023-02-28T23:59:59,28/02/2023,County,E10000019,Lincolnshire,http://statistics.data.gov.uk/doc/statistical-geography/E10000019,Month,2023-02,Lincolnshire County Council,202311,Home to School/College Transport,Contract Hire and Operating Leases,Home to School Transport 8 seats or less,100667036,300014,Acorn Contract & Hire Ltd (Boston),363.46
Lincolnshire,http://opendatacommunities.org/id/county-council/lincolnshire,2023-04-27T00:00:00,TRUE,2023-02-01T00:00:00,2023-02-28T23:59:59,28/02/2023,County,E10000019,Lincolnshire,http://statistics.data.gov.uk/doc/statistical-geography/E10000019,Month,2023-02,Lincolnshire County Council,202311,Home to School/College Transport,Contract Hire and Operating Leases,Home to School Transport 8 seats or less,100667034,300014,Acorn Contract & Hire Ltd (Boston),913.61
Lincolnshire,http://opendatacommunities.org/id/county-council/lincolnshire,2023-04-27T00:00:00,TRUE,2023-02-01T00:00:00,2023-02-28T23:59:59,28/02/2023,County,E10000019,Lincolnshire,http://statistics.data.gov.uk/doc/statistical-geography/E10000019,Month,2023-02,Lincolnshire County Council,202311,Home to School/College Transport,Contract Hire and Operating Leases,Home to School Transport 8 seats or less,100667034,300014,Acorn Contract & Hire Ltd (Boston),1321.07
Lincolnshire,http://opendatacommunities.org/id/county-council/lincolnshire,2023-04-27T00:00:00,TRUE,2023-02-01T00:00:00,2023-02-28T23:59:59,28/02/2023,County,E10000019,Lincolnshire,http://statistics.data.gov.uk/doc/statistical-geography/E10000019,Month,2023-02,Lincolnshire County Council,202311,Home to School/College Transport,Contract Hire and Operating Leases,Home to School Transport 8 seats or less,100667034,300014,Acorn Contract & Hire Ltd (Boston),900.21
Lincolnshire,http://opendatacommunities.org/id/county-council/lincolnshire,2023-04-27T00:00:00,TRUE,2023-02-01T00:00:00,2023-02-28T23:59:59,28/02/2023,County,E10000019,Lincolnshire,http://statistics.data.gov.uk/doc/statistical-geography/E10000019,Month,2023-02,Lincolnshire County Council,202311,Home to School/College Transport,Contract Hire and Operating Leases,Home to School Transport 8 seats or less,100667034,300014,Acorn Contract & Hire Ltd (Boston),900.21
Lincolnshire,http://opendatacommunities.org/id/county-council/lincolnshire,2023-04-27T00:00:00,TRUE,2023-02-01T00:00:00,2023-02-28T23:59:59,28/02/2023,County,E10000019,Lincolnshire,http://statistics.data.gov.uk/doc/statistical-geography/E10000019,Month,2023-02,Lincolnshire County Council,202311,Home to School/College Transport,Contract Hire and Operating Leases,Home to School Transport 8 seats or less,100667032,300014,Acorn Contract & Hire Ltd (Boston),384.36
Lincolnshire,http://opendatacommunities.org/id/county-council/lincolnshire,2023-04-27T00:00:00,TRUE,2023-02-01T00:00:00,2023-02-28T23:59:59,28/02/2023,County,E10000019,Lincolnshire,http://statistics.data.gov.uk/doc/statistical-geography/E10000019,Month,2023-02,Lincolnshire County Council,202311,Home to School/College Transport,Contract Hire and Operating Leases,Home to School Transport 8 seats or less,100667031,300014,Acorn Contract & Hire Ltd (Boston),1648.58
Lincolnshire,http://opendatacommunities.org/id/county-council/lincolnshire,2023-04-27T00:00:00,TRUE,2023-02-01T00:00:00,2023-02-28T23:59:59,28/02/2023,County,E10000019,Lincolnshire,http://statistics.data.gov.uk/doc/statistical-geography/E10000019,Month,2023-02,Lincolnshire County Council,202311,Home to School/College Transport,Contract Hire and Operating Leases,Home to School Transport 8 seats or less,100667030,300014,Acorn Contract & Hire Ltd (Boston),2817.74
Lincolnshire,http://opendatacommunities.org/id/county-council/lincolnshire,2023-04-27T00:00:00,TRUE,2023-02-01T00:00:00,2023-02-28T23:59:59,28/02/2023,County,E10000019,Lincolnshire,http://statistics.data.gov.uk/doc/statistical-geography/E10000019,Month,2023-02,Lincolnshire County Council,202311,Home to School/College Transport,Contract Hire and Operating Leases,Home to School Transport 8 seats or less,100667030,300014,Acorn Contract & Hire Ltd (Boston),426.9
Lincolnshire,http://opendatacommunities.org/id/county-council/lincolnshire,2023-04-27T00:00:00,TRUE,2023-02-01T00:00:00,2023-02-28T23:59:59,28/02/2023,County,E10000019,Lincolnshire,http://statistics.data.gov.uk/doc/statistical-geography/E10000019,Month,2023-02,Lincolnshire County Council,202311,Home to School/College Transport,Contract Hire and Operating Leases,Home to School Transport 8 seats or less,100667030,300014,Acorn Contract & Hire Ltd (Boston),423.36
Lincolnshire,http://opendatacommunities.org/id/county-council/lincolnshire,2023-04-27T00:00:00,TRUE,2023-02-01T00:00:00,2023-02-28T23:59:59,28/02/2023,County,E10000019,Lincolnshire,http://statistics.data.gov.uk/doc/statistical-geography/E10000019,Month,2023-02,Lincolnshire County Council,202311,Home to School/College Transport,Contract Hire and Operating Leases,Home to School Transport 8 seats or less,100667028,300014,Acorn Contract & Hire Ltd (Boston),2827.2
Lincolnshire,http://opendatacommunities.org/id/county-council/lincolnshire,2023-04-27T00:00:00,TRUE,2023-02-01T00:00:00,2023-02-28T23:59:59,28/02/2023,County,E10000019,Lincolnshire,http://statistics.data.gov.uk/doc/statistical-geography/E10000019,Month,2023-02,Lincolnshire County Council,202311,Home to School/College Transport,Contract Hire and Operating Leases,Home to School Transport 8 seats or less,100667027,300014,Acorn Contract & Hire Ltd (Boston),916
Lincolnshire,http://opendatacommunities.org/id/county-council/lincolnshire,2023-04-27T00:00:00,TRUE,2023-02-01T00:00:00,2023-02-28T23:59:59,28/02/2023,County,E10000019,Lincolnshire,http://statistics.data.gov.uk/doc/statistical-geography/E10000019,Month,2023-02,Lincolnshire County Council,202311,Home to School/College Transport,Contract Hire and Operating Leases,Home to School Transport 8 seats or less,100667026,300014,Acorn Contract & Hire Ltd (Boston),1969
Lincolnshire,http://opendatacommunities.org/id/county-council/lincolnshire,2023-04-27T00:00:00,TRUE,2023-02-01T00:00:00,2023-02-28T23:59:59,28/02/2023,County,E10000019,Lincolnshire,http://statistics.data.gov.uk/doc/statistical-geography/E10000019,Month,2023-02,Lincolnshire County Council,202311,Home to School/College Transport,Contract Hire and Operating Leases,Home to School Transport 8 seats or less,100667015,300014,Acorn Contract & Hire Ltd (Boston),2580
Lincolnshire,http://opendatacommunities.org/id/county-council/lincolnshire,2023-04-27T00:00:00,TRUE,2023-02-01T00:00:00,2023-02-28T23:59:59,28/02/2023,County,E10000019,Lincolnshire,http://statistics.data.gov.uk/doc/statistical-geography/E10000019,Month,2023-02,Lincolnshire County Council,202311,Home to School/College Transport,Contract Hire and Operating Leases,Home to School Transport 8 seats or less,100667016,300014,Acorn Contract & Hire Ltd (Boston),2580
Lincolnshire,http://opendatacommunities.org/id/county-council/lincolnshire,2023-04-27T00:00:00,TRUE,2023-02-01T00:00:00,2023-02-28T23:59:59,28/02/2023,County,E10000019,Lincolnshire,http://statistics.data.gov.uk/doc/statistical-geography/E10000019,Month,2023-02,Lincolnshire County Council,202311,Home to School/College Transport,Contract Hire and Operating Leases,Home to School Transport 8 seats or less,100667014,300014,Acorn Contract & Hire Ltd (Boston),4980
Lincolnshire,http://opendatacommunities.org/id/county-council/lincolnshire,2023-04-27T00:00:00,TRUE,2023-02-01T00:00:00,2023-02-28T23:59:59,28/02/2023,County,E10000019,Lincolnshire,http://statistics.data.gov.uk/doc/statistical-geography/E10000019,Month,2023-02,Lincolnshire County Council,202311,Home to School/College Transport,Contract Hire and Operating Leases,Home to School Transport 8 seats or less,100667019,300014,Acorn Contract & Hire Ltd (Boston),3144.82
Lincolnshire,http://opendatacommunities.org/id/county-council/lincolnshire,2023-04-27T00:00:00,TRUE,2023-02-01T00:00:00,2023-02-28T23:59:59,28/02/2023,County,E10000019,Lincolnshire,http://statistics.data.gov.uk/doc/statistical-geography/E10000019,Month,2023-02,Lincolnshire County Council,202311,Home to School/College Transport,Contract Hire and Operating Leases,Home to School Transport 8 seats or less,100667010,300014,Acorn Contract & Hire Ltd (Boston),2360.99
Lincolnshire,http://opendatacommunities.org/id/county-council/lincolnshire,2023-04-27T00:00:00,TRUE,2023-02-01T00:00:00,2023-02-28T23:59:59,28/02/2023,County,E10000019,Lincolnshire,http://statistics.data.gov.uk/doc/statistical-geography/E10000019,Month,2023-02,Lincolnshire County Council,202311,Home to School/College Transport,Contract Hire and Operating Leases,Home to School Transport 8 seats or less,100667010,300014,Acorn Contract & Hire Ltd (Boston),309.51
Lincolnshire,http://opendatacommunities.org/id/county-council/lincolnshire,2023-04-27T00:00:00,TRUE,2023-02-01T00:00:00,2023-02-28T23:59:59,28/02/2023,County,E10000019,Lincolnshire,http://statistics.data.gov.uk/doc/statistical-geography/E10000019,Month,2023-02,Lincolnshire County Council,202311,Home to School/College Transport,Contract Hire and Operating Leases,Home to School Transport 8 seats or less,100667009,300014,Acorn Contract & Hire Ltd (Boston),153.85
